{"text_format":"2","workbook":"xlsx","n_sheets":11,"sheets":["요건 건수","Reversion","요구사항정의서","vip 요구사항","관계사요구사항","요청 산출물 리스트","마이그레이션범위","TOBE FRONT IA","질의응답","TOBE BOS IA","DATA COLUMN SHEET"],"not_rendered":{"charts":0,"images":0,"macros":0,"external_links":0,"defined_names":2,"comments":0,"pivot_tables":1},"unopened":[],"bounds":{"document_bytes":16777216,"sheet_cells":100000,"run_cost":"one","rows_first":2000,"rows_last":500,"rows_between":2000,"halvings":0,"cell_chars":16384,"cell_head_chars":4096},"cells_cut":0,"cells_raw":0,"read":"whole","date_system":"1900"}

{"sheet":"요건 건수","index":0,"n_rows":21,"n_cols":5,"rows_kept":21,"cut":false,"hidden":true,"merged":[]}
[]
[]
["행 레이블","개수 : 중분류",null,"요구사항코드","코드규칙"]
["01_개발 사양",12,null,"01_개발 사양","IST_01_"]
["02_I.F/MIG/연동/솔루션",9,null,"02_I.F/MIG/연동/솔루션","IST_02_"]
["03_화면UI공통",5,null,"03_화면UI공통","IST_03_"]
["04_카테고리",5,null,"04_카테고리","IST_04_"]
["05_검색/전시공통",13,null,"05_검색/전시공통","IST_05_"]
["06_브랜드샵",4,null,"06_브랜드샵","IST_06_"]
["07_전시메뉴",5,null,"07_전시메뉴","IST_07_"]
["08_이벤트/기획전",6,null,"08_이벤트/기획전","IST_08_"]
["09_상품관리",20,null,"09_상품관리","IST_09_"]
["10_프로모션",11,null,"10_프로모션","IST_10_"]
["11_주문결제",9,null,"11_주문결제","IST_11_"]
["12_주문/클레임",14,null,"12_주문/클레임","IST_12_"]
["13_제휴주문관리",2,null,"13_제휴주문관리","IST_13_"]
["14_고객센터/커뮤니티",9,null,"14_고객센터/커뮤니티","IST_14_"]
["15_특화서비스",6,null,"15_특화서비스","IST_15_"]
["16_회원/멤버쉽",15,null,"16_회원/멤버쉽","IST_16_"]
["17_운영관리",16,null,"17_운영관리","IST_17_"]
["총합계",161]

{"sheet":"Reversion","index":1,"n_rows":9,"n_cols":6,"rows_kept":9,"cut":false,"hidden":false,"merged":[[0,1,0,5]]}
[null,"Reversion History"]
[]
[null,"버전","내용","작성일","요청자","작성자"]
[null,"V1.00","초안 작성","2020-05-14","정지혜","정지혜"]
[null,"V1.10","요구 범위 변경 및 조정","2020-06-12","박중재","정지혜"]
[null,"V1.20","요구 범위 변경 및 조정\n- 선물 하기 제외 外","2020-07-03","박중재","정지혜"]
[null,"V1.30","범위 문서 업데이트\n- 산출물 리스트 추가\n- To-BE Front IA 가안 추가","2020-07-10","정지혜","정지혜"]
[null,"V1.40","7월 16일 질의응답 답변 내용 기반으로  요구사항 내용 일부 업데이트","2020-09-09","조현민","조현민"]
[null,"V1.41","추가 확인 필요사항 작성 (요구사항정의서 > 이슈사항)","2020-09-10","조현민","조현민"]

{"sheet":"요구사항정의서","index":2,"n_rows":169,"n_cols":14,"rows_kept":169,"cut":false,"hidden":false,"merged":[[0,1,0,3]]}
[null,"ST24_온라인몰 신규 구축 요구사항정의서"]
[]
[null,"대분류","중분류","요구사항","상세 기능 요건 사항","요구번호","요청부서","요청일","수용여부","의사결정일","이슈사항","화면설계ID","프로그램ID","통합테스트 CASE ID"]
[null,"01_개발 사양","개발범위","Front - IStyle24 PC / Mobile Web / Mobile app(AOS/IOS)\nBOS / SCM",null,{"$f":"CONCATENATE((VLOOKUP(B4,'요건 건수'!$D$4:$E$20,2)),COUNTIFS(B$4:B4,B4))","v":"IST_01_1"},"기획운영팀",null,null,null,"대응 해야할 최저 OS 버전 확인 필요"]
[null,"01_개발 사양","관리자의 환경","관리자를 개별메뉴나 디바이스별 분리하는 형태로 구현하지 않는다.\n콘텐츠 관리는 모바일/PC 통일하여 일원화된 관리구조를 고려 한다.\n관리자의 접속은 브라우저에 관계없이 접속 및 동작되어야 한다.(IE 만 가능 등 불허)",null,{"$f":"CONCATENATE((VLOOKUP(B5,'요건 건수'!$D$4:$E$20,2)),COUNTIFS(B$4:B5,B5))","v":"IST_01_2"},"기획운영팀",null,"수용","2020-12-07"]
[null,"01_개발 사양","도메인","현 페이지 별 분산된 도메인을 정리하여 일괄 도메인으로 처리할 수 있어야 한다.\n도메인 변경 시 도메인에 대한 연결 처리가 진행되어야 한다.\n- mall.isytle.com\n- event.istyle.com\n- www.istyle.com",null,{"$f":"CONCATENATE((VLOOKUP(B6,'요건 건수'!$D$4:$E$20,2)),COUNTIFS(B$4:B6,B6))","v":"IST_01_3"},"기획운영팀",null,"수용","2020-12-07","image 도메인만 별도로 하고 그 외는 www.style24.com 으로 한다.\n- 이미지도메인: image.style24.com"]
[null,"01_개발 사양","모바일앱","하이브리드 Webwiew 방식으로 구현하고, 일부 Native 영역으로 구현한다.\n- 설계 시 네이티브 영역에 대해 명시하여야 한다.\n- 네이티브 영역은 인트로, 스플래시 정도만 구현",null,{"$f":"CONCATENATE((VLOOKUP(B7,'요건 건수'!$D$4:$E$20,2)),COUNTIFS(B$4:B7,B7))","v":"IST_01_4"},"기획운영팀",null,"수용","2020-12-07","좌측의 범위면 OK"]
[null,"01_개발 사양","모바일웹","디바이스 체크 후 모바일에서 접근시 모바일 버전으로 노출한다.",null,{"$f":"CONCATENATE((VLOOKUP(B8,'요건 건수'!$D$4:$E$20,2)),COUNTIFS(B$4:B8,B8))","v":"IST_01_5"},"기획운영팀",null,"수용","2020-12-07"]
[null,"01_개발 사양","보안/검수관련","KISA시큐어 코딩 가이드를 준수한다. ",null,{"$f":"CONCATENATE((VLOOKUP(B9,'요건 건수'!$D$4:$E$20,2)),COUNTIFS(B$4:B9,B9))","v":"IST_01_6"},"정보보호팀",null,"수용","2020-12-07"]
[null,"01_개발 사양","브라우저최적화","여러 디바이스(PC/모바일) 및 브라우저 최적화(IE11이상, chrome, safari, NAVER browser)",null,{"$f":"CONCATENATE((VLOOKUP(B10,'요건 건수'!$D$4:$E$20,2)),COUNTIFS(B$4:B10,B10))","v":"IST_01_7"},"기획운영팀",null,"수용","2020-12-07"]
[null,"01_개발 사양","성능/사용성","CDN 및 리사이징 툴을 적용 하여 속도 및 관리 사용성을 향상하여야 한다.",null,{"$f":"CONCATENATE((VLOOKUP(B11,'요건 건수'!$D$4:$E$20,2)),COUNTIFS(B$4:B11,B11))","v":"IST_01_8"},"기획운영팀",null,"수용","2020-12-07","단, 해당 부분은 CDN 및 리시아징 툴 업체의 성능의 문제임"]
[null,"01_개발 사양","암호화","개인정보는 암호화 하여 통신되어야 한다.",null,{"$f":"CONCATENATE((VLOOKUP(B12,'요건 건수'!$D$4:$E$20,2)),COUNTIFS(B$4:B12,B12))","v":"IST_01_9"},"정보보호팀",null,"수용","2020-12-07","SSL 적용하는 것으로 대체하기 때문에 별도 구현은 필요 없다. 암호화 칼럼은 DB에 암호화 해 처리한다."]
[null,"01_개발 사양","언어/프레임워크","개발 언어는 JAVA로 구현되어야 한다.\nDB - my sql / ms sql 중 사용한다.\n--> MY SQL 로 구현",null,{"$f":"CONCATENATE((VLOOKUP(B13,'요건 건수'!$D$4:$E$20,2)),COUNTIFS(B$4:B13,B13))","v":"IST_01_10"},"VIP_J","2020-06-12","수용","2020-06-12"]
[null,"01_개발 사양","웹접근성","웹 접근성을 준수하는 형태로 구현한다.\n- 인증심사는 미진행하는 것으로 한다.",null,{"$f":"CONCATENATE((VLOOKUP(B14,'요건 건수'!$D$4:$E$20,2)),COUNTIFS(B$4:B14,B14))","v":"IST_01_11"},"정보보호팀",null,"수용","2020-12-07"]
[null,"01_개발 사양","제안솔루션","제안 기능에 대한 내용이 솔루션이 필요할 경우, 솔루션에 대한 소개 및 비용을 함께 제시하여야 한다.",null,{"$f":"CONCATENATE((VLOOKUP(B15,'요건 건수'!$D$4:$E$20,2)),COUNTIFS(B$4:B15,B15))","v":"IST_01_12"},"기획운영팀"]
[null,"02_I.F/MIG/연동/솔루션","데이터 연동","다음 시스템과 연동 개발이 진행되어야 한다.\n- 알림톡/SMS/LMS/E-mail/PUSH/개인화/기타연동시스템/WMS/CTI > 알림톡 신규 추가","WMS - API 인터페이스 진행, API는 업체 : Slow 개발 예정",{"$f":"CONCATENATE((VLOOKUP(B16,'요건 건수'!$D$4:$E$20,2)),COUNTIFS(B$4:B16,B16))","v":"IST_02_1"},"개발팀",null,"수용","2020-12-07","1.개인화는 없음\n2.CTI 연동은 고객인입 시 휴대전화번호로 연계하여 회원상세 페이지 노출하는 것으로 처리"]
[null,"02_I.F/MIG/연동/솔루션","마이그레이션","기존 운영중인 마이그레이션 방안을 제시하여야 한다.\n- 마이그레이션 범위는 별첨 시트_migration를 참조한다.",null,{"$f":"CONCATENATE((VLOOKUP(B17,'요건 건수'!$D$4:$E$20,2)),COUNTIFS(B$4:B17,B17))","v":"IST_02_2"},"기획운영팀",null,"수용","2020-12-07"]
[null,"02_I.F/MIG/연동/솔루션","배치관리","운영 필요시 배치가 생성되어야 하며 배치 관리를 진행할 수 있어야 한다.\n- 배치리스트 및 배치 실행할 수 있는 관리 툴 필요\n- 배치 중단 기능 필요\n- 배치에 대한 실행 텀 및 실행자 등의 히스토리 관리 필요","- 배치 목록\n- 배치 실행 기능\n- 배치 상태\n- 배치 실행 시간\n- 배치 실행자(아이디/이름)\n- 배치 중단\n- 배치 중단 시간\n- 배치 중단 사유",{"$f":"CONCATENATE((VLOOKUP(B18,'요건 건수'!$D$4:$E$20,2)),COUNTIFS(B$4:B18,B18))","v":"IST_02_3"},"기획운영팀",null,"수용","2020-12-07","이미 실행되고 있는 배치 서비스에 대한 중단은 할 수 없다. 단, 다음 실행부터의 중단 기능은 적용 가능"]
[null,"02_I.F/MIG/연동/솔루션","상품등록솔루션","입점사의 상품 등록 솔루션을 지원 해야 한다.\n- 사방넷/플레이오토/샵링커/ec모니터",null,{"$f":"CONCATENATE((VLOOKUP(B19,'요건 건수'!$D$4:$E$20,2)),COUNTIFS(B$4:B19,B19))","v":"IST_02_4"},"패션팀",null,"불가","2020-12-07","입점사에 대해서는 어드민이 완료된 후 셀러툴 업체에서 진행해야 한다.",null,"A2002"]
[null,"02_I.F/MIG/연동/솔루션","수집/분석","광고 분석 툴에 대한 설치/수집/동작할 수 있도록 하여야 한다.\n- 페이스북 픽셀 툴에 대한 설치가 진행 되어야 한다.\n- 구글 리타겟팅 툴에 대한 설치가 진행 되어야 한다.",null,{"$f":"CONCATENATE((VLOOKUP(B20,'요건 건수'!$D$4:$E$20,2)),COUNTIFS(B$4:B20,B20))","v":"IST_02_5"},"기획운영팀",null,"수용","2020-12-07","광고스크립트임"]
[null,"02_I.F/MIG/연동/솔루션","수집/분석","포털 로봇 수집, SEO에 대한 대응이 진행되어야 한다.",null,{"$f":"CONCATENATE((VLOOKUP(B21,'요건 건수'!$D$4:$E$20,2)),COUNTIFS(B$4:B21,B21))","v":"IST_02_6"},"기획운영팀",null,"수용","2020-12-07","온라인몰은 보통 봇의 수집을 막지 않습니다. 막지 않는 것으로 처리할께요."]
[null,"02_I.F/MIG/연동/솔루션","수집/분석","로그분석 툴을 설치 하여 수집 및 동작할 수 있도록 하여야 한다.\n- 구글 Analytics 분석 툴을 설치 하며, 영역별 GTM 수집을 진행 하여야 한다.\n- 비즈 스프링 툴을 설치 하여야 한다.\n- 온사이트 툴에 대한 설치가 진행 되어야 한다.",null,{"$f":"CONCATENATE((VLOOKUP(B22,'요건 건수'!$D$4:$E$20,2)),COUNTIFS(B$4:B22,B22))","v":"IST_02_7"},"기획운영팀",null,"수용","2020-12-07","GA만 적용하면 된다.\n추가로 \"추천 스크립트\"를 적용해야 한다."]
[null,"02_I.F/MIG/연동/솔루션","외부검색/EP 연동","네이버 EP 연동을 진행 하여야 한다.",null,{"$f":"CONCATENATE((VLOOKUP(B23,'요건 건수'!$D$4:$E$20,2)),COUNTIFS(B$4:B23,B23))","v":"IST_02_8"},"패션팀",null,"수용","2020-12-07"]
[null,"02_I.F/MIG/연동/솔루션","집계/연동 성능","전시 반영 집계 및 상품 입고 관련 인터페이스에 대한 적용 텀을 개선한다.\n- 전시 가격/ 품절 집계 최대 10분 단위\n- 입고반영, 재고반영 인터페이스 최대 10분단위로 개선",null,{"$f":"CONCATENATE((VLOOKUP(B24,'요건 건수'!$D$4:$E$20,2)),COUNTIFS(B$4:B24,B24))","v":"IST_02_9"},"기획운영팀",null,"수용","2020-12-07","1. 가격 예약은 시간배치로 진행합니다.\n2. 상품의 품절 및 재고 처리에 대해 10분 단위의 개선은 WMS 시스템에서 지원이 가능한지 확인 필요하며, 지원된다면 가능합니다."]
[null,"03_화면UI공통","Footer","사업자 관련 정보를 FOOTER를 통해 확인할 수 있어야 한다.\n- 사업자 정보에 대한 확인을 할 수 있어야 한다.\n- 개인정보 취급방침, 약관에 대한 정보를 확인 할 수 있어야 한다.\n- 구매안전서비스 서비스 내역에 대한 정보를 확인 할 수 있어야 한다.\n- 자 사 facebook 및 인스타그램으로 이동할 수 있는 링크를 제공해야 한다.\n- 고객센터 번호를 확인할 수 있어야 한다.\n- 대표자및 통신판매 신고정보 등을 확인할 수 있어야 한다.\n- ISMS 심사 내역에 대한 정보를 확인할 수 있어야 한다.",null,{"$f":"CONCATENATE((VLOOKUP(B25,'요건 건수'!$D$4:$E$20,2)),COUNTIFS(B$4:B25,B25))","v":"IST_03_1"},"기획운영팀",null,"수용","2020-12-07"]
[null,"03_화면UI공통","header/GNB/공통UI","공통 사용성을 위한 효과적인 메뉴 구성과 사용자 동선이 수립되어야 한다.\n- GNB 메뉴를 관리자에서 등록/수정할 수 있어야 한다.(PC/MO)\n- 모바일 네비게이션 및 GNB 에 대한 UI/UX가 개선되어야 한다.\n- 모바일 퀵바를 제시하여야 한다. (모웹 및 App 공통)\n- 최근 본 상품은 DB 방식으로 User당 최근 50개를 기준으로 제공해야 한다.\n- PC 퀵 메뉴가 구현되어야 한다.\n- 모바일에서는 back 버튼이 제공되어야 한다. \n- History back 기능을 수행하였을 시 직전 보던 페이지의 정확한 좌표로 이동하여야 한다. (전시 또는 검색 등의 특이 케이스에서만 적용)\n- 모바일에서는 스와이프 백 기능이 이루어져야 한다.",null,{"$f":"CONCATENATE((VLOOKUP(B26,'요건 건수'!$D$4:$E$20,2)),COUNTIFS(B$4:B26,B26))","v":"IST_03_2"},"기획운영팀",null,"수용","2020-12-07","1. 스와이프백(기획쪽과 확인)\n2. 히스토리백(상품목록의 해당 위치로 복귀 여부 확인)"]
[null,"03_화면UI공통","LOGO/GUIDE","로고/가이드를 신규 수립하여야 한다.\n- 디바이스에 적합한 폰트를 제안하여야 한다.\n- 로고 및 키 컬러를 신규 수립하여야 한다.\n- 신규 코치마크 및 아이콘, 앱스토어 이미지를 제작하여야 한다.",null,{"$f":"CONCATENATE((VLOOKUP(B27,'요건 건수'!$D$4:$E$20,2)),COUNTIFS(B$4:B27,B27))","v":"IST_03_3"},"기획운영팀",null,null,null,"진행 관련 협의 필요\n기획업체(펜타)에서 진행"]
[null,"03_화면UI공통","공통가이드","사이트 운영 전반 배너,팝업의 구좌/ 디자인가이드 / 적합한 해상도를 제공하여야 한다.\n- 최저 가로 사이즈 1300px 기준\n- 디자인 텍스트가 아닌 TEXT입력을 활용하는 구조의 UI를 제안하여야 한다.\n- 모바일/PC 이미지 동비율로 사용하여 활용성 높일 수 있도록 고려해야 한다.\n- 와이드 배너 도입을 고려해야 한다.\n- PC의 해상도를 확대하여 와이드 화면에 대한 구현이 가능해야 한다.\n- 다양한 배너/컨텐츠 등록 영역이 구현되어야 한다. (커스텀 가능한 구조)\n(신규회원혜택/앱설치배너 영역/spot 운영가능한 hidden 구좌 등)\n- 배너 컨텐츠는 PC/모바일 통합 사용 가능한 형태로 최대한 구현 되어야 한다.",null,{"$f":"CONCATENATE((VLOOKUP(B28,'요건 건수'!$D$4:$E$20,2)),COUNTIFS(B$4:B28,B28))","v":"IST_03_4"},"기획운영팀",null,"수용","2020-12-07","최저 해상도 확인 필요\n- 갤럭시폴드폰이 관건"]
[null,"03_화면UI공통","공통기능","페이지 공유 하기 기능을 제공하여야 한다.\n- 공유하기 기능 제공 채널 : 카카오톡/페이스북/인스타그램/트위터/URL복사\n- 해당 페이지 : 상품 상세 / 기획전 / 이벤트",null,{"$f":"CONCATENATE((VLOOKUP(B29,'요건 건수'!$D$4:$E$20,2)),COUNTIFS(B$4:B29,B29))","v":"IST_03_5"},"기획운영팀",null,null,null,"인스타그램은 확인 필요? (DM만 된다고?)"]
[null,"04_카테고리","진열카테고리","전시 카테고리(진열카테고리)는 확장성이 담보되어야 한다.\n- 1~5depth 내에서 자유롭게 생성/변경이 가능하여야 한다.\n- leaf 카테고리를 사용자가 자유롭게 설정할 수 있어야 한다. (1~3 등 leaf가 자유롭게 구성될 수 있는 구조)\n- 전시/비전시/상품의 일괄추가/카테고리명 변경 등이 가능해야 한다.",null,{"$f":"CONCATENATE((VLOOKUP(B30,'요건 건수'!$D$4:$E$20,2)),COUNTIFS(B$4:B30,B30))","v":"IST_04_1"},"패션팀",null,"수용","2020-12-07"]
[null,"04_카테고리","진열카테고리","전시 카테고리는 신규로 구성 하여야 하며, 기존 상품의 매핑을 진행하여야 한다.",null,{"$f":"CONCATENATE((VLOOKUP(B31,'요건 건수'!$D$4:$E$20,2)),COUNTIFS(B$4:B31,B31))","v":"IST_04_2"},"패션팀",null,"수용","2020-12-07"]
[null,"04_카테고리","표준관리","매출 카테고리 관리(표준카테고리) 관리가 별도로 가능하여야 한다.\n- 매출카테고리는 md 담당자가 매핑되어야 한다.",null,{"$f":"CONCATENATE((VLOOKUP(B32,'요건 건수'!$D$4:$E$20,2)),COUNTIFS(B$4:B32,B32))","v":"IST_04_3"},"패션팀",null,"수용","2020-12-07","품목카데고리이다. MD담당자를 매핑하지 않아도 되며 브랜드로만 매핑하면 된다. (정지혜과장). 브랜드로 MD담당자를 매핑한다."]
[null,"04_카테고리","표준관리","라이프 스타일 카테고리를 신설 하고 데이터는 API를 통해 연동한다.\n- YES24 기프트 카테고리 중 대상 내용을 선정하여 연동한다.\n- 주문에 대한 처리는 YES24 기프트 측 물류창고에서 처리 하므로 관련 주문내역에 대한 전달 방안에 대한 협의가 필요하다.",null,{"$f":"CONCATENATE((VLOOKUP(B33,'요건 건수'!$D$4:$E$20,2)),COUNTIFS(B$4:B33,B33))","v":"IST_04_4"},"VIP_J",null,null,null,"범위에서 제외 (7/16)"]
[null,"04_카테고리","표준관리","기존 패션 입점 업체에 대해서는 퇴점 절차를 진행 한다.\n- 패션 외 카테고리 현재 미정",null,{"$f":"CONCATENATE((VLOOKUP(B34,'요건 건수'!$D$4:$E$20,2)),COUNTIFS(B$4:B34,B34))","v":"IST_04_5"},"기획운영팀",null,"수용","2020-12-07","한나래 대리 확인 완료. 목록 최종 컨펌 완료 (정지혜과장)"]
[null,"05_검색/전시공통","INDEXING / 크롤링","향후의 유지보수 시 필터 확장이 가능 해야 한다.\n색인을 업데이트한 후 화면에 노출할경우 배치타임은 최대 10분을 초과하여서는 안된다.",null,{"$f":"CONCATENATE((VLOOKUP(B35,'요건 건수'!$D$4:$E$20,2)),COUNTIFS(B$4:B35,B35))","v":"IST_05_1"},"기획운영팀",null,null,null,"검색엔진 솔루션을 확인 필요"]
[null,"05_검색/전시공통","검색 기능","검색 시 결과 값을 개선시키기 위한 기능이 가능해야 한다.\n- 검색 자동완성\n- 인기 검색어\n- 연관 검색어(자동 - 사용자 검색 log 누적기반/수동-관리자 설정 두가지 가능하도록 필요)\n- 검색어 별 인기 상품 결과 노출\n- 검색어 별 바로가기 배너 및 바로가기 링크 정보 제공 및 관리\n- 초성 검색\n- 영문 입력 시 한글로 자동 변환 결과 호출\n- 오타 자동 보정\n- 키워드별 카테고리 부스팅\n- 사전 관리, 동의어 관리, 유의어 관리\n- 상품 태그 값에 대한 검색 지원\n- 광고 상품에 대한 검색 상위 노출 기능",null,{"$f":"CONCATENATE((VLOOKUP(B36,'요건 건수'!$D$4:$E$20,2)),COUNTIFS(B$4:B36,B36))","v":"IST_05_2"},"기획운영팀",null,null,null,"검색엔진 솔루션을 확인 필요"]
[null,"05_검색/전시공통","검색 기능","검색어 입력의 범주는 다음과 같은 기능을 제공해야 한다.\n- 품번(스타일넘버)검색\n- 상품 번호 검색\n- 상품 명 검색\n- 브랜드 명 검색\n- 기획전 명 검색\n- 이벤트 명 검색\n- 상품평 검색",null,{"$f":"CONCATENATE((VLOOKUP(B37,'요건 건수'!$D$4:$E$20,2)),COUNTIFS(B$4:B37,B37))","v":"IST_05_3"},"기획운영팀",null,"수용","2020-12-07","검색엔진 솔루션을 확인 필요"]
[null,"05_검색/전시공통","검색 기능","검색 필터를 통작할 수 있어야 한다.\n- 다중 브랜드 선택이 가능하도록 처리한다.\n- 다중 카테고리 선택이 가능하도록 처리 한다.\n- 필터링은 선택 즉시 필터링(필터 설정 검색이 아닌 즉시 검색)이 가능하도록 처리한다.\n- 결과에 따라 가격이 자동 6분할 되도록 처리 한다.\n- 품절 필터링이 되도록 처리한다(사이즈에 대한 품절 필터링 포함한 단품 필터링까지를 의미한다)\n- 사이즈 필터링이 되도록 처리한다(유아/성인/신발 분기처리요청)\n- 시즌으로 필터링이 되도록 처리한다.(봄/여름/가을/겨울/사계절)\n- 혜택으로 필터링 되도록 처리한다.(쿠폰/무료배송/온라인단독/단독특가/사은품/예약배송)\n- 성별로 필터링 되도록 처리 한다.(남성/여성/공용)\n- Age 필터링이 되도록 처리 한다(베이비/토들러/키즈/주니어/성인 etc)\n- 할인율로 조회 결과를 필터링 하도록 처리 한다. (바 형태의 할인율 설정, 고정 기준 없음)\n- 신상/ 이월 여부로 필터링 하도록 처리한다.(신상/이월)\n- 유니섹스 상품을 별도 필터링 하도록 처리한다.(유니섹스 상품 제외/포함)\n- 소재 로 필터링 하도록 처리 한다. 소재 정보는 확장이 가능해야 한다.\n- 색상을 자동으로 필터링 할 수 있어야 한다.(이미지를 확인 후 자동 색상 추출/ 데이터 입력하는 형태 아님)\n- 결과 내 재검색을 진행할 수 있어야 한다.(결과 내 필터 적용)",null,{"$f":"CONCATENATE((VLOOKUP(B38,'요건 건수'!$D$4:$E$20,2)),COUNTIFS(B$4:B38,B38))","v":"IST_05_4"},"기획운영팀\n한세드림\n한세MK",null,null,null,"검색엔진 솔루션을 확인 필요"]
[null,"05_검색/전시공통","검색 특이 기능","스마트 렌즈(이미지 검색) 기능 도입",null,{"$f":"CONCATENATE((VLOOKUP(B39,'요건 건수'!$D$4:$E$20,2)),COUNTIFS(B$4:B39,B39))","v":"IST_05_5"},"한세MK",null,null,null,"범위에서 제외 (7/16)"]
[null,"05_검색/전시공통","검색결과","검색 결과 페이지에는 다음 정보들이 노출되어야 한다.\n- 연관 검색어\n- 해당 검색어로 인기 있는 상품\n- 바로가기 \n- 상품 검색결과(상품에는 딜/세트/일반 모두 포함)\n- 상품평 검색 결과\n- 기획전 검색 결과\n- 이벤트 검색 결과",null,{"$f":"CONCATENATE((VLOOKUP(B40,'요건 건수'!$D$4:$E$20,2)),COUNTIFS(B$4:B40,B40))","v":"IST_05_6"},"기획운영팀"]
[null,"05_검색/전시공통","검색결과","웹진(SNAPP) 컨텐츠에 대해서도 검색 결과 페이지에 노출되어야 한다.",null,{"$f":"CONCATENATE((VLOOKUP(B41,'요건 건수'!$D$4:$E$20,2)),COUNTIFS(B$4:B41,B41))","v":"IST_05_7"},"한세MK",null,null,null,"콘텐츠 연결 범위에서 제외 (7/16)"]
[null,"05_검색/전시공통","검색화면 소팅 및 동작","검색 화면에서는 다음과 같은 동작이 가능 해야 한다.\n- 소팅이 제공되어야 한다(인기상품순/최신등록순/낮은가격순/높은가격순)\n- 페이지에서 상품을 터치 하고 HISTORY BACK 할 시 해당 조회하던 좌표로 노출되어야 한다.\n- 페이지의 마지막에 도달했을때는 관련 안내가 노출되어야 한다.\n- PC에서는 한 페이지에서 노출되는 상품 수를 지정할 수 있어야 한다.",null,{"$f":"CONCATENATE((VLOOKUP(B42,'요건 건수'!$D$4:$E$20,2)),COUNTIFS(B$4:B42,B42))","v":"IST_05_8"},"기획운영팀",null,"수용","2020-12-07"]
[null,"05_검색/전시공통","공통상품전시규칙수립","상품 전시 시 우선 세팅되는 경우, 기간과 우선순위를 지정할 수 있어야 한다.\n상품 전시 시 상품코드 단위로 전시 한다.\n전시가격 노출은 실시간 성 페이지(상품상세/주문서/주문상세) 외 전체 공통 룰에 따른다.",null,{"$f":"CONCATENATE((VLOOKUP(B43,'요건 건수'!$D$4:$E$20,2)),COUNTIFS(B$4:B43,B43))","v":"IST_05_9"},"기획운영팀",null,"수용","2020-12-07"]
[null,"05_검색/전시공통","공통전시템플릿","다양한 전시템플릿을 관리자가 모듈형태로 설정하고 별도 개발 없이 선택한 내용이 FRONT에 정상적으로 노출되어야 한다.\n- 이벤트/기획전/카테고리/브랜드샵메인과 같은 메뉴는 상기와 같은 템플릿을 조합하여 구현하는 템플릿-페이지 조합이 되어야 한다.\n- 각 코너별 운영기간을 설정할 수 있어야 한다.\n- 관리자를 통해 슬라이드형태의 상품/더보기 유형의 상품 전시 코너를 제공해야 한다.\n- 상품 코너의 상품 노출 스타일은 다양하게 제공되어야 한다(설명하는 유형/상품가격없는유형/아이콘미노출유형 등)\n- 상품의 리스트 노출에 대한 개별 제어가 가능해야한다(상품의 전시 순번, 스타일, 진열열수, 리스트처리방법 등)\n- 신상품/베스트 상품 과 같은 유형은 기준 등록 시, 노출 될수 있도록 코너를 제공해야한다.\n- 관리자를 통해 슬라이드 배너 / 더보기 배너 를 생성할 수 있도록 코너를 제공해야 한다.\n- 관리자를 통해 쿠폰을 전시할 수 있어야 한다.(쿠폰번호/기간/순서)\n- 디자인을 하여 코딩으로 처리할 수 있는 쿠폰 다운로드 스크립트를 함께 제공하여야 한다.\n- 관리자를 통해 이미지를 기간별로 전시할 수 있어야 한다..\n- 관리자를 통해 HTML 을 기간별로 전시할 수 있어야 한다.\n- HTML은 에디터를 통해 등록할수 있어야 한다.\n- 관리자를 통해 댓글/이미지첨부 형태를 셋팅할 수 있어야 한다.\n- 관리자를 통해 댓글 게시판의 리스트 형태를 셋팅할 수 있어야 한다\n- 관리자를 통해 상품리뷰를 전시할 수 있는 코너 셋팅을 제공해야 한다.\n- 위의 템플릿 유형은 기간과 순번에 따라 코너를 조합하여 셋팅할 수 있어야 한다.",null,{"$f":"CONCATENATE((VLOOKUP(B44,'요건 건수'!$D$4:$E$20,2)),COUNTIFS(B$4:B44,B44))","v":"IST_05_10"},"기획운영팀",null,"수용","2020-12-07"]
[null,"05_검색/전시공통","구분타이틀전시","구분타이틀 별 상품을 전시할 수 있어야 한다.\n- 관리자를 통해 구분타이틀 별 상품을 전시할 수 있어야 한다.\n- 구분 타이틀에는 타이틀 배너를 등록 하고 기간별/노출관리를 할 수 있어야 한다.\n- 구분 타이틀 별 1열당 상품 노출 개수를 지정할 수 있어야 한다.",null,{"$f":"CONCATENATE((VLOOKUP(B45,'요건 건수'!$D$4:$E$20,2)),COUNTIFS(B$4:B45,B45))","v":"IST_05_11"},"기획운영팀"]
[null,"05_검색/전시공통","상품목록","상품 목록에는 상기 정보가 반드시 포함되어야 한다.\n- 상품썸네일/상품아이콘/브랜드명/상품명/상품가격/찜/옵션(컬러칩or사이즈)\n- 세로형 썸네일을 기본으로 사용하여야 한다.\n- Pc- 마우스 썸네일 오버 시, 옵션노출/찜 등의 기능이 제공되어야 한다.\n- 사이즈옵션의 경우 품절과 비품절 옵션에 대한 구분을 할 수 있도록 처리한다.",null,{"$f":"CONCATENATE((VLOOKUP(B46,'요건 건수'!$D$4:$E$20,2)),COUNTIFS(B$4:B46,B46))","v":"IST_05_12"},"한세MK"]
[null,"05_검색/전시공통","화면의 제공","검색의 화면은 다음의 화면을 제공해야 하며 검색 엔진을 통해 타 페이지 부스팅시 관련 화면은 명시 및 검토가 필요하다.\n- 검색 입력 화면(자동완성 및 관련 내용)\n- 통합검색 결과 화면 (결과 있음/없음)\n- 단일 브랜드 샵에서의 검색결과 화면\n- 단일 브랜드 샵에서의 카테고리 상품목록\n- 카테고리 상품목록\n- 재검색 결과(결과 있음/없음)",null,{"$f":"CONCATENATE((VLOOKUP(B47,'요건 건수'!$D$4:$E$20,2)),COUNTIFS(B$4:B47,B47))","v":"IST_05_13"},"기획운영팀"]
[null,"06_브랜드샵","개별브랜드샵","브랜드의 룩북/카탈로그/쇼룸 컨텐츠를 구성하고 전시할 수 있어야 한다.(개별 카테고리 사용하지 않는 경우, 룩북/카탈로그/쇼룸 카테고리로 사용하면 됨)\n- 화보 컷/ 화보컷에 대한 설명을 넣을 수 있어야 한다.\n- 화보 컷에 피커태그와 같은 태그를 붙일수 있어야 한다.\n- Html 컨텐츠/ 에디터 등록할 수 있어야 한다.\n- 동영상(Youtube / upload)을 등록하면 front에서 스트리밍 지원이 되어야 한다.\n- 화보를 슬라이드 하여 조회할 수 있어야 한다.\n- 설정한 상품 일괄 장바구니 담기를 진행할 수 있어야 한다.",null,{"$f":"CONCATENATE((VLOOKUP(B48,'요건 건수'!$D$4:$E$20,2)),COUNTIFS(B$4:B48,B48))","v":"IST_06_1"},"한세MK"]
[null,"06_브랜드샵","개별브랜드샵","개별 브랜드 페이지는 브랜드 사이트의 수준으로 운영할 수 있어야 한다.\n- 브랜드 페이지 메인을 제공해야 한다.\n- 브랜드 페이지 메인은 커스텀 하여 진행할 수 있어야 한다.\n- 브랜드 페이지 메인의 커스텀 가능 범위는 구좌의 순서, 전시 등을 비롯해 전시공통과 동일한 수준의 템플릿 구현구조를 따른다.",null,{"$f":"CONCATENATE((VLOOKUP(B49,'요건 건수'!$D$4:$E$20,2)),COUNTIFS(B$4:B49,B49))","v":"IST_06_2"},"한세MK"]
[null,"06_브랜드샵","개별브랜드샵","브랜드 페이지에서 브랜드 별 개별 카테고리를 생성 및 상품 전시를 진행할 수 있다.\n- 개별 카테고리를 사용하지 않을 경우 공통 전시 카테고리를 사용한다.\n- 브랜드 별 카테고리 목록에서는 신상품 순으로 상품을 소팅한다.\n- 브랜드 카테고리 목록에도 이월상품이 노출되어야 한다. (사용자화면상 구분은 안됨)\n- 브랜드 카테고리에서는 정상/이월 상품을 구분할 수 있어야 한다.\n- 브랜드 별 카테고리 목록에서 상품의 전시를 임의 세팅할 경우, 세팅 상품이 우선 노출되도록 한다.",null,{"$f":"CONCATENATE((VLOOKUP(B50,'요건 건수'!$D$4:$E$20,2)),COUNTIFS(B$4:B50,B50))","v":"IST_06_3"},"패션팀"]
[null,"06_브랜드샵","브랜드인덱스","브랜드 인덱스 페이지가 생성되어야 한다.\n- 브랜드는 GNB에 노출되어야 하며, 인덱스 페이지 外 레이어 페이지도 함께 구현되어야 한다.\n- 자사 브랜드의 대표 이미지가 노출되어야 한다.\n- 브랜드 목록 조회 시 위탁브랜드(자사)는 강조 처리 하도록 UI를 설계한다.\n- 브랜드 목록 조회 시 가나다 / ABC 순으로 브랜드 목록이 노출되는 화면을 생성한다.\n- 해당 자음 클릭 시 해당 앵커위치로 이동되어야 한다.\n- 모바일용 인디케이터를 제공해야 한다.\n- 브랜드 명 검색을 제공하여야 한다.",null,{"$f":"CONCATENATE((VLOOKUP(B51,'요건 건수'!$D$4:$E$20,2)),COUNTIFS(B$4:B51,B51))","v":"IST_06_4"},"한세MK"]
[null,"07_전시메뉴","베스트","베스트 메뉴는 유지 하고 로직 및 페이지를 다시 설계한다.\n- 데이터는 1~100위 까지로 노출하며 상품은 가중치를 부여 한다.\n- 카테고리별 데이터를 노출할 수 있도록 한다.\n- 기획전 등은 제거한다.",null,{"$f":"CONCATENATE((VLOOKUP(B52,'요건 건수'!$D$4:$E$20,2)),COUNTIFS(B$4:B52,B52))","v":"IST_07_1"},"기획운영팀",null,"수용","2020-12-07"]
[null,"07_전시메뉴","쇼룸/카탈로그/룩북","브랜드 샵에 등록 한 쇼룸/카탈로그/룩북을 전체 모아 볼수 있는 메뉴를 구현해야 한다.",null,{"$f":"CONCATENATE((VLOOKUP(B53,'요건 건수'!$D$4:$E$20,2)),COUNTIFS(B$4:B53,B53))","v":"IST_07_2"},"기획운영팀",null,"수용","2020-12-07"]
[null,"07_전시메뉴","아울렛","이월 상품만을 전시 하는 아울렛 메뉴를 신설한다.\n- 아울렛 內 배너 및 상품 전시 영역이 구현되어야 한다.\n- 아울렛 상품을 해당 아울렛 페이지에서 조회할 수 있어야 한다.\n- 할인율로 소팅할 수 있어야 한다.",null,{"$f":"CONCATENATE((VLOOKUP(B54,'요건 건수'!$D$4:$E$20,2)),COUNTIFS(B$4:B54,B54))","v":"IST_07_3"},"패션팀",null,"수용","2020-12-07"]
[null,"07_전시메뉴","총알배송","당일 배송 상품만을 노출 하는 총알 배송 메뉴를 신설한다.\n- 총알 배송 협력처에 해당 하는 상품에 한하여 노출한다.\n- 당일 배송 배송지인지를 조회할 수 있는 기능을 제공해야 한다.\n- 우편번호 기준으로 해당 권역인지 구분함 (주소 직접 입력 또는 배송지 정보 호출하여 사용)\n- 총알배송 가능 지역이 아닌 경우, 일반 배송으로 진행됨",null,{"$f":"CONCATENATE((VLOOKUP(B55,'요건 건수'!$D$4:$E$20,2)),COUNTIFS(B$4:B55,B55))","v":"IST_07_4"},"기획운영팀",null,"수용","2020-12-07","새벽배송으로 변경 시 별도로 협의 진행 필요"]
[null,"07_전시메뉴","하루특가","특가 노출 메뉴로 활용 특가 진행 시간/판매 수량등을 노출 할 수 있도록 한다.",null,{"$f":"CONCATENATE((VLOOKUP(B56,'요건 건수'!$D$4:$E$20,2)),COUNTIFS(B$4:B56,B56))","v":"IST_07_5"},"기획운영팀",null,"수용","2020-12-07"]
[null,"08_이벤트/기획전","생성관리","관리자 페이지에서 기획전의 생성 및 관리가 가능해야 한다.\n- 기획전 번호/기획전 명 다중 조회 가능\n- 업체 기획전 별도 관리\n- 기획전 페이지의 접근 조건의 제어가 가능해야 한다.(등급별/접속채널별/회원유형별)\n- 기획전의 운영 기간을 지정할 수 있어야 한다.\n- 기획전 구분타이틀 별 운영 기간을 지정할 수 있어야 한다.",null,{"$f":"CONCATENATE((VLOOKUP(B57,'요건 건수'!$D$4:$E$20,2)),COUNTIFS(B$4:B57,B57))","v":"IST_08_1"},"기획운영팀",null,"수용","2020-12-07","SCM 시스템에 \"기획전관리\" 메뉴 필요"]
[null,"08_이벤트/기획전","응모관리","이벤트에 대한 응모내역 관리를 진행할 수 있어야 한다.\n- 응모자 목록을 확인할 수 있어야 한다.\n- 응모자의 응모한 내용을 확인할 수 있어야 한다. \n- 이벤트 별 적재된 내역을 엑셀 다운로드 할 수 있어야 한다.",null,{"$f":"CONCATENATE((VLOOKUP(B58,'요건 건수'!$D$4:$E$20,2)),COUNTIFS(B$4:B58,B58))","v":"IST_08_2"},"기획운영팀",null,"수용","2020-12-07"]
[null,"08_이벤트/기획전","자동템플릿","출석 체크 이벤트의 경우, 관리자 세팅을 통하여 즉시 진행이 가능한 템플릿 형태로 구현되어야 한다.",null,{"$f":"CONCATENATE((VLOOKUP(B59,'요건 건수'!$D$4:$E$20,2)),COUNTIFS(B$4:B59,B59))","v":"IST_08_3"},"기획운영팀",null,"수용","2020-12-07"]
[null,"08_이벤트/기획전","자동템플릿","라디오/멀티선택/간략입력이 가능한 설문 툴이 구현되어야 한다.",null,{"$f":"CONCATENATE((VLOOKUP(B60,'요건 건수'!$D$4:$E$20,2)),COUNTIFS(B$4:B60,B60))","v":"IST_08_4"},"기획운영팀",null,"수용","2020-12-07"]
[null,"08_이벤트/기획전","자동템플릿","댓글이벤트/ 이미지첨부 게시판(게시판스타일지정) 이 구현되어야 한다.",null,{"$f":"CONCATENATE((VLOOKUP(B61,'요건 건수'!$D$4:$E$20,2)),COUNTIFS(B$4:B61,B61))","v":"IST_08_5"},"기획운영팀",null,"수용","2020-12-07","착장컷 이벤트 같은 걸 진행 시 고객이 이미지를 첨부할 수 있는 기능"]
[null,"08_이벤트/기획전","조건관리","접근 조건 및 권한, 응모조건을 세팅할 수 있어야 한다.\n- 관리자를 통해 응모에 대한 조건을 셋팅할 수 있어야 한다.(선착순/신규회원/등급/응모횟수제한)\n- 관리자를 통해 페이지 접근 권한을 셋팅할 수 있어야 한다.(채널/등급/신규회원)",null,{"$f":"CONCATENATE((VLOOKUP(B62,'요건 건수'!$D$4:$E$20,2)),COUNTIFS(B$4:B62,B62))","v":"IST_08_6"},"기획운영팀",null,"부분\n수용","2020-12-07","채널(제휴채널을 말함)\n- 선착순, 신규회원에 대한 상세 요구사항 정의 필요\n- 신규회원은 제외할 수 있음."]
[null,"09_상품관리","MD공지관리","상품 별 MD 공지를 관리자에서 진행할 수 있어야 한다.\n- 상품의 일괄로 설정할 수 있는 메뉴가 있어야 한다.\n- 상품을 여러 개 세팅할 수 있어야 한다.\n- 노출 기간/노출여부를 설정할 수 있어야 한다.\n- 에디터를 제공해야 한다.\n- 다수개 노출 할 수 있어야 한다.",null,{"$f":"CONCATENATE((VLOOKUP(B63,'요건 건수'!$D$4:$E$20,2)),COUNTIFS(B$4:B63,B63))","v":"IST_09_1"},"패션팀",null,"수용","2020-12-08",null,null,"A2011"]
[null,"09_상품관리","가격관리","상품의 가격 관리가 가능해야 한다.\n- 업체 상품의 경우, 승인 절차가 있어야 한다.\n- 상품의 가격 변경 예약이 가능해야 한다.(시간예약 必)\n- 상품별 가격 변경 이력이 적재되어야 한다.\n- 상품 가격은 일괄로 변경할 수 있어야 한다.\n- 상품 쿠폰이 적용되어 있을 경우, 쿠폰 적용가/쿠폰번호가 목록과 가격관리 영역에 표시되어야 한다.\n- 쿠폰적용가 에 대한 기준은 1차 상품쿠폰에 한한다.\n- 마이너스 가격/소수점 단위 가격은 등록이 불가해야 한다.\n- 가격은 1원단위부터 등록할 수 있다.",null,{"$f":"CONCATENATE((VLOOKUP(B64,'요건 건수'!$D$4:$E$20,2)),COUNTIFS(B$4:B64,B64))","v":"IST_09_2"},"패션팀",null,"수용","2020-12-08",null,null,"A2012"]
[null,"09_상품관리","딜상품","딜 상품\n- 이종의 상품을 1코드에 묶어서 보여주게만 하는 상품으로 실제 구매는 단품코드로 구매를 진행이 가능해야 한다.\n- 상품명/상품셀링문구/상품 목록 상 가격 안내 까지만 진행한다.\n- 상품 구매 시 가격은 해당 단품의 가격 정책에 따른다.\n- 단품에서 쿠폰이 별도로 적용되었을 경우 딜 상품의 코드를 추가하지 않더라도 자동 적용된다.\n- 상품 목록에 전시 등이 반드시 가능해야 하며, 전시 카테고리는 해당 단품들의 카테고리에 기본적으로 전시한다.\n- 매출은 단품 단위로 집계한다.\n- 품목고시정보/상품평/상품정보는 설정한 단품의 정보를 자동으로 호출 및 조회할 수 있도록 설계한다.\n- 구성 단품을 선택할 수 있는 UI를 제공해야 한다.",null,{"$f":"CONCATENATE((VLOOKUP(B65,'요건 건수'!$D$4:$E$20,2)),COUNTIFS(B$4:B65,B65))","v":"IST_09_3"},"패션팀",null,"수용","2020-12-08","딜상품의 구성상품 중 기준단품의 전시기준에 따라 전시된다.",null,"A2001"]
[null,"09_상품관리","무형상품","무형 상품(무배송상품)에 대한 판매 및 관리가 가능해야 한다.\n- 무배송 상품으로 등록되었을 경우, 별도 배송지시 로의 처리가 진행되지 않는다.\n- 무형상품의 경우 장바구니/결제를 분리하여 처리한다.\n- 환불에 대한 규정 별도 수립 필요",null,{"$f":"CONCATENATE((VLOOKUP(B66,'요건 건수'!$D$4:$E$20,2)),COUNTIFS(B$4:B66,B66))","v":"IST_09_4"},"한세MK","2020-06-12","요건제거",null,"회장님 리뷰이후 요청제거함(6/12)"]
[null,"09_상품관리","상품공통","front에서는 상품의 기본 정보와 혜택에 대해서 제공할 수 있어야 하며 관리자에서 전체 관리가 가능해야 한다.\n- 딜상품/세트상품/일반상품 모두 전체 전시 및 판매운영이 가능해야 한다.\n- 상품 가격 구조는 각 상품의 구조에 따른다.\n- 상품 가격 표시는 전시 전체 동일한 룰로 적용한다.\n- 상품 상세의 경우 실시간 조회를 통해 가격정보를 제공한다.",null,{"$f":"CONCATENATE((VLOOKUP(B67,'요건 건수'!$D$4:$E$20,2)),COUNTIFS(B$4:B67,B67))","v":"IST_09_5"},"기획운영팀",null,"수용","2020-12-08"]
[null,"09_상품관리","상품구분값관리","상품의 구분값 선택이 가능해야 한다.\n- 구분 : 신규/해외구매대행/주문제작상품/병행수입/중고/리퍼/전시/반품/스크래치\n- 반품가능여부 : Y/N\n- 상품노출여부 : 노출/비노출\n- 과세유형 : 과세/비과세\n- 구분 값에 따라 상품 상세 정보에 내용이 안내 되어야 한다.\n- 반품 가능여부가 N  일 경우, 상품의 Front 반품이 제한되어야 한다.\n- 해외구매대행/병행수입 상품일 경우 주문 시 통관번호 입력 란이 추가되어야 한다.\n- 주문제작상품의 경우 주문 시 책임동의에 대한 동의란이 추가되어야 한다.",null,{"$f":"CONCATENATE((VLOOKUP(B68,'요건 건수'!$D$4:$E$20,2)),COUNTIFS(B$4:B68,B68))","v":"IST_09_6"},"패션팀",null,"수용","2020-12-08",null,null,"A2001"]
[null,"09_상품관리","상품기본관리","관리자를 통해 상품의 전반을 관리 하고 판매를 진행할 수 있어야 한다.\n- 상품 번호의 구조는 1가지로 통일한다.\n- 세트/딜 상품의 등록 및 관리가 가능하여야 한다.\n- 상품의 등록/승인/가격관리/가격변경/상품상태 변경 등 단일 및 일괄업로드/수정기능으로 처리 가능해야 한다.\n- 상품의 품목정보에 대한 등록,수정,승인관리,일괄수정,변경,등록으로 진행할 수 있어야 한다.\n- 상품의 일괄 판매 승인/반려를 할 수 있어야 한다.\n- 상품의 판매 상태/판매 기간을 일괄 변경할 수 있어야 한다.\n- 상품의 복사 등록 기능이 제공되어야 한다.\n- 품목정보가 등록되지 않았을 경우 상품 판매 승인이 되면 안된다.\n- 배송안내를 저장.등록,수정하도록 제공되어야 한다.\n- 상품 정보 일괄 수정이 가능해야 한다.(품목,컨텐츠,상품기본정보,재고,상품공급처 등 상품의 제공되는 데이터 항목 전체)\n- 상품 기술서의 에디터 기능이 변경되어야 한다.\n- 상품의 예약 판매에 대한 설정을 진행할 수 있어야 한다.\n- 구매 제한에 대한 설정을 진행할 수 있어야 한다(구매수량,등급,신규회원구매에 따른 조건값등)",null,{"$f":"CONCATENATE((VLOOKUP(B69,'요건 건수'!$D$4:$E$20,2)),COUNTIFS(B$4:B69,B69))","v":"IST_09_7"},"패션팀",null,"수용","2020-12-08","1. 상품의 판매기간은 관리하지 않습니다. 상태로만 처리합니다.\n2. 상품의 복사 기능은 없습니다.\n3. 구매 제한에 대한 설정 (조건값)\n    - 구매수량: 있음\n    - 등급: 상품의 등급별 판매 제한 관리\n=> 상품관리 화면에 일괄변경 기능 추가하고 상품상세 화면의 \"구매등급\" 탭 추가\n    - 신규회원구매: 특정상품의 특정기간 내 가입한 회원\n=> 상품관리 화면에 일괄변경 기능 추가하고 상품사세 화면의 \"기본정보\"에 추가",null,"A2001\nA2002\nA2010"]
[null,"09_상품관리","상품정보","상품 정보에서 상품 기술서를 확인할 수 있어야 한다.\n- 상품 기술서 정보는 에디터를 통해 등록할 수 있어야 한다.\n- 모바일의 경우, 디바이스에 맞게 리사이징 되어야 한다.\n- 외부 링크가 걸려 있을 경우, 모바일에서 bacK을 하여도 처리되도록 방어책을 구현한다.",null,{"$f":"CONCATENATE((VLOOKUP(B70,'요건 건수'!$D$4:$E$20,2)),COUNTIFS(B$4:B70,B70))","v":"IST_09_8"},"기획운영팀",null,"수용","2020-12-08","- 외부 링크가 걸려 있을 경우, 모바일에서 bacK을 하여도 처리되도록 방어책을 구현한다.\n=> 처리 불가",null,"A2001"]
[null,"09_상품관리","상품정보","상품 정보에서 상품평을 조회할 수 있도록 제공 하여야 한다.\n- 선택한 옵션별로 상품평을 조회할 수 있어야 한다.\n- 별점 별 상품평을 조회할 수 있어야 한다.\n- 딜에 해당 하는 상품평은 딜에 묶여 있는 전체 상품평을 호출 하며, 상품별로 조회할 수 있어야 한다.\n- 포토 상품평만 골라 조회할 수 있는 UI를 제공하여야 한다.\n- 상품평에 대한 UI의 개선화면을 제공하여야 한다.",null,{"$f":"CONCATENATE((VLOOKUP(B71,'요건 건수'!$D$4:$E$20,2)),COUNTIFS(B$4:B71,B71))","v":"IST_09_9"},"패션팀",null,"수용","2020-12-08"]
[null,"09_상품관리","상품정보","상품 정보에서 상품 FAQ를 조회할 수 있도록 제공하여야 한다.\n- 비공개 글인 경우 작성자만 조회할 수 있어야 한다.",null,{"$f":"CONCATENATE((VLOOKUP(B72,'요건 건수'!$D$4:$E$20,2)),COUNTIFS(B$4:B72,B72))","v":"IST_09_10"},"기획운영팀",null,"수용","2020-12-08"]
[null,"09_상품관리","상품정보","상품정보에서 배송/반품/교환 안내를 노출할 수 있도록 제공하여야 한다.\n- 관리자에서 해당 정보를 상품별로 등록 할 수 있어야 한다.\n- 저장된 상품안내를 호출 할수 있는 형태로 제공되어야 한다.",null,{"$f":"CONCATENATE((VLOOKUP(B73,'요건 건수'!$D$4:$E$20,2)),COUNTIFS(B$4:B73,B73))","v":"IST_09_11"},"기획운영팀",null,"수용","2020-12-08"]
[null,"09_상품관리","상품정보","추천 상품 정보를 노출하여야 한다.(상품상세/카테고리/장바구니/브랜드매장 etc)\n- 브랜드별 많이 클릭/구매한 상품\n- 함께 구매하려는 상품\n- 해당 카테고리에서 많이 구매하는 상품\n- 같은 브랜드 다른상품\n- 현재 장바구니에 많이 담는 상품\n- 동일연령대에서 많이 본 상품",null,{"$f":"CONCATENATE((VLOOKUP(B74,'요건 건수'!$D$4:$E$20,2)),COUNTIFS(B$4:B74,B74))","v":"IST_09_12"},"한세MK",null,"수용","2020-12-08","솔루션 도입해 적용하기로 함"]
[null,"09_상품관리","세트상품","세트상품\n- 동일 공급처에 상품에 한하여 처리할 수 있다\n- 상품의 상세정보는 미등록 시 단품을 기준으로 모두 노출한다.\n- 고시 정보에 대해서는 단품읠 기준으로 자동 호출 한다.\n- 가격은 별도로 설정 하며, 원가율은 가격 비중으로 배분한다.",null,{"$f":"CONCATENATE((VLOOKUP(B75,'요건 건수'!$D$4:$E$20,2)),COUNTIFS(B$4:B75,B75))","v":"IST_09_13"},"패션팀",null,"수용","2020-12-08",null,null,"A2001"]
[null,"09_상품관리","아이콘관리","상품 아이콘의 관리가 가능해야 한다.\n- 해당 내용은 아이콘 기준 표에 따른다. (2~3개 정도가 적정)\n- 아이콘은 확장 가능한 형태로 설계 해야 한다.",null,{"$f":"CONCATENATE((VLOOKUP(B76,'요건 건수'!$D$4:$E$20,2)),COUNTIFS(B$4:B76,B76))","v":"IST_09_14"},"패션팀",null,"수용","2020-12-08","\"쿠폰할인, 무료배송, 단독특가(수동관리), 온라인단독(수동관리), 한정수량(수동관리), 사은품, 신상(정상)\" 등 자동으로 노출할 수 있는 아이콘만 적용하고 수동 관리는 안 한다."]
[null,"09_상품관리","옵션관리","상품의 옵션을 선택할 수 있어야 한다.\n- 옵션 생성이 관리자에서 가능해야 한다. => 엑셀로 대량으로 추가하는 기능은 된다.\n- 옵션 추가금은 운영한다.\n- 상품 옵션 선택 시 옵션별 잔여 재고값이 노출되어야 한다.\n- 색상/컬러/사이즈 등을 명확하게 표현할 수 있는 옵션 UI를 제공해야 한다.",null,{"$f":"CONCATENATE((VLOOKUP(B77,'요건 건수'!$D$4:$E$20,2)),COUNTIFS(B$4:B77,B77))","v":"IST_09_15"},"패션팀",null,"수용","2020-12-08","옵션 추가금을 운영하지 않는다는것은.. 예를 들어 가방구입시\n패션끈이 추가로 구매가 가능할 경우 어떻게 하실건지?\n- 관련상품같은걸로 별도 운영한다면 문제 없지만.. \n\n옵션의 정의를 동일제품의 사이즈, 컬러등으로만 제한한다는 말씀이신건지 확인 필요.\n\n그렇다면 추가 구성품이 상품에 같이 묶이는 Admin이 제공되어야 하는지도 확인 필요.",null,"A2001"]
[null,"09_상품관리","이미지/영상관리","상품 이미지/상품 대표 동영상 관리 기능을 제공해야 한다.\n- 상품 등록 된 이미지 순번 조정\n- 상품 이미지 선택 하여 대표이미지로 지정\n- 상품 이미지 수정/삭제\n- 상품 동영상 등록\n- 상품 GIF 생성 및 GIF 등록이 가능해야 한다. => GIF 이미지를 등록하는 것으로 한다.\n- 상품 컷 자동 리사이징(기존 리사이징 솔루션 有/ 해당 솔루션활용)\n- Front 상품이미지 오버 시 상품 확대 보기\n- 상품 직사각 컷에 대한 반영(기 정사각 이미지에 대한 처리방안)\n- 상품 동영상이나 GIF 등록 시 우선 노출 및 자동재생",null,{"$f":"CONCATENATE((VLOOKUP(B78,'요건 건수'!$D$4:$E$20,2)),COUNTIFS(B$4:B78,B78))","v":"IST_09_16"},"패션팀",null,"수용","2020-12-08","- 솔루션 도입해 적용하기로 함\n- 상품 동영상이나 GIF 등록 시 우선 노출 및 자동재생 => 솔루션 업체에 확인 필요",null,"A2001"]
[null,"09_상품관리","재고관리","상품의 재고 관리가 가능하여야 한다.\n- 외부몰과의 분할을 위한 상품 단품별 재고배분율을 설정할 수 있어야 한다.\n- 재고 배분율은 단품단위로 설정가능해야 한다.\n- 재고 배분율은 일괄 업데이트가 가능해야 한다.\n- 재고 배분율을 기준으로 자사몰의 재고는 설정되어야 한다.\n- 전체 재고 숫자 / 배분율/ 배분율 적용된 재고숫자/ 잔여재고 숫자가 표시되어야 한다.\n- 재고 관리는 상품 관리에서 함께 진행될 수 있어야 한다.\n- WMS와의 재고연동을 진행할 수 있어야 한다",null,{"$f":"CONCATENATE((VLOOKUP(B79,'요건 건수'!$D$4:$E$20,2)),COUNTIFS(B$4:B79,B79))","v":"IST_09_17"},"패션팀",null,"수용","2020-12-08","외부몰의 재고배분율은 100% 재고로 운영하기로 함.",null,"A2001\nA3001"]
[null,"09_상품관리","코디상품관리","코디 상품 정보를 관리 및 노출 할수 있어야 한다.\n- 코디 상품에 대한 등록 및 수정\n- 코디된 화보와 상품 정보\n- 상품 일괄 담기 기능\n- 코디 상품 정보 일괄 등록",null,{"$f":"CONCATENATE((VLOOKUP(B80,'요건 건수'!$D$4:$E$20,2)),COUNTIFS(B$4:B80,B80))","v":"IST_09_18"},"한세드림",null,"요건제거",null,"룩북으로 진행하기로 함",null,"미적용"]
[null,"09_상품관리","품목정보관리","상품의 품목정보에 대한 관리가 가능해야 한다.\n- 품목정보를 조회하고 엑셀 다운로드 받을 수 있는 화면이 구성되어야 한다.\n- 품목정보를 일괄 수정 및 승인할 수 있어야 한다.\n- 개별 상품의 품목정보에 대한 변경 및 수정을 진행할 수 있어야 한다.\n- 품목정보는 각 고시 품목별 기본 템플릿이 제공되어야 한다.\n- 품목정보의 상품 조회는 일괄 조회 등이 가능해야 한다.\n- 안전인증 등이 필수인 품목은 해당 값이 정상적인 값인지 검증할 수 있어야 한다.(api 검증필요)\n- 제조국 등의 품목 국가에 대해서는 국가 코드로의 등록 및 관리가 별도로 이루어져야 한다.",null,{"$f":"CONCATENATE((VLOOKUP(B81,'요건 건수'!$D$4:$E$20,2)),COUNTIFS(B$4:B81,B81))","v":"IST_09_19"},"패션팀",null,"수용","2020-12-08","품목정보는 고시정보를 의미한다.",null,"A2014"]
[null,"09_상품관리","품절입고알림","품절이 된 옵션에 대한 재입고 알림을 설정할 수 있어야 한다.\n- 재고가 품절일 시, 재입고 알림 버튼이 노출되어야 한다.\n- 재입고 알림을 선택 했을 시 재고가 들어왔을 경우 알림이 사용자에게 발송되어야 한다.",null,{"$f":"CONCATENATE((VLOOKUP(B82,'요건 건수'!$D$4:$E$20,2)),COUNTIFS(B$4:B82,B82))","v":"IST_09_20"},"기획운영팀",null,"수용","2020-12-08","알림톡 또는 푸시 중에 하나로 처리",null,"A2001"]
[null,"10_프로모션","다다익선","다다익선 프로모션 구조가 구현되어야 한다.\n- 수량 별 할인, 금액 별 할인 두가지 구조를 구현 한다.\n- 행사 상품을 할인 받기 위한 기본 조건을 설정할 수 있어야 한다.(특정 상품 N만원 이상 구매, 특정 상품 N 개 이상 구매)\n- 수량 별 할인은 개수 조건을 최대 5개 까지 생성할 수 있어야 한다. (입력항목: 갯수, 할인값(=율 또는 금액))\n- 행사 상품/브랜드/공급처를 지정할 수 있어야 한다.\n- 수량 합산인지 수량 개별인지 지정할 수 있어야 한다. (전체상품의 갯수를 합산할건지? 특정상품 수량만 볼건지?)\n- 예외 상품을 등록할 수 있어야 한다.\n- 수량할인과 금액 할인 프로모션은 중첩 적용될 수 있어야 한다. (이슈 확인 후 다시 협의하기로 함)\n- 프로모션에 대한 안내가 상품 상세 정보에 표시되어야 한다.\n- 장바구니에서 수량이나 금액이 충족되면, 할인 계산이 적용되어야 한다.\n- 클레임으로 인한 허들이 무너졌을 경우 할인 금액은 비례 배분하여 환수한다.",null,{"$f":"CONCATENATE((VLOOKUP(B83,'요건 건수'!$D$4:$E$20,2)),COUNTIFS(B$4:B83,B83))","v":"IST_10_1"},"한세MK",null,"수용","2020-12-08","다다익선의 세부 기능은 다음과 같다.\n\n1. 할인유형: 수량할인/금액할인 두 가지 구조를 구현해야 한다.\n2. 행사상품을 할인 받기 위한 기본 조건을 설정할 수 있어야 한다. (예, 특정상품 N만원 이상 구매, 특정상품 N 개 이상 구매)\n3. 수량별 할인은 개수 조건을 최대 5개 까지 생성할 수 있어야 한다. (입력항목: 갯수, 할인값(=율 또는 금액))\n4. 할인적용대상: 행사상품/브랜드/공급처 중 1개만 지정할 수 있으며, 그 안에서는 다수개를 지정할 수 있어야 한다. (예로, 브랜드 선택 시 TBJ, 버커루 등)\n5. 수량할인설정: 개별상품적용/상품별수량합산적용 (즉, 전체상품의 갯수를 합산해 적용할건지 또는 특정상품 수량만 봐서 적용할건지)\n6. 기준상품(반드시 이 상품을 구매해야 할인이 적용된다.), 제외상품을 등록할 수 있어야 한다.\n7. 수량할인과 금액할인 프로모션은 중첩 적용될 수 있어야 한다. (이슈 확인 후 다시 협의하기로 함)\n8. 프로모션에 대한 안내가 상품 상세 정보에 표시되어야 한다.\n9. 장바구니에서 수량이나 금액이 충족되면, 할인 계산이 적용되어야 한다.\n10. 클레임으로 인한 허들이 무너졌을 경우 할인 금액은 비례 배분하여 환수한다."]
[null,"10_프로모션","사은품","사은품 프로모션 구조가 구현되어야 한다.\n- 관리자에서 사은품 프로모션에 대한 기간/시작/종료/설정 등의 관리가 가능하여야 한다.\n- 주문채널/금액/브랜드/공급처/대상상품 을 설정할 수 있어야 한다.\n- 지급할 사은품을 다수개를 설정할 수 있어야 한다.\n- 사은품의 지급 구간을 복수개 설정할 수 있어야 한다.\n- 선택 사은품일 경우 주문서에서 사은품을 선택할 수 있어야 한다.\n- 사은품 프로모션이 적용되는 상품일 경우 상품 정보에 사은품 안내가 노출되어야 한다.\n- 사은품 프로모션이 적용되었을 경우, 주문서/ 주문상세 페이지에 지급되는 사은품 정보가 노출되어야 한다.",null,{"$f":"CONCATENATE((VLOOKUP(B84,'요건 건수'!$D$4:$E$20,2)),COUNTIFS(B$4:B84,B84))","v":"IST_10_2"},"패션팀",null,"수용","2020-12-08","사은품의 선택 시점을 알려주세요.\n- 상품상세에서 선택\n* 이 경우 구매시 사은품에 대한 명확한 정보를 제공할 수 있으나, 금액대별 사은품이 다르거나 해당 금액 미만인 경우 등 복수의 예외 사항이 발생함.\n- 주문서에서 선택\n* 대응은 모두 가능하나 사은품이 뒤늦게 오며 선택 사은품의 경우 주문서에서 사은품을 선택하게 해줘야 하는 이슈가 발생\n\n상세 기능 정의는 다음과 같다.\n1. 어드민에서 사은품 프로모션에 대한 기간/시작/종료의 설정 관리가 가능하여야 한다.\n2. 주문채널(자사몰, 제휴몰), 금액(배송비를 제외한 실결제금액), 브랜드/공급처/대상상품 중 다수개 조건을 설정할 수 있어야 한다.\n3. 금액별 지급 사은품 조건을 복수개 설정할 수 있어야 한다. (수량까지 설정 가능하도록). 이때 사은품은 1개를 설정할 수 있어야 한다.\n4. 사은품은 주문서에서 선택할 수 있어야 한다. (자사몰에 한정함)\n5. 사은품 프로모션이 적용되는 상품일 경우 상품상세 정보에 사은품 안내가 노출되어야 한다.\n6. 사은품 프로모션이 적용되었을 경우, 주문서/ 주문상세 페이지에 지급되는 사은품 정보가 노출되어야 한다.\n7. 포인트로 차감해 사은품을 선택할 수 있다. (자사몰에 한정함)\n8. 사은품이 회수되지 않아도 회수컨펌을 할 수 있다."]
[null,"10_프로모션","증정","N+1, 1+N 증정 프로모션 구조가 구현되어야 한다.\n- 상품단위의 증정 프로모션 구조가 구현 되어야 한다.\n- 관리자에서 프로모션의 기간/설정 등의 관리가 가능하여야 한다.\n- 증정 프로모션에 대해서는 상품 정보에 표시가 되어야 한다.\n- 증정 프로모션의 경우 동일 상품으로 선택 가능해야 한다.\n- 장바구니에서 옵션의 수량을 변경 시, 해당 프로모션이 계산되어 적용되어야 한다.\n- 출고 송장 및 피킹리스트에 관련 프로모션 적용 수량이 정상적으로 표시되어야 한다.\n- N+1 1+N 상품의 클레임의 경우 해당 상품의 수량을 부분반품할 수 없고 해당 증정에 대한 전체 반품이 진행되어야 한다.",null,{"$f":"CONCATENATE((VLOOKUP(B85,'요건 건수'!$D$4:$E$20,2)),COUNTIFS(B$4:B85,B85))","v":"IST_10_3"},"한세드림","2020-05-14","요건제거","2020-07-02","7/2 비용이슈로 요건 제거함"]
[null,"10_프로모션","카드 무이자","카드 무이자 정보에 대한 관리를 진행할 수 있어야 한다.\n- 관리자에서 카드 정보(다중) 및 할부기간, 프로모션 기간을 설정하고 관리할 수 있어야한다.\n- 중지/진행 등을 관리자에서 관리할 수 있어야한다.\n- 부분무이자 안내를 위한 부분무이자 html 등록영역이 추가되어야 한다.\n- 등록된 카드 정보는 Front 상품 상세 정보에 노출되어야 한다.",null,{"$f":"CONCATENATE((VLOOKUP(B86,'요건 건수'!$D$4:$E$20,2)),COUNTIFS(B$4:B86,B86))","v":"IST_10_4"},"기획운영팀",null,"수용","2020-12-08","정지혜 과장님이 화면 제공"]
[null,"10_프로모션","카드 할인","즉시할인/청구할인 정보에 대한 관리를 진행할 수 있어야 한다.\n- 관리자에서 카드할인 정보에 대해 등록/수정/삭제 관리할 수 있어야 한다.\n- 할인 유형은 즉시할인/ 청구할인 중 선택할 수 있어야 한다.\n- 중지/진행 등을 관리자에서 관리할 수 있어야한다.\n- 할인유형,카드선택,최저구매금액,기간,정액/정율,조건 및 유의 사항을 input 및 수정할 수 있어야 한다.\n- 이벤트 페이지로 연결 할 수 있는 링크 input이 제공되어야 한다.\n- 이벤트 링크 가 등록되었을 경우 바로가기 버튼이 노출되어야 한다.\n- 등록된 카드 정보는 Front 상품 상세 정보에 노출되어야 한다.\n- 카드 할인 기간에 따라 카드정보와 카드할인이 적용된 가격이 상품 상세에 카드할인가 컬럼으로 노출 되어야 한다.\n- 적용되는 카드할인가 조건에 부합할 경우 EP에 카드할인가를 전송해야 한다.",null,{"$f":"CONCATENATE((VLOOKUP(B87,'요건 건수'!$D$4:$E$20,2)),COUNTIFS(B$4:B87,B87))","v":"IST_10_5"},"기획운영팀",null,"수용","2020-12-08","정지혜 과장님이 화면 제공"]
[null,"10_프로모션","카드목록 관리","카드 무이자 및 카드 할인에서 공통으로 사용하는 카드목록은 코드화 하여 관리자에서 추가 및 확장 관리가 가능하여야 한다.",null,{"$f":"CONCATENATE((VLOOKUP(B88,'요건 건수'!$D$4:$E$20,2)),COUNTIFS(B$4:B88,B88))","v":"IST_10_6"},"기획운영팀",null,"수용","2020-12-08","네이버 EP의 카드명을 기준으로 처리하면 될 것 같다."]
[null,"10_프로모션","쿠폰","쿠폰에 대한 현황 관리가 가능해야 한다.\n- 쿠폰의 번호/쿠폰 상태/쿠폰 유형 별 쿠폰 목록을 조회할 수 있어야 한다.\n- 쿠폰의 상태를 일괄 변경할 수 있어야 한다.\n- 쿠폰의 사용금액(비용)/ 쿠폰에 사용된 유관주문금액을 확인할 수 있어야 한다.\n- 쿠폰의 발급매수를 확인할 수 있어야 한다.\n- 쿠폰의 사용매수와 사용율을 확인할 수 있어야 한다.",null,{"$f":"CONCATENATE((VLOOKUP(B89,'요건 건수'!$D$4:$E$20,2)),COUNTIFS(B$4:B89,B89))","v":"IST_10_7"},"패션팀",null,"수용","2020-12-08","쿠폰 일괄 변경의 조건을 알려주세요.\n- 발행전 쿠폰에 한해야 한다거나\n- 발행후 수정이 불가능 해야한다거나\n- 발행은 하였으나 쿠폰을 실제 지급받은 고객이 없는 경우에는 수정이 된다거나.. 등.."]
[null,"10_프로모션","쿠폰","다양한 종류의 쿠폰을 설정할 수 있도록 개발되어야 한다.\n- 즉시할인 / 상품쿠폰 /  주문서 쿠폰 /  배송비 쿠폰 \n- 모든 쿠폰은 최소구매 금액/ 최대할인 금액을 지정할 수 있어야 한다.\n- 정액/정율을 지정할 수 있어야 한다.\n- 쿠폰 사용 조건은 브랜드/카테고리/공급처/상품 으로 지정할 수 있고 조건은 멀티+다중 등록으로 지정할 수 있어야 한다.\n- 쿠폰 사용 예외 조건을 지정할 수 있어야 한다.\n- 쿠폰의 분담율을 지정할 수 있어야 한다. (배송비쿠폰은 제외)\n- 쿠폰의 할인율은 100%를 초과할 수없다.\n- 주문서 쿠폰은 결제 수단(일반신용카드/페이코/네이버페이)과 카드사를 제어할 수 있어야 한다.\n- 디바이스에 대한 사용 조건을 제어할 수 있어야 한다.(PC/모바일웹/모바일앱 다중선택)\n- 채널에 대한 사용 조건을 제어할 수 있어야 한다.(채널, 자사몰 등 채널에 대한 조건)\n- 배송비 쿠폰 역시 사용조건에 종속되어 조건을 적용한다.",null,{"$f":"CONCATENATE((VLOOKUP(B90,'요건 건수'!$D$4:$E$20,2)),COUNTIFS(B$4:B90,B90))","v":"IST_10_8"},"패션팀",null,"수용","2020-12-08","정률할인의 경우 100원 미만금액 또는 10원 미만금액이 나올 경우 어떻게 할것인지?\n- 중복사용이 가능한 쿠폰 종류가 있는지?"]
[null,"10_프로모션","쿠폰","사용자가 입력-등록 하여 사용하는 시리얼유형을 만들수 있어야 한다. \n- 시리얼 쿠폰 유형은 관리자가 쿠폰코드를 생성하는 입력형과 자동 생성하는 난수형(개수만큼 생성)으로 생성유형을 설정할 수 있어야 한다.\n- 시리얼의 입력형 쿠폰코드는 기간 내 중복될 수 없으며, 입력 글자수는 최소 2자 ~ 최대 10자, 한글.영문.숫자로 제어한다.(띄어쓰기 없애서 처리)\n- 난수의 경우 12자리 난수로 생성한다. (예, 연월일+SEQ4자리)",null,{"$f":"CONCATENATE((VLOOKUP(B91,'요건 건수'!$D$4:$E$20,2)),COUNTIFS(B$4:B91,B91))","v":"IST_10_9"},"기획운영팀",null,"수용","2020-12-08","입력형 쿠폰코드는 기간 내 중복될 수 없다고 하였는데 예를 들어 'iStyle DAY'를 입력하면 모두에게 10%할인쿠폰을 10주년을 맞아 드립니다. 이런 쿠폰 이벤트의 경우 모두 동일한 코드를 입력하게 되는 문제가 있음.\n\n- 난수든 입력이든 각 쿠폰마다 고유코드를 가지고 있는 경우 중복을 막고, 1개의 코드로 중복발행이 가능하게도 설정이 가능하도록 하는게 맞지 않을까 함."]
[null,"10_프로모션","쿠폰","쿠폰의 다운로드조건에 대한 관리/적용기능이 개발 되어야 한다.\n- 쿠폰의 다운로드 기간 및 유효기간에 대해 관리할 수 있어야 한다.(연월일시분초단위)\n- 쿠폰의 상태를 관리할 수 있어야 한다.(대기/진행/중지/종료, 진행->대기로 변경 등. 고객이 다운로드 받은 후 미사용쿠폰에 대해 사용하려고 할 때 상태가 중지나 종료일 경우는 사용할 수 없다.)\n- 선착순 조건이 부여되어야 한다.(시간/횟수/매일할지,요일로할지/선착순에서마감매수)\n- 전체 다운로드 매수와 아이디 별 기간 다운로드 매수의 제어가 개발되어야 한다.(기간내 N매, 일당 N매, 전체 N매)\n- 등급,멤버쉽 조건에 따라 다운로드를 제어해야 한다.\n- 기간 내 첫구매 조건에 따라 다운로드를 제어해야 한다. (첫구매적용기간(FROM ~ TO) 내에 주문건이 없는 고객에 대해)\n- 기간 내 신규회원 여부에 따라 다운로드를 제어해야 한다. (회원가입일(FROM ~ TO))\n- 쿠폰을 다운받은 회원 이력,시간과 사용여부, 사용한주문번호 등을 확인할 수 있어야 한다.\n- 쿠폰에 대한 소멸 알림 여부 값을 제어해야 한다. (알림톡 기준에 의거 발송)",null,{"$f":"CONCATENATE((VLOOKUP(B92,'요건 건수'!$D$4:$E$20,2)),COUNTIFS(B$4:B92,B92))","v":"IST_10_10"},"기획운영팀",null,"수용","2020-12-08"]
[null,"10_프로모션","쿠폰","프론트 전시 영역에서 자유로운 쿠폰 노출이 제어 되어야 한다.\n- EP쿠폰에 대해서는 관련 안내가 노출되어야 한다.\n- 쿠폰 번호 설정으로 쿠폰 전시가 가능해야 한다.(기획전/이벤트/카테고리/메인)\n- 상품 상세 페이지에는 조건에 맞는 쿠폰인 경우, 쿠폰 다운받기 버튼이 노출되어야 한다.\n- 퍼블리싱 하여 사용이 가능한 쿠폰 다운로드 스크립트를 제공해주어야 한다.",null,{"$f":"CONCATENATE((VLOOKUP(B93,'요건 건수'!$D$4:$E$20,2)),COUNTIFS(B$4:B93,B93))","v":"IST_10_11"},"패션팀",null,"수용","2020-12-08"]
[null,"11_주문결제","네이버아이디 주문","네이버 아이디 주문을 제공해야 한다.\n- 네이버 npay로그인 후 주문할 수 있는 프로세스를 제공한다.",null,{"$f":"CONCATENATE((VLOOKUP(B94,'요건 건수'!$D$4:$E$20,2)),COUNTIFS(B$4:B94,B94))","v":"IST_11_1"},"한세드림",null,"수용","2020-12-08"]
[null,"11_주문결제","마일리지","아이머니/포인트 외 별도 마일리지가 신설되어야 한다.\n- 마일리지는 결제 시 사용할 수 있도록 만들어야 한다.\n- 마일리지의 금액 사용은 제어되어야 한다.\n- 마일리지에 대한 적립 현황 및 사용현황이 관리되어야 한다.\n- 현재 포인트로 커뮤니케이션 되던 포인트적립은 모두 마일리지로 교체한다.",null,{"$f":"CONCATENATE((VLOOKUP(B95,'요건 건수'!$D$4:$E$20,2)),COUNTIFS(B$4:B95,B95))","v":"IST_11_2"},"기획운영팀",null,"수용","2020-12-08","모두 마일리지로 교체 한다는것은 기존 아이머니/포인트는 신규신설되는 마일리지로 대체 되는것인가요?\n\n그렇다면 마일리지 정책에 대해서 정리된 내용이 공유가 필요합니다."]
[null,"11_주문결제","비회원 주문","비회원 주문을 제공해야 한다. \n- 비회원 주문 시 휴대폰 본인인증을 진행 해야 한다.\n- 비회원이더라도 만 14세 미만에 대해서는 주문이 불가하여야 한다.\n- 비회원 주문은 개인정보 수집에 대한 동의를 받아야 한다.\n- 비회원 주문자가 주문번호와 비밀번호 or 인증을 통하여 본인 주문을 확인할 수 있어야 한다.\n- 비회원은 정기배송/선물서비스를 이용할 수 없다. => 선물서비스 대신 선물주문 으로 요건사항 변경\n- 비회원 주문자는 결제 프로모션중 쿠폰/포인트가 적립되지 않으며, 할인을 받을수 없도록 처리해야 한다.",null,{"$f":"CONCATENATE((VLOOKUP(B96,'요건 건수'!$D$4:$E$20,2)),COUNTIFS(B$4:B96,B96))","v":"IST_11_3"},"고객만족팀",null,"수용","2020-12-08","비회원 주문시 정상가 표기만 해야 하나요?\n* 예를들어 10,000원짜리 상품을 20%할인해서 8,000원에 판매하고 있을경우 비회원은 10,000원에 구입이 되어야 하나요?\n\n위와 같을 경우 별도로 회원가입하면 해당상품을 얼마에 구매할 수 있다고 비회원 화면의 별도 안내가 필요한가요?"]
[null,"11_주문결제","상품권","상품권에 대한 현황 관리가 가능해야 한다.\n- 전체 상품권 등록 현황 및 차감 현황 확인이 가능해야 한다.\n- 상품권 현황에서 기간내 등록금액/사용금액/잔액 등을 확인할 수 있어야 한다.\n- 현황을 다운로드 받을 수 있어야 한다.\n- 상품권을 관리자에서 일괄등록할 수 있어야 한다.\n- 상품권 번호로 내역을 확인할 수 있어야 한다.(등록아이디/등록일/금액/상품권번호/주문번호등)\n- 상품권 사용에 대해서는 주문일 경우 주문번호 이력이 기재되어야 한다.",null,{"$f":"CONCATENATE((VLOOKUP(B97,'요건 건수'!$D$4:$E$20,2)),COUNTIFS(B$4:B97,B97))","v":"IST_11_4"},"기획운영팀",null,"수용","2020-12-08"]
[null,"11_주문결제","아이머니","아이머니에 대한 현황 관리가 가능해야 한다.\n- 아이머니에 대한 소멸 기한을 발생시켜야 한다.\n- 아이머니에 대한 환전 및 사용 현황을 확인해야 한다.",null,{"$f":"CONCATENATE((VLOOKUP(B98,'요건 건수'!$D$4:$E$20,2)),COUNTIFS(B$4:B98,B98))","v":"IST_11_5"},"기획운영팀",null,"요건제거",null,"아이머니, 아이포인트를 신규 마일리지로 전환하기위한 배율이나 전환방법등에 대한 논의가 필요할거 같습니다."]
[null,"11_주문결제","장바구니","장바구니에 저장된 상품은 30일간 유지되어야 한다.\n일시품절/품절 상품은 장바구니 내 별도목록으로 노출되어야 한다.\n일시품절/품절 상품은 자동 비활성화 및 일괄 삭제 기능이 제공되어야 한다.\n예약배송 상품의 경우 예약 배송일정을 표시해 주어야 한다.\n장바구니에서의 수량변경/옵션변경이 가능해야 한다.\n비로그인 상태에서 담은 장바구니 상품은 동세션 로그인 시, 장바구니에 추가되어야 한다.",null,{"$f":"CONCATENATE((VLOOKUP(B99,'요건 건수'!$D$4:$E$20,2)),COUNTIFS(B$4:B99,B99))","v":"IST_11_6"},"기획운영팀",null,"수용","2020-12-08","비로그인 회원이 장바구니 담은 상태로 로그인시 장바구니에 상품이 담길때 처리방안\n- 동일제품이 장바구니에 있을 경우?\n  * 수량을 늘린다\n  * 동일제품이 장바구니에 있는데 추가할것인지 물어본다.\n- 여러가지 상품이 장바구니에 담겼을때 위와 같은 현상이 생기면 한꺼번에 처리가 가능한 alert 메시지를 준비해서 대체한다."]
[null,"11_주문결제","주결제수단","- 다양한 주 결제 수단이 제공되어야 한다.( 신용카드/ 무통장입금 / 실시간 계좌이체 / N페이 / 페이코)\n- 간편 결제 세이 페이(Yes24간편결제)를 제공해야 한다. => 스타일24간편결제로 적용\n- 간편 결제 카카오페이를 제공해야 한다.\n- 부결제수단은 아이머니/마일리지/상품권을 사용할 수 있어야 한다.\n- 포인트에 대한 아이머니로의 환전 정책은 현재와 동일하게 유지한다.",null,{"$f":"CONCATENATE((VLOOKUP(B100,'요건 건수'!$D$4:$E$20,2)),COUNTIFS(B$4:B100,B100))","v":"IST_11_7"},"기획운영팀","2020-06-12","수용","2020-12-08","6/12 added(카카오페이/세이페이)"]
[null,"11_주문결제","주문서","주문의 편의 및 결제/쿠폰이 정상적으로 동작하여야 한다.\n- 당일 배송 시간이고 당일 배송 상품이 있을 경우, 당일배송여부를 선택할 수 있어야 한다.\n- 주문 시 주문자 정보를 수정하거나 변경할 수 있어야 한다.\n- 지식쇼핑으로 접근 하여 상품 상세 > NPAY결제 시 결제 수단이 NPAY로 제어되어야 한다.\n- 카드사 쿠폰 사용시, 해당 카드사로 결제 수단이 제어되어야 한다.\n- 적용 가능한 쿠폰을 보유하고 있을 경우 쿠폰은 자동 적용 되어야 한다.\n- 선택 사은품이 있을 경우 사은품 선택이 가능하여야 한다.\n- 아이머니로의 결제는 30,000원 이상일 시에만 사용이 가능하며, 결제액의 최대 40% 까지 사용이 가능하도록 처리해야한다.\n- 적립 예정 포인트를 선 사용할 수 있도록 기능을 제공해야 한다.\n- 주문서에서도 시리얼 쿠폰 번호를 등록할 수 있어야 한다.\n- 결제 금액은 1원 단위까지 결제가 가능하도록 처리해야 한다.\n- PG로의 0원 결제가 가능하도록 처리해야 한다. (0원인 경우에 프로세스 정리 필요) => 상품권이 있어서 가능할 듯 하나 최종 확인 필요",null,{"$f":"CONCATENATE((VLOOKUP(B101,'요건 건수'!$D$4:$E$20,2)),COUNTIFS(B$4:B101,B101))","v":"IST_11_8"},"고객만족팀",null,"수용","2020-12-08","주문서에서 쿠폰번호를 등록한다기 보다는 쿠폰을 등록할 수 있는 통로를 열어줘야 하는건가요?\n\n보편적으로 지류쿠폰이든 입력후 다운로드 받는 쿠폰의 경우 별도의 페이지에서 다운로드 받도록 하게됩니다.\n\n주문서에서 쿠폰을 다운로드 받게 할 경우 주문서에 세팅해둔 정보가 쿠폰다운로드 시점에 주문서를 새로 로드해야하기 때문에 초기화 될 우려가 있습니다. \n\n- 0원결제 관련은 PG사별 확인이 필요."]
[null,"11_주문결제","포인트","포인트에 대한 현황 관리가 가능해야 한다.\n- 포인트는 시일이 지나면 자동 소멸되어야 한다.\n- 소멸된 내역에 대해서도 확인할 수 있어야 한다.\n- 적립에 대한 이력이 적재되어야 한다.\n- 반품/취소 시 포인트는 환수되어야 한다.\n- 포인트에 대해서는 제거 절차를 수립한다.",null,{"$f":"CONCATENATE((VLOOKUP(B102,'요건 건수'!$D$4:$E$20,2)),COUNTIFS(B$4:B102,B102))","v":"IST_11_9"},"기획운영팀",null,"수용","2020-12-08","제거 절차의 의미가 무엇인가요?"]
[null,"12_주문/클레임","CTI","상담 프로그램 내에서 bos와 동일한 수준으로 주문/클레임 업무를 확인/진행할 수 있는 시스템이 구현되어야 한다.\n-  CTI 내 환불/교환/반품 기능은 bos와 동일 수준으로 구현되어야 한다.\n- 회원 쿠폰 내역에서는 사용된 주문번호 등을 확인할 수 있어야 한다.\n- 회원 상품권 내역에서 사용된 상품권 번호/만료정보 등을 확인할 수 있어야 한다.",null,{"$f":"CONCATENATE((VLOOKUP(B103,'요건 건수'!$D$4:$E$20,2)),COUNTIFS(B$4:B103,B103))","v":"IST_12_1"},"고객만족팀",null,"수용","2020-12-08","BOS(어드민) 화면에서 모든 처리를 한다.\nINBOUND 시 휴대전화번호로 회원상세 페이지를 노출하는 것으로 한다."]
[null,"12_주문/클레임","결품취소","결품/과주문 취소(現 배송예외)는 자동 부분취소 처리를 진행한다.\n결품/과주문 취소는 판매자/물류관리자가 송장 등록/생성되더라도 최종출고완료 처리 전에는 취소처리를 진행할 수 있어야 한다.\n결품/과주문 취소건에 대해서는 결품에 대한 자동 안내 문자 발송을 진행한다.\n결품에 대한 문자 발송/취소에 대해서는 위탁/입점 상품 모두에 대해 진행 한다.\n세트 상품의 부분결품 발생 시 본코드 전체 구성상품이 출고되지 않아야 한다.\n결품/과주문 취소에 대해서는 주문 상세 내 결품 취소되었음을 안내해야 한다.",null,{"$f":"CONCATENATE((VLOOKUP(B104,'요건 건수'!$D$4:$E$20,2)),COUNTIFS(B$4:B104,B104))","v":"IST_12_2"},"고객만족팀",null,null,null,"취소시 문자발송 (예상)\n입점,자사 송장번호업로드(출고완료) 후 결품취소가 가능한가(?) ---> \nex) to-be\n출고완료 ---> 출고컨펌 ---> 결품취소불가능\n출고완료 ---> 결품취소가능 \n출고완료 ---> 상태변경제공 (단 구매확정후에는 불가능)\nSCM 주문목록 ---> 업체 (주문결품취소) ---> 배치로 알림톡발송"]
[null,"12_주문/클레임","구매확정","구매확정단계를 두어야 한다.\n- 수동/자동 구매확정이 가능하여야 한다.\n- 구매 확정 시 FRONT에서의 클레임은 제한한다.\n- 자동 구매 확정은 배송완료 기준으로부터 D+14로 처리 한다.",null,{"$f":"CONCATENATE((VLOOKUP(B105,'요건 건수'!$D$4:$E$20,2)),COUNTIFS(B$4:B105,B105))","v":"IST_12_3"},"기획운영팀",null,"수용","2020-12-08"]
[null,"12_주문/클레임","반품/교환 신청","Front/관리자를 통해 반품/교환 신청이 가능하여야 한다.\n부분교환/반품 신청이 가능하여야 한다.\n접수된 반품/교환건이 있더라도 추가 반품/교환을 신청할 수 있어야 한다.\n교환/반품 접수 시 회수지/재배송지를 지정할 수 있도록 하여야 한다.",null,{"$f":"CONCATENATE((VLOOKUP(B106,'요건 건수'!$D$4:$E$20,2)),COUNTIFS(B$4:B106,B106))","v":"IST_12_4"},"고객만족팀",null,null,null,"세트상품의 교환시에는 세트전체로 진행"]
[null,"12_주문/클레임","반품/교환의 변경","반품과 교환을 사용자/관리자에서 철회하거나 변경할 수 있어야 한다.\nFront에서 반품/교환을사용자가 철회할 수 있다.\n관리자에서 반품을 교환으로 변경할 수 있어야 한다. (간헐적 발생 케이스)\n관리자에서 교환을 반품으로 변경할 수 있어야 한다.",null,{"$f":"CONCATENATE((VLOOKUP(B107,'요건 건수'!$D$4:$E$20,2)),COUNTIFS(B$4:B107,B107))","v":"IST_12_5"},"고객만족팀",null,null,null,"* 다건(복수상품) 의 취소, 반품, 교환이 가능\n* 교환으로 진행 후 결품인경우 반품으로 변경 케이스 발생중\n교환선발송 진행의 경우는 반품으로 변경이 불가능"]
[null,"12_주문/클레임","반품/교환의 수거","반품/교환 신청시 WMS상품에 한하여 택배사를 연동 자동 수거를 하도록 인터페이스 연동을 진행한다\n(CJ대한통운 인터페이스)\n반품 교환 신청 후 수거 운송장이 자동 등록되어야 한다.\n반품/교환 신청된 송장의 수거 현황을 조회할 수 있다.\n오배송/재출고에 대한 플로우가 수립되어야 한다.",null,{"$f":"CONCATENATE((VLOOKUP(B108,'요건 건수'!$D$4:$E$20,2)),COUNTIFS(B$4:B108,B108))","v":"IST_12_6"},"고객만족팀",null,null,null,"* 오배송/재출고에 대한 현재 슬로우 업체 문의 & 확인 예정\n* 오배송 경우 반품접수 후 교환출고 (오배송 재출고)"]
[null,"12_주문/클레임","주문관리","관리자는 주문에 대한 전체 관리가 가능하여야 한다.\n- 주문 전체 내역을 확인할 수 있어야 한다.\n- 클레임 내역을 확인할 수 있어야 한다.\n- 제휴/자사/채널/상품/회원/주문번호/기간/주문상태 등에 따라 멀티 조회가 가능해야 한다.\n- 목록에는 주문번호(자사/제휴주문번호),주문시간,주문상태,금액 등 전체를 확인할 수 있어야 한다.\n- BOS의 주문 상세에서는 해당 주문에서 사용한 쿠폰번호/상품권번호 등 까지도 표시되어야 한다.\n- 주문 상세에서는 주문자정보, 주문상품정보, 배송상태, 클레임상태, 쿠폰 등의 해당 주문과 연관된 모든 정보가 표시되어야 한다.\n- 주문에 대한 취소,반품,교환,환불 등이 가능해야 한다.",null,{"$f":"CONCATENATE((VLOOKUP(B109,'요건 건수'!$D$4:$E$20,2)),COUNTIFS(B$4:B109,B109))","v":"IST_12_7"},"고객만족팀",null,"수용","2020-12-08"]
[null,"12_주문/클레임","주문취소","주문의 취소는 출고확정전 까지 Front 및 BOS를 통해 취소가 가능하도록 하여야 한다.\n- 출고완료 이후, front에서는 주문취소 버튼이 노출되지 않고 반품/교환 접수 버튼으로 변경되어야 한다.\n- 무통장 입금 주문에 대한 입금 전 부분취소가 가능하여야 한다. (전체취소만 된다)",null,{"$f":"CONCATENATE((VLOOKUP(B110,'요건 건수'!$D$4:$E$20,2)),COUNTIFS(B$4:B110,B110))","v":"IST_12_8"},"고객만족팀",null,null,null,"WMS의 출고확정 단계가 있음"]
[null,"12_주문/클레임","주문확인/변경","주문에 대한 확인 및 변경이 가능해야 한다.\n- 주문 정보를 확인할 수 있어야 한다.\n- 주문 완료 후와 주문취소 시 해당 전체 주문 내역에 대해서 다시 장바구니담기를 제공해야 한다. => 프론트 화면상에서 노출해 처리. 자동 처리는 없음.\n- 주문 정보에는 지급되는 사은품 정보 등도 포함되어야 한다.\n- 주문 이후 피킹지시 전까지 주소변경이 가능하여야 한다. (WMS에 피킹지시 상태 값이 있다.)\n- 주문 이후 피킹지시 전까지 옵션 변경이 가능하여야 한다. 단, 옵션은 동일 상품번호의 단품에 한한다.\n- 결제 완료 후 배송 중 상태 부터 상품평이 등록 가능해야 한다.",null,{"$f":"CONCATENATE((VLOOKUP(B111,'요건 건수'!$D$4:$E$20,2)),COUNTIFS(B$4:B111,B111))","v":"IST_12_9"},"고객만족팀",null,null,null,"* 장바구니담기 기능 기획 확인\n* 출고지시 ---> WMS ---> 피킹지시 체크 후 배송지 변경가능(?)"]
[null,"12_주문/클레임","주문확인/변경","주문의 상태값을 정의 하고, 시스템 별 상태값을 확인 및 매핑 하여야 한다.\n- Front는 배송완료 까지 표시되어야 한다.*(現 발송완료가 마지막)\n- 품절 취소는 별도 상태로 표시되어야 한다.",null,{"$f":"CONCATENATE((VLOOKUP(B112,'요건 건수'!$D$4:$E$20,2)),COUNTIFS(B$4:B112,B112))","v":"IST_12_10"},"기획운영팀",null,"수용","2020-12-08","* 관리자, 프론트에설 결품취소에 대한 의미를 명시"]
[null,"12_주문/클레임","클레임제한","반품/교환 불가 상품에 대한 안내를 진행하고 해당 상품 반품/교환은 BOS에서만 접수된다.\n세트 상품의 경우 세트의 구성상품만을 부분으로 반품신청 할 수 없다.\n프론트에서 교환/환불신청가능 기한을 지정한다.\n주문제작 상품의 경우 BOS/CTI에서만 반품/환불/교환이 가능해야 한다.",null,{"$f":"CONCATENATE((VLOOKUP(B113,'요건 건수'!$D$4:$E$20,2)),COUNTIFS(B$4:B113,B113))","v":"IST_12_11"},"고객만족팀"]
[null,"12_주문/클레임","환불 계좌 관리","환불 계좌에 대한 관리가 가능하여야 한다.\n- 환불 계좌는 Front 마이페이지 와 BOS를 통해 등록 및 제거할 수 있어야 한다.\n- 환불 계좌 등록 시, As-is의 계좌 외 (카카오뱅크/케이뱅크)도 추가되어야 한다.\n- 환불 계좌를 등록 시 환불 계좌가 정상 계좌인지 검증할 수 있어야 한다.\n- 환불 계좌를 통해 환불되는 실시간계좌이체, 무통장입금,시일이 경과한 휴대폰결제는 환불계좌 등록 후 클레임을 신청할 수있어야 한다.\n- 취소/반품 신청 시 무통장입금, 휴대폰결제(월이 경과한 경우)에 한해 등록한다.",null,{"$f":"CONCATENATE((VLOOKUP(B114,'요건 건수'!$D$4:$E$20,2)),COUNTIFS(B$4:B114,B114))","v":"IST_12_12"},"고객만족팀",null,null,null,"* 카카오뱅크, 케이뱅크 의 환불계좌에 대한 가능 여부 확인\n* 휴대폰결제는 마감일이 경과한 경우 환불계좌 등록"]
[null,"12_주문/클레임","환불 금액 정책","환불금액은 환불계산 정책에 따라 자동 계산되어야 한다.\n- 반품 시 포인트는 회수처리 하며 없을 시 마이너스 차감처리 한다.\n- 귀책사유에 따른 배송비 Rule 에 따라 환불 배송비는 계산된다.\n- 환불/교환/복합결제에 따라 비례배분 및 환불계산을 진행한다.\n- 상품권/포인트/현금환불 등에 대해서는 환불금액 Rule에 따른다.",null,{"$f":"CONCATENATE((VLOOKUP(B115,'요건 건수'!$D$4:$E$20,2)),COUNTIFS(B$4:B115,B115))","v":"IST_12_13"},"기획운영팀"]
[null,"12_주문/클레임","환불확정/교환확정","환불확정이 존재하여야 한다.\n교환에 대한 확정 상태가 존재하여야 한다.( 정상 교환 완료/ 일부 망실/ 오배송재출고)\n물류 물건 입고 및 출고확정/배송완료 되었을 경우 환불 확정이 가능하다.\n고객 환불 시 추가금이 발생할 경우 Front 및 상담요청에 따라 추가 결제가 가능하도록 개별 결제창을 생성할 수 있어야 한다.\n환불확정에 대한 일괄 승인이 가능하여야 한다.\n환불확정 시 최종 클레임 완료 되며 사용자에게 최종 환불된다.",null,{"$f":"CONCATENATE((VLOOKUP(B116,'요건 건수'!$D$4:$E$20,2)),COUNTIFS(B$4:B116,B116))","v":"IST_12_14"},"고객만족팀",null,null,null,"* 고객환불 시 추가금 발생의 경우(배송비) \n(교환, 반품 사유를 변경 후 프론트에서 배송비 결제후 \n교환 반품 컨펌 완료) \n* 환불확정에 대한 일괄 승인 가능 여부 체크 (정지혜과장 CS 팀 과 협의 후 결졍)"]
[null,"13_제휴주문관리","제휴몰 주문관리","제휴몰 주문에 대한 주문 업로드 및 주문관리가 가능해야 한다.\n- 제휴몰 주문은 제휴몰 상품번호, 제휴몰 주문번호, 자사 상품번호, 자사 상품명, 자사 주문번호 등이 모두 표시되어야 한다.",null,{"$f":"CONCATENATE((VLOOKUP(B117,'요건 건수'!$D$4:$E$20,2)),COUNTIFS(B$4:B117,B117))","v":"IST_13_1"},"고객만족팀"]
[null,"13_제휴주문관리","제휴몰 주문관리","재고 미할당된 주문에 대한 일괄 문자 발송 기능의 생성",null,{"$f":"CONCATENATE((VLOOKUP(B118,'요건 건수'!$D$4:$E$20,2)),COUNTIFS(B$4:B118,B118))","v":"IST_13_2"},"고객만족팀",null,null,null,"* 제휴몰의 결품쥐소 알림톡 발송 업체 목록 전달 완료\n* 제휴몰의 취소신청과 배송의 갭 차이에 의한 발생한 반품건 \n처리 로직을 어떻게 구현되고 있는지 확인(WMS)"]
[null,"14_고객센터/커뮤니티","1:1문의/상품Q&A","고객 대응이 필요한 게시판은 관리자가 답변을 할 수 있어야 한다.\n- 1:1문의 / 상품 Q&A / 상품평 답변은 노출여부를 설정할 수 있어야 한다.\n- 상품 Q&A는 해당 업체 SCM에서도 답변을 진행할 수 있어야 한다.\n- 답변 등록 시 SMS/ 이메일 발송여부는 사용자의 선택값을 default로 선택 되며, 관리자가 설정할 수 있어야 한다.\n- 답변 등록 시 SMS나 이메일 이 발송되어야 한다. \n- 목록 내 답변 여부에 대해 표시되어야 한다.",null,{"$f":"CONCATENATE((VLOOKUP(B119,'요건 건수'!$D$4:$E$20,2)),COUNTIFS(B$4:B119,B119))","v":"IST_14_1"},"고객만족팀",null,null,null,"이사님패스"]
[null,"14_고객센터/커뮤니티","1:1문의/상품Q&A","문의가 필요한 내용은 마이페이지를 통해 확인할 수 있어야 한다.\n- 1:1 문의/상품Q&A/상품평 작성 내역을 확인할 수 있어야 한다.\n- 문의 내용은 사용자가 작성 및 삭제가 가능해야 한다.\n- 답변 등록 시 SMS/이메일 알림 여부를 설정할 수 있어야 한다.\n- 관리자가 답변한 내역을 확인할 수 있어야 한다.\n- 상품평의 경우 삭제 시에도 포인트를 다시 회수하지는 않는다.",null,{"$f":"CONCATENATE((VLOOKUP(B120,'요건 건수'!$D$4:$E$20,2)),COUNTIFS(B$4:B120,B120))","v":"IST_14_2"},"기획운영팀",null,null,null,"이사님패스"]
[null,"14_고객센터/커뮤니티","FAQ","FAQ는 관리자를 통해 일원화 관리를 할 수 있어야 한다.\n- FAQ의 등록/삭제/수정/순서변경이 자유로워야 한다.\n- FAQ의 카테고리 항목의 추가 및 변경이 자유로워야 한다.\n- PC/Mobile 이원화 관리를 해서는 안된다.",null,{"$f":"CONCATENATE((VLOOKUP(B121,'요건 건수'!$D$4:$E$20,2)),COUNTIFS(B$4:B121,B121))","v":"IST_14_3"},"고객만족팀",null,null,null,"이사님패스"]
[null,"14_고객센터/커뮤니티","공지사항","관리자를 통해 공지사항을 관리할 수 있어야 한다.\n- SCM/front/bos 공지 를 등록할 수 있어야 한다.\n- 등록 된 공지를 최 상단 메인에 표시하는 기간이 있어야 한다.\n- HTML 에디터를 지원해야 한다.\n- SCM/BOS에 대해서는 첨부파일이 지원되어야 한다.\n- 노출여부/삭제/수정이 가능해야 한다.",null,{"$f":"CONCATENATE((VLOOKUP(B122,'요건 건수'!$D$4:$E$20,2)),COUNTIFS(B$4:B122,B122))","v":"IST_14_4"},"기획운영팀",null,null,null,"이사님패스"]
[null,"14_고객센터/커뮤니티","상품평","일반후기/상품후기/스타일후기/사이즈추천 이 제공되어야 한다.\n- 상품평은 성인/유아/키/몸무게/카테고리/별점 등과 같은 정보로 소팅할 수 있어야 한다.\n- 상품명을 통해 검색할 수 있어야 한다.\n- 사이즈 추천 리뷰를 통해 고객 편의가 제공되어야 한다.\n- 상품평에 대한 숨김/노출처리가 가능하여야 한다.",null,{"$f":"CONCATENATE((VLOOKUP(B123,'요건 건수'!$D$4:$E$20,2)),COUNTIFS(B$4:B123,B123))","v":"IST_14_5"},"한세MK",null,null,null,"이사님패스"]
[null,"14_고객센터/커뮤니티","상품평","상품평은 등록/수정/삭제/관리가 가능해야 한다.\n- 상품평은 구매자 기준으로 등록할 수 있어야 하며, 등록된 내용은 자동 노출된다.\n- 등록된 상품평은 모두 관리자에서 조회 및 관리(RUD), 일괄처리가 가능해야 한다.(포토는 목록에서 확인 必)\n- 포토상품평/일반상품평 으로 등록이 가능하여야 한다.\n- 포토 상품평은 포토 최대 10개 까지 등록이 가능하며 1이미지 당 10M로 등록 용량을 제한한다.\n- 동영상은 최대1개 첨부할 수 있도록 한다. 동영상의 용량 제한은 100M로 제한하며 모바일에 한하여 제공한다.\n- 상품평 등록 시 30자 이상 ~500 자 미만으로 등록할 수 있다.\n- 욕설/스크립트 등은 등록되지 않도록 필터링 한다.\n- 구매일로부터 60일 까지 등록 가능하도록 제한하고 상품평 등록 잔여일과 마감날짜를 표시한다.\n- 등록된 상품평에 관리자가 답변을 작성할 수 있어야 한다.",null,{"$f":"CONCATENATE((VLOOKUP(B124,'요건 건수'!$D$4:$E$20,2)),COUNTIFS(B$4:B124,B124))","v":"IST_14_6"},"기획운영팀",null,null,null,"이사님패스"]
[null,"14_고객센터/커뮤니티","상품평","상품평 작성 시 포인트는 자동으로 지급 되어야 한다.\n- 일반 상품평을 작성 하면 기본 포인트가 지급되어야 한다.\n- 포토 상품평일 경우 포토 포인트가 추가로 지급되어야 한다.\n- 작성한 포인트가 첫 상품평 일 시에는 포인트가 추가 지급되어야 한다.\n- 베스트 상품평을 관리자가 선정할 수 있어야 한다.\n- 베스트 상품평을 선정 시, 관리자 포인트가 자동으로 지급되고, Front 상단에 베스트 영역으로 노출되어야 한다.",null,{"$f":"CONCATENATE((VLOOKUP(B125,'요건 건수'!$D$4:$E$20,2)),COUNTIFS(B$4:B125,B125))","v":"IST_14_7"},"기획운영팀",null,null,null,"이사님패스"]
[null,"14_고객센터/커뮤니티","상품평","상품평 포인트 지급 값은 기준은 다음과 같은 규칙에 따른다.\n 포토 : 1,000P\n 일반 : 200P\n 첫구매 : 1,000P\n 베스트 : 5,000P\n- 기간 내 최대 적립될 수 있는 상품평 포인트는 포토/일반/첫구매 합산 월(1일~말일) 기준 10,000P로 제한한다.\n- 상품평 포인트의 지급은 1 ID의 1 상품번호 당 1회에 한한다.(작성은 구매조건 충족시 제한하지 않는다.)\n- 상품평 포인트의 지급은 구매확정에 한한다.\n- 베스트 상품평은 관리자가 BOS를 통해 승인 시, 즉시 지급된다.\n- 첫 구매 상품평은 해당 SKU의 첫 상품평으로 한다.(블라인드 처리된 상품평도 카운트한다.)",null,{"$f":"CONCATENATE((VLOOKUP(B126,'요건 건수'!$D$4:$E$20,2)),COUNTIFS(B$4:B126,B126))","v":"IST_14_8"},"기획운영팀",null,null,null,"이사님패스"]
[null,"14_고객센터/커뮤니티","팝업관리","관리자를 통해 팝업을 등록 관리할 수 있어야 한다.\n- SCM/front/bos 팝업을 등록할 수 있어야 한다.\n- 이미지/html중 선택할 수 있어야 한다.\n- 페이지 설정이 지원되어야 한다.\n- pc의 경우 팝업 사이즈를 지정할 수 있도록 하여야 한다. (PC에서는 롤링하지 않고 여러 개 나열되어 뜨는 구조, MW에서는 롤링 필요)\n- 다수개 설정되었을 경우 우선순위 별 롤링 처리 되어야 한다.\n- 기간/노출여부/삭제/수정이 가능해야 한다.",null,{"$f":"CONCATENATE((VLOOKUP(B127,'요건 건수'!$D$4:$E$20,2)),COUNTIFS(B$4:B127,B127))","v":"IST_14_9"},"기획운영팀",null,null,null,"이사님패스"]
[null,"15_특화서비스","라스트마일서비스","2개 이상 사이즈 배송 후 하나 반품 하는 서비스\n- 라스트마일 배송서비스/런드리고/매쉬코리아 제휴",null,{"$f":"CONCATENATE((VLOOKUP(B128,'요건 건수'!$D$4:$E$20,2)),COUNTIFS(B$4:B128,B128))","v":"IST_15_1"},"VIP_S","2020-06-12","요건제거","2020-06-12","회장님 리뷰이후 요청제거함(6/12)"]
[null,"15_특화서비스","선물포장 서비스","선물 포장 서비스를 구현하여야 한다. (신규 서비스)\n- 선물 포장 가능 여부를 상품 정보단에서 설정할 수 있어야 한다. (부자재 고르기 X, 포장한다 안한다 선택하는 정도의 수준)\n- 상품정보에서 상품을 담을 때, 선물포장패키지/쇼핑백,포장박스 배송 중 선택할 수 있어야 한다.\n- 선물포장에 대한 비용은 상품가액에 옵션가로 추가한다.\n- 선물포장의 경우, 쇼핑백,포장박스유무를 주문서 표시 및 WMS전송/배송지시서에 출력하여야 한다.",null,{"$f":"CONCATENATE((VLOOKUP(B129,'요건 건수'!$D$4:$E$20,2)),COUNTIFS(B$4:B129,B129))","v":"IST_15_2"},"VIP_J",null,null,null,"하위 중분류 당일배송 내용과 상충하는 내용이 있습니다.\n당일인지 총알인지 명칭과 내용이 통합되어야 할거같습니다."]
[null,"15_특화서비스","선물하기","선물 하기 서비스를 구현하여야 한다.\n- 선물 상품 여부는 상품 정보 단에서 설정할 수 있어야 한다.\n- 선물 상품의 경우, 선물 주문 버튼이 표시되어야 한다.\n- 선물 주문 시 통합 장바구니가 아닌 즉시 주문만 가능하도록 처리되어야 한다.(장바구니X)\n- 선물 주문의 경우 주문 시 받는 사람의 휴대폰 번호로 배송지 입력에 대한 안내가 전송되어야 한다.\n- 선물 주문의 경우, 배송지 입력 전 까지 출고 주문으로 내려가지 않아야 한다.\n- 수령받는 사람이 수령받는 배송지/연락처를 입력할 수 있어야 한다.\n- 선택 한 옵션 값을 수령받는 사람이 변경할 수 있어야 한다. 변경은 동 상품 번호의 옵션 限, 이종상품번호 불가.(단품번호 단위만 가능)\n- 선물 주문의 배송지가 입력 된 상태에서 주문자의 취소는 불가하여야 한다.\n- 선물 배송지가 주문일 D+5 기준 입력되지 않으면 자동 주문 취소 처리가 되어야 한다.\n- 선물 배송의 결제는 신용카드/간편결제(네이버페이/페이코) 만 가능하다.",null,{"$f":"CONCATENATE((VLOOKUP(B130,'요건 건수'!$D$4:$E$20,2)),COUNTIFS(B$4:B130,B130))","v":"IST_15_3"},"VIP_S","2020-07-02","요건제거","2020-07-02","구축 범위 축소로 관련 요청 제거함(박중재T)"]
[null,"15_특화서비스","정기배송","정기 배송 서비스를 구현하여야 한다.(구독 형태로 구현할지에 대해서는 미정)\n- 정기배송 카드를 등록, 수정, 삭제할 수 있어야 한다.\n- 정기배송 상품에 대한 관리가 가능하여야 한다.\n- 정기배송 장바구니가 별도로 있어야 한다.\n- 정기배송에 대한 주기를 설정할 수 있어야 한다.\n- 정기배송 주문 관리 및 건너뛰기, 해지가 가능해야 한다.\n- 정기배송에 대한 자동 결제가 이루어져야 한다.\n- 자동 결제 시 정기배송주문이 WMS로 내려가도록 처리해야 한다.",null,{"$f":"CONCATENATE((VLOOKUP(B131,'요건 건수'!$D$4:$E$20,2)),COUNTIFS(B$4:B131,B131))","v":"IST_15_4"},"VIP_J","2020-06-12","요건제거","2020-06-12","회장님 리뷰이후 요청제거함(6/12)"]
[null,"15_특화서비스","총알배송","총알 배송(당일배송) 서비스에 대한 관리 및 진행이 가능 하여야 한다.\n- 총알 배송 가능 설정 일자, 마감시간 세팅이 가능하여야 한다.\n- 총알 배송 가능 권역에 대한 우편번호를 인터페이스로 일 단위 수집하여야 한다.\n- 총알 배송 가능 공급처에 대한 세팅이 가능하여야 한다.\n- 총알 배송 가능 상품이고 배송권역이 동일할 때, 주문서에서 총알배송에 대한 내용이 노출되어야 한다.\n- 총알 배송 여부를 주문서 표시 및 WMS에 전송되어야 한다.",null,{"$f":"CONCATENATE((VLOOKUP(B132,'요건 건수'!$D$4:$E$20,2)),COUNTIFS(B$4:B132,B132))","v":"IST_15_5"},"VIP_J"]
[null,"15_특화서비스","펀딩/예약배송","펀딩/예약배송이 가능한 서비스를 구현해야 한다.\n- 예약 배송만 자체적으로 이용할 수 있어야 한다.\n- 펀딩의 인원/금액/기간을 설정하면 해당 기간동안 펀딩상품으로 처리 된다. \n- 펀딩으로 걸린 상품은 해당 기간 내 달성하지 못할시 결제 내역이 전체 취소 되어야 한다.\n- 펀딩 페이지에서 댓글을 달 수 있어야 한다.\n- 펀딩 페이지에서 투표를 할 수 있어야 한다.\n- 컨텐츠를 추가로 등록할 수 있어야 한다.\n- 출고일을 설정할 수 있어야 한다.\n- 펀딩이 달성 후 출고일이 되어야 주문이 정상 출하된다.\n- 관리자에서 펀딩페이지 및 관련 세팅을 진행 할 수 있다.\n- 펀딩 으로 설정되었을 경우, 카드 결제만 가능 하도록 제약되어야 한다.",null,{"$f":"CONCATENATE((VLOOKUP(B133,'요건 건수'!$D$4:$E$20,2)),COUNTIFS(B$4:B133,B133))","v":"IST_15_6"},"VIP_J","2020-06-12","요건제거","2020-06-12","회장님 요청으로 제거함(6/12)"]
[null,"16_회원/멤버쉽","로그인/회원정보관리","본인인증이 없는 회원에 대한 안내 화면이 있어야 한다.\n- 본인인증 시 중복 체크 후 해당 CI값을 저장한다.",null,{"$f":"CONCATENATE((VLOOKUP(B134,'요건 건수'!$D$4:$E$20,2)),COUNTIFS(B$4:B134,B134))","v":"IST_16_1"},"기획운영팀",null,null,null,"이사님패스"]
[null,"16_회원/멤버쉽","로그인/회원정보관리","로그인에 대한 보안 기능을 적용 해야 한다.\n1. 비밀번호 입력 오류 시, 비밀번호가 틀리다는 안내 문구 노출 및 횟수 카운트를 하여야 한다.\n2. 5회 이상 입력 오류 시, 자동입력 문자가 노출되어야 한다.\n - 자동입력 문자는 6자로 입력 받으며, 캡챠 툴을 제시하여야 한다.\n - 자동입력 방지 듣기/새로고침 버튼 추가되어야 한다.\n - 음성으로 듣기 시, 음성으로 안내 내용이 노출되어야 한다.\n - 자동입력 방지 문자 입력 오류 시, 리프레시되며 안내가 노출되어야 한다.\n3. 10회 이상 입력 오류 시 3분 間 아이디 로그인이 차단되어야 한다.",null,{"$f":"CONCATENATE((VLOOKUP(B135,'요건 건수'!$D$4:$E$20,2)),COUNTIFS(B$4:B135,B135))","v":"IST_16_2"},"기획운영팀",null,null,null,"30초간 차단 제한이외의 별도 제한은 없는것인지요?\nEx) 동일 아이디가 100번을 톨려도 10번마다 30초 제한이면 되는것인지?"]
[null,"16_회원/멤버쉽","로그인/회원정보관리","디바이스와 관계없이 회원 탈퇴를 진행할 수 있어야 한다.\n- 탈퇴 시 탈퇴연월일시분초를 저장하여야 한다.\n- 탈퇴 시 아이포인트/아이머니/쿠폰은 소멸 되어야 한다.\n- 탈퇴회원이 주문 클레임 진행중일 시 탈퇴 불가 하다.\n- 신규재가입 불가 시점 : 탈퇴일로부터 60일 동안 신규 가입이 불가하다.\n- 60일 이전의 고객은 안내 노출 후, 기존 아이디 복구 여부를 확인한다. 복구되더라도 소멸된 정보는 복원되지 않는다.\n- 아이디 복구 시, 해당 아이디로 재사용 가능",null,{"$f":"CONCATENATE((VLOOKUP(B136,'요건 건수'!$D$4:$E$20,2)),COUNTIFS(B$4:B136,B136))","v":"IST_16_3"},"기획운영팀",null,null,null,"신규재가입 불가 시점이 90일 이라는건 탈퇴시점에 고객정보 소멸이 아닌 90일간 보유라는 이야기 인가요?\n\n기존 아이디 복구 항목을 봤을때 탈퇴를 해도 소멸이 안되는 문제가 발생할걸로 보입니다."]
[null,"16_회원/멤버쉽","로그인/회원정보관리","사용자는 회원정보관리에서 회원 정보를 수정할 수 있어야 한다.\n- 회원 정보의 수정 시, 생년월일 인증을 진행해야 한다. (CI 값을 가지고 비교. 가이드 필요)\n- 개명으로 인한 이름 변경 시, 아이핀 인증/휴대폰 인증 중 선택 하여 인증 후에 성명 변경을 진행해야 한다.\n- 이메일 변경 시 이메일 중복체크 및 이메일유효성체크를 진행 하여야 한다.",null,{"$f":"CONCATENATE((VLOOKUP(B137,'요건 건수'!$D$4:$E$20,2)),COUNTIFS(B$4:B137,B137))","v":"IST_16_4"},"기획운영팀",null,null,null,"성명 변경을 고객이 해야하나요? 휴대폰인증만 한다면 고객이름을 자연스럽게 남길 수 있습니다.\n\n고객이 수정하도록 한다면 이름이 아닌 별명을 넣어도 막을 방법이 없어 보입니다."]
[null,"16_회원/멤버쉽","마이페이지","회원은 마이페이지를 통해 본인의 모든 활동 내역을 확인할 수 있어야 한다.\n- 주문,문의,클레임,위시리스트,회원정보관리,상품권,쿠폰,머니,포인트 등",null,{"$f":"CONCATENATE((VLOOKUP(B138,'요건 건수'!$D$4:$E$20,2)),COUNTIFS(B$4:B138,B138))","v":"IST_16_5"},"기획운영팀",null,null,null,"이사님패스"]
[null,"16_회원/멤버쉽","멤버쉽","활동점수를 통한 등급 체계 수립\nㄴ 구매/리뷰/친구추천 등",null,{"$f":"CONCATENATE((VLOOKUP(B139,'요건 건수'!$D$4:$E$20,2)),COUNTIFS(B$4:B139,B139))","v":"IST_16_6"},"한세MK","2020-06-12","요건제거","2020-06-12","회장님 리뷰이후 요청제거함(6/12)"]
[null,"16_회원/멤버쉽","멤버쉽","멤버쉽 등급 체계에 대한 검토",null,{"$f":"CONCATENATE((VLOOKUP(B140,'요건 건수'!$D$4:$E$20,2)),COUNTIFS(B$4:B140,B140))","v":"IST_16_7"},"VIP_J","2020-06-12","요건제거","2020-06-12","회장님 리뷰이후 요청제거함(6/12)"]
[null,"16_회원/멤버쉽","아이디/비밀번호찾기","아이디찾기/비밀번호찾기를 진행할 수 있어야 한다.\n- 본인인증(휴대폰인증/아이핀인증)/이메일인증) 으로 진행 할수 있어야 한다.\n- 이메일 인증의 경우, 발송된 이메일의 임시번호값(4자리 숫자) 를 Front에 입력하여 인증할수 있어야 한다.\n- 아이디 찾기 결과는 즉시 확인할 수 있어야 한다.\n- 비밀번호 찾기 시, 기존 비밀번호를 Reset 하고 신규 비밀번호를 받아야 한다.\n- BOS/CTI에서 임시 비밀번호를 사용자에게 발송할 수 있어야 한다.",null,{"$f":"CONCATENATE((VLOOKUP(B141,'요건 건수'!$D$4:$E$20,2)),COUNTIFS(B$4:B141,B141))","v":"IST_16_8"},"고객만족팀",null,null,null,"이사님패스"]
[null,"16_회원/멤버쉽","유료멤버쉽","유료 멤버쉽 정책이 수립되어야 한다.\n- 유료 회원 가입 화면이 생성되어야 한다.\n- 유료 회원 가입 시 결제가 진행되어야 하며, 해지 전까지는 자동결제가 가능해야 한다.\n- 유료 회원에 대한 가입 기간 및 내역을 확인할 수 있어야 한다.\n- 유료 회원에 대한 해지가 가능해야 한다.(Front/bos)\n- 유료 회원 가입 시 유료회원 전용 benefit(미정) 이 지급되어야 한다.\n- 유료 회원 만 구입 가능한 상품 세팅이 가능해야 한다.",null,{"$f":"CONCATENATE((VLOOKUP(B142,'요건 건수'!$D$4:$E$20,2)),COUNTIFS(B$4:B142,B142))","v":"IST_16_9"},"VIP_S","2020-06-12","요건제거","2020-06-12","회장님 리뷰이후 요청제거함(6/12)"]
[null,"16_회원/멤버쉽","회원가입","회원 가입에 대한 내용이 구현 되어야 한다.\n- 간편 로그인이 가능 해야 한다.(네이버로그인/Yes24로그인/카카오 로그인)\n- 카카오 멤버십 가입이 가능해야 한다.(카카오싱크 연결 예정)\n- 회원 가입은 본인인증 - 휴대폰인증/아이핀 인증을 통한 회원 가입이 진행되어야 한다.\n- 기 등록된 이메일은 등록할 수 없도록 처리해야 한다.(이메일 인증 프로세스도입)\n- 비밀번호 생성 규칙은 상기와 같은 룰을 적용해야 한다.\n ㄴ8~20자리의 영문 대/소문자, 숫자, 특수문자 중 2가지 이상 조합 -아이디 및 아이디를 포함한 문자/숫자 비밀번호로 사용 불가. \n ㄴ 특수문자 !@#$%^&*()-_ 사용가능. -동일한 문자(숫자), 연속적인 숫자 4자 이상 사용 불가 예)1234, 1111, aaaa",null,{"$f":"CONCATENATE((VLOOKUP(B143,'요건 건수'!$D$4:$E$20,2)),COUNTIFS(B$4:B143,B143))","v":"IST_16_10"},"기획운영팀",null,null,null,"중복된 이메일이 현재 존재한다는 말인가요?"]
[null,"16_회원/멤버쉽","회원가입","추천인에 대한 룰을 수립해야 한다.\n- 추천인 등록 시 혜택 지급 룰을 수립해야 한다.\n- 회원 가입 /회원정보등록에서 추천인 등록이 가능해야 한다.","회원 가입 시 필수 정보\n- 아이디\n- 본인인증키값(생년월일/성별값 저장)\n- 휴대폰 번호(본인인증값의 휴대폰 자동)\n",{"$f":"CONCATENATE((VLOOKUP(B144,'요건 건수'!$D$4:$E$20,2)),COUNTIFS(B$4:B144,B144))","v":"IST_16_11"},"기획운영팀",null,null,null,"범위에서 제외(7/16)"]
[null,"16_회원/멤버쉽","회원관리","관리자에서 회원을 관리 할 수 있어야 한다.\n- 회원 목록\n- 회원 기본정보\n- 회원 쿠폰 내역(쿠폰 기간/사용여부/사용된 주문번호 등)\n- 회원 상품권 내역(등록 내역, 사용내역, 사용된 주문번호, 잔액 등)\n- 회원 포인트 내역\n- 회원 아이머니 내역\n- 회원 주문배송/클레임 내역(주문클레임은 클레임.주문/배송 별도 분리형태로 진행하지 않을것)\n- 회원 이벤트 참여 이력",null,{"$f":"CONCATENATE((VLOOKUP(B145,'요건 건수'!$D$4:$E$20,2)),COUNTIFS(B$4:B145,B145))","v":"IST_16_12"},"기획운영팀",null,null,null,"이사님패스"]
[null,"16_회원/멤버쉽","회원관리","관리자에서 블랙리스트 관리를 제공해야 한다.\n- 블랙리스트 등록 시, 구매제한/이벤트 응모제한으로 나누어 처리할 수 있어야 한다.\n- 블랙리스트는 회원단위로 등록 할수 있어야 한다.\n- 블랙리스트를 해제 할 수 있어야 한다.\n- 등록 해제 기록이 남아야 한다.",null,{"$f":"CONCATENATE((VLOOKUP(B146,'요건 건수'!$D$4:$E$20,2)),COUNTIFS(B$4:B146,B146))","v":"IST_16_13"},"기획운영팀",null,null,null,"본인이 블랙리스트 유무를 Front에서 알아야 합니까?\n(제제내용 및 제제기간 등) 모르는 상태에서 이벤트 참여 등이 제한된다면 이상하게 보일 수 있을거 같습니다."]
[null,"16_회원/멤버쉽","회원관리","탈퇴/휴면회원에 대한 회원 확인이 가능해야 한다.\n- 관리자를 통해 휴면 해제가 가능해야 한다.",null,{"$f":"CONCATENATE((VLOOKUP(B147,'요건 건수'!$D$4:$E$20,2)),COUNTIFS(B$4:B147,B147))","v":"IST_16_14"},"고객만족팀",null,null,null,"탈퇴회원에 대한 정보를 확인하면 안되지 않을까요? 소멸정보일텐데.."]
[null,"16_회원/멤버쉽","휴면회원","휴면 회원에 대한 관리를 진행할 수 있어야 한다.\n- 회원 정보 보유 기간에 따라 해당 기간만큼의 접속기록(로그인 기록)이 없을 시 휴면으로 처리 되어야 한다. \n- 사용자는 로그인 시 휴면에 대한 안내창을 확인할 수 있어야 하며, 휴면에 대한 해제를 본인인증(휴대폰인증/아이핀인증)을 통해 할 수 있어야 한다.\n- 휴면 회원에 대한 해제는 관리자(BOS/CTI)에서 별도로 진행할 수 있어야 한다.\n- 휴면 회원에 대한 내역을 관리자(BOS/CTI)에서 확인할 수 있어야 한다.",null,{"$f":"CONCATENATE((VLOOKUP(B148,'요건 건수'!$D$4:$E$20,2)),COUNTIFS(B$4:B148,B148))","v":"IST_16_15"},"고객만족팀",null,null,null,"이사님패스"]
[null,"17_운영관리","EP/제휴관리","EP 미전송 상품에 대한 관리가 가능해야한다.",null,{"$f":"CONCATENATE((VLOOKUP(B149,'요건 건수'!$D$4:$E$20,2)),COUNTIFS(B$4:B149,B149))","v":"IST_17_1"},"패션팀",null,null,null,"이사님패스"]
[null,"17_운영관리","EP/제휴관리","네이버 지식쇼핑 최저가를 검색할 수 있는 메뉴가 생성되어야 한다.\n- 상품 다수개 넣고 조회 하는 메뉴 생성\n- 노출 내용 최저가/자사몰가격/차액/최저가몰URL ",null,{"$f":"CONCATENATE((VLOOKUP(B150,'요건 건수'!$D$4:$E$20,2)),COUNTIFS(B$4:B150,B150))","v":"IST_17_2"},"패션팀",null,null,null,"이사님패스"]
[null,"17_운영관리","관리자조회공통","관리자의 조회 옵션에 대한 강화 및 조회 성능이 개선되어야 한다.\n- 10만개 이상의 데이터를 조회할 수 있어야 한다.\n- 기간 제한 없이 조건 검색시 결과가 노출되어야 한다.\n- 상품번호, 공급처, 브랜드, 협력사번호, 주문번호, 채널값, 회원아이디 등은 다수개/멀티 조회할 수 있어야 한다\n- 관리자에서 데이터 등록 시 기본 시간 설정은 연/월/일/시/분/초를 모두 설정할 수 있어야한다..\n- 그리드조회 목록에 대한 엑셀 다운로드 기능이 제공되어야 한다.",null,{"$f":"CONCATENATE((VLOOKUP(B151,'요건 건수'!$D$4:$E$20,2)),COUNTIFS(B$4:B151,B151))","v":"IST_17_3"},"패션팀",null,null,null,"이사님패스"]
[null,"17_운영관리","당일배송 관리","당일 배송 관리는 권역단위로 인터페이스 되어야 한다.\n당일 배송에 대한 권역(우편번호)를 수신받아야 한다.\n당일 배송은 자사 상품에 한한다.",null,{"$f":"CONCATENATE((VLOOKUP(B152,'요건 건수'!$D$4:$E$20,2)),COUNTIFS(B$4:B152,B152))","v":"IST_17_4"},"기획운영팀",null,null,null,"위 중분류 총알배송 내용과 상충하는 내용이 있습니다.\n당일인지 총알인지 명칭과 내용이 통합되어야 할거같습니다."]
[null,"17_운영관리","배송관리","배송정보 관리가 가능하여야 한다.\n- 일반 배송비/ 반품교환배송비 를 설정할 수 있어야 한다.\n- 배송지/반송지 설정이 가능해야 한다.",null,{"$f":"CONCATENATE((VLOOKUP(B153,'요건 건수'!$D$4:$E$20,2)),COUNTIFS(B$4:B153,B153))","v":"IST_17_5"},"기획운영팀"]
[null,"17_운영관리","배송비 정산","배송비 정산은 별도로 진행할 수 있어야 한다.",null,{"$f":"CONCATENATE((VLOOKUP(B154,'요건 건수'!$D$4:$E$20,2)),COUNTIFS(B$4:B154,B154))","v":"IST_17_6"},"패션팀",null,null,null,"별도라는 말은 고객이 교환등에 의해 배송비가 발생시 배송비만 별도로 결제가 가능해야 한다는 말인가요?"]
[null,"17_운영관리","권한관리","구현될 메뉴 구조도와 사용자/그룹별 접근 권한을 제시하여야 한다\n관리자에서 사용자 생성/관리/메뉴별/그룹별/ 사용권한을 변경 하거나 제어할 수 있어야 한다.\n개인정보와 관련된 메뉴에 대해서는 접근 권한 관리, 접근 이력 및 처리 이력을 로그로 저장되어야 한다. ",null,{"$f":"CONCATENATE((VLOOKUP(B155,'요건 건수'!$D$4:$E$20,2)),COUNTIFS(B$4:B155,B155))","v":"IST_17_7"},"기획운영팀",null,null,null,"이사님패스"]
[null,"17_운영관리","알림/CRM","푸시 발송 툴과의 연계 작업이 진행되어야 한다.\n관리자를 통해 이메일을 발송하거나 세팅할 수 있어야 한다.\n자동 발송 이메일이 개발되어야 한다.",null,{"$f":"CONCATENATE((VLOOKUP(B156,'요건 건수'!$D$4:$E$20,2)),COUNTIFS(B$4:B156,B156))","v":"IST_17_8"},"기획운영팀",null,null,null,"이사님패스"]
[null,"17_운영관리","알림/CRM","자동 알림 기능을 개발 하여야 한다. (as-is에는 없는 기능)\n- 쿠폰 소멸 기한(D-3) 시점 쿠폰 사용 알림이 발송되어야 한다.\nㄴ 소멸 기한 알림은 쿠폰의 알림 설정 여부에 따른다.\n- 장바구니에 3일 이상 상품이 담겨져 있을 경우 알림이 발송되어야 한다.\n- 장바구니 등록 상품이 등록 시점보다 할인 되었을 시 알림이 발송되어야 한다.\n- 위시리스트 등록 상품이 등록 시점보다 할인 되었을 시 알림이 발송되어야 한다.\n- 품절 재입고 알림을 설정한 상품일 경우, 입고 된 시점일 때 재입고 알림이 발송되어야 한다.",null,{"$f":"CONCATENATE((VLOOKUP(B157,'요건 건수'!$D$4:$E$20,2)),COUNTIFS(B$4:B157,B157))","v":"IST_17_9"},"기획운영팀",null,null,null,"알림은 누구에게 발송하는건가요?\n또한 알림의 방식은?"]
[null,"17_운영관리","알림/CRM","주문상태에 대한 알림이 이메일/알림톡 or SMS로 발송되어야 한다.\n- 자동발송 이메일에 대한 템플릿 관리가 가능해야 한다.",null,{"$f":"CONCATENATE((VLOOKUP(B158,'요건 건수'!$D$4:$E$20,2)),COUNTIFS(B$4:B158,B158))","v":"IST_17_10"},"기획운영팀",null,null,null,"이사님패스"]
[null,"17_운영관리","정산관리","제휴처에 대한 매출 정산, 매출전표 조회, 주문전표조회가 가능해야 한다.",null,{"$f":"CONCATENATE((VLOOKUP(B159,'요건 건수'!$D$4:$E$20,2)),COUNTIFS(B$4:B159,B159))","v":"IST_17_11"},"패션팀",null,null,null,"이사님패스"]
[null,"17_운영관리","정산확정","정산확정이 가능해야 한다.",null,{"$f":"CONCATENATE((VLOOKUP(B160,'요건 건수'!$D$4:$E$20,2)),COUNTIFS(B$4:B160,B160))","v":"IST_17_12"},"패션팀",null,null,null,"이사님패스"]
[null,"17_운영관리","코드관리","관리자에서 코드 관리를 통해 사이트에서 사용하는 항목의 상태값의 관리를 진행하여야 한다.",null,{"$f":"CONCATENATE((VLOOKUP(B161,'요건 건수'!$D$4:$E$20,2)),COUNTIFS(B$4:B161,B161))","v":"IST_17_13"},"기획운영팀",null,null,null,"이사님패스"]
[null,"17_운영관리","통계관리","회원 및 구매 현황 분석이 가능한 통계 화면을 제공해야 한다.\n기간별 조회가 가능하여야 하며, 각 조건은 멀티 조회가 가능해야 한다.\n조회한 통계는 엑셀 다운로드가 가능해야 한다.\n[제공 통계내역]\n- 전체회원통계(등급별회원수,일별회원가입수,탈퇴수,휴면회원수,전체회원수성별.연령별 회원,액티브회원)\n- 신규회원통계(일별/가입경로별/연령별)\n- 휴면/탈퇴회원통계(기간별/성별/연령별)\n- 일별 주문 통계(전체/채널별/주문수/주문금액/주문취소수/주문취소액/교환주문수/반품/반품주문수/반품상품수/반품상품액)\n- 등급/연령/지역별/상위구매자 주문통계\n- 상품/카테고리별/브랜드별/공급처별 주문 통계\n- 결제수단별 통계(PG별/아이머니/상품권)\n- 쿠폰 사용 통계(쿠폰 다운로드수, 쿠폰 사용 수, 쿠폰 사용율, 쿠폰 사용액, 쿠폰매출액)\n- 기획전 주문 통계(기획전 판매 상품, 기획전 매출)\n- 주문 프로모션 통계(프로모션 적용주문 수, 프로모션 사용액, 프로모션 적용 매출액)","\n기간 : 일간/주간/월간/기간설정(최대3년)\n[다중선택]\n연령 : 10대/20대/30대/40대/50대/기타\n성별 : 남성/여성\n브랜드\n공급처\n상품번호",{"$f":"CONCATENATE((VLOOKUP(B162,'요건 건수'!$D$4:$E$20,2)),COUNTIFS(B$4:B162,B162))","v":"IST_17_14"},"기획운영팀",null,null,null,"이사님패스"]
[null,"17_운영관리","통계관리","조건별 데이터 추출이 가능한 메뉴를 생성 한다.\n- 브랜드 별 구매자\n- 주문 일괄 추출\n- 추출 항목은 향후 추가할 수 있는 형태로 ui를 설계한다.",null,{"$f":"CONCATENATE((VLOOKUP(B163,'요건 건수'!$D$4:$E$20,2)),COUNTIFS(B$4:B163,B163))","v":"IST_17_15"},"기획운영팀",null,null,null,"이사님패스"]
[null,"17_운영관리","협력사관리","협력사 관리가 가능하여야 한다.\n- AS-IS와 동일 수준으로 관리가 가능하여야 한다.\n- 협력사 조회 시, 협력사 명, 사업자등록번호, 협력사 ID 로 조회할 수 있어야 한다.\n- 협력사 계정으로 SCM에 로그인할 수 있어야 한다.",null,{"$f":"CONCATENATE((VLOOKUP(B164,'요건 건수'!$D$4:$E$20,2)),COUNTIFS(B$4:B164,B164))","v":"IST_17_16"},"패션팀",null,null,null,"이사님패스"]
[null,"15_특화서비스","예약배송","예약 배송을 설정할 수 있어야 한다.\n- 예약 기간/출고일을 설정할 수 있어야 한다. (날짜지정은 할 수 없다)\n- 출고일 전에 주문은 묶여있다가 출고일 이후 주문이 내려갈 수 있어야 한다. (출고 전 주문 받는 상품임. 출고 일자 노출 필요)\n예약발송된다는 노티만 있으면 됨\n- 현 재고와 관계없이 예약재고를 별도로 설정할 수 있어야 한다.",null,{"$f":"CONCATENATE((VLOOKUP(B165,'요건 건수'!$D$4:$E$20,2)),COUNTIFS(B$4:B165,B165))","v":"IST_15_7"},"패션팀","2020-06-12",null,null,"6/12 Added"]
[null,"15_특화서비스","매장 O2O","- 매장 재고 연동되어야 한다.\n- 온라인 주문 후 직송매장 할당 -> 매장에서의 택배발송 이 되어야 한다.\n- 재고 연동 및 주문이 내려갈 수있는 기간계연동이 필요하다.",null,{"$f":"CONCATENATE((VLOOKUP(B166,'요건 건수'!$D$4:$E$20,2)),COUNTIFS(B$4:B166,B166))","v":"IST_15_8"},"패션팀",null,null,null,"이사님패스"]
[null,"02_I.F/MIG/연동/솔루션","상품등록솔루션","상품등록/관리 솔루션 연동(자사몰정보기준)\n자사몰정보 --> 샵링커 연동을 지원해야 한다.",null,{"$f":"CONCATENATE((VLOOKUP(B167,'요건 건수'!$D$4:$E$20,2)),COUNTIFS(B$4:B167,B167))","v":"IST_02_10"},"패션팀","2020-06-12",null,null,"6/12 Added"]
[null,"15_특화서비스","라이브 커머스","라이브커머스를 제공할 수 있는 툴이 제공되어야 한다.\n- 라이브 영상을 스트리밍 할수 있어야 한다.\n- 라이브를 시청하면서 채팅을 입력할 수 있어야 한다.\n- 채팅방에 대한 관리자 권한이 존재하여야 한다.\n- 상품상세에서 라이브로 접근할 수 있어야 한다.\n- 라이브를 조회한 상태에서 화면을 축소했을 때, 재생되는 상태의 소 레이어를 구현해야한다.",null,{"$f":"CONCATENATE((VLOOKUP(B168,'요건 건수'!$D$4:$E$20,2)),COUNTIFS(B$4:B168,B168))","v":"IST_15_9"},"기획운영팀","2020-06-12","요건제거","2020-07-03","결제 즉시 연동 가능여부 검토(6/12 Added)\n7/3 요건 범위 이슈로 제거 확정"]
[null,"09_상품관리","구매 제한 및 수량","구매 수량 제한이 가능 해야 한다.\n- ID 당 일일 최대 구매 수량을 제어할 수 있어야 한다.\n- 구매 조건 당 최대 구매수량을 제어할 수 있어야 한다..",null,{"$f":"CONCATENATE((VLOOKUP(B169,'요건 건수'!$D$4:$E$20,2)),COUNTIFS(B$4:B169,B169))","v":"IST_09_21"},"기획운영팀","2020-07-03",{"$nulls":4},"A2001"]

{"sheet":"vip 요구사항","index":3,"n_rows":10,"n_cols":5,"rows_kept":10,"cut":false,"hidden":true,"merged":[[0,1,0,4]]}
[null,"VIP 요청사항"]
[]
[null,"중분류","상세요구사항","수용여부","요청사"]
[null,"결제수단","세이페이 도입","수용","김석환 대표"]
[null,"신규서비스","유료 혹은 멤버회원만 접근이 가능한 기획전 등의 폐쇄 기획전 개발필요\n- 기획전 접근 조건에 대한 기능 필요","수용","김석환 대표"]
[null,"신규서비스","정기배송 서비스 (구독/정기배송)","미수용","김지원 대표"]
[null,"신규서비스","2개 이상 사이즈 배송 후 하나 반품 하는 서비스\n- 런드리고 등과 제휴하여 라스트마일 서비스 구현 검토","미수용","김석환 대표"]
[null,"신규서비스","크라우드펀딩 벤치마킹 : 제품 제작전 소비자의 참여/니즈수렴 (게시판/투표기능) → 이후 제품 제작에 반영 ,  전체 과정이 하나의 컨텐츠가 될수 있다","미수용","김지원 대표"]
[null,"신규서비스","유료 회원 서비스 수립","미수용","김지원 대표"]
[null,"개발","개발언어 JAVA / DB : my sql 검토","수용","김석환 대표"]

{"sheet":"관계사요구사항","index":4,"n_rows":45,"n_cols":4,"rows_kept":45,"cut":false,"hidden":true,"merged":[[0,1,0,3]]}
[null,"관계사 요청 사항"]
[]
[null,"중분류","상세요구사항","요청사"]
[null,"결제","비로그인시 네이버아이디만으로 즉시 구매","한세드림"]
[null,"프로모션","프로모션 다양하게 적용 가능한 상세페이지(1+1 프로모션)","한세드림"]
[null,"검색","검색필터세분화","한세드림"]
[null,"화면공통/UI","사이즈 옵션 확인 보기쉽게","한세드림"]
[null,"화면공통/UI","카테코리 직관적으로 보이도록 UI변경","한세드림"]
[null,"상품","신상품과 이월이 구분되었으면 함. 현재는 상품이 뒤섞여 있어 시즌 신상품 노출이 제대로 안되고 있음.","한세드림"]
[null,"상품","품명이 너무 길고 모든 정보를 다 담으려고 해서 소비자들이 보기 어려움. 모이몰른을 예로 들면 품명에 품번까지 다 노출되어 있음. 품번이 노출될 필요는 없어 보임.","한세드림"]
[null,"검색","검색 기능 강화 필요해 보임.(현재는 검색어에 품명에 기재되어 있는 내용이 들어가야만 검색 가능. 예를들어 ‘모이몰른 긴팔티’ 로 검색시 품명에 ‘모이몰른’과’긴팔티’가 들어가 있는 한스타일만 조회됨.)","한세드림"]
[null,"상품","카테고리&아이템 명 정리 필요: 현재는 사용하지 않는 카테고리 명이 노출되어 있고 카테고리 구분도 명확하지 않음 (이 부분은 추후 논의가 필요할 것 같음.)","한세드림"]
[null,"검색","상세검색 조건 보강되었으면 함: 모이몰른 기준 à 신상,이월 / AGE (베이비, 토들러)..","한세드림"]
[null,"화면공통/UI","와이드 화면에 맞게 호환","한세드림"]
[null,"상품","토들러~주니어사이즈 한 화면에서 구매할 수 있었으면 함 (NOF11QJM54화면에서 140~170사이즈 구매 원할시 NOF13QJM54화면으로 넘어가거나 혹은 사이즈 옵션 추가되었으면 좋겠음)","한세드림"]
[null,"상품","세트코디되는 상품 나란히 배열 혹은 구매화면에서 세트코디되는 상품 보여주기","한세드림"]
[null,"상품","조던 가방 성인 카테고리에서도 보여주기 (나이키 온라인스토어에서 한세 수주상품 성인 카테고리에서 판매중)","한세드림"]
[null,"브랜드샵","브랜드 컨텐츠 노출이 별도로 되었으면 좋겠음\n- 회원들간의 커뮤니티 활성화 목적의 이벤트 진행 \n- 광고, 룩북, 영상 등 공개-아이템 연동 노출","한세MK"]
[null,"커뮤니티","사이즈 추천/후기 작성 추가\n-구매 고객이 남긴 사이즈 추천 리뷰를 통해 구매고객 편의 제공\n-후기: 일반후기, 상품 사진 후기, 스타일 후기, 사이즈 추천\n(후기를 통한 2차 컨텐츠 노출 가능/후기 등록 고객 추가 마일리지, 등급 UP 등 베네핏 추가)","한세MK"]
[null,"상품","상품상세 페이지 UI 사용성확보\n상세페이지 적용시 한 스크롤 내에서도 제품 정보를 얻고 구매가 바로 가능하도록 디자인 구성\n(참조몰 코오롱/한섬/SSG)","한세MK"]
[null,"상품","상품 목록 내 UI 개선\n세로 섬네이 사용, 마우스 오버시 옵션/사이즈/컬러와 같은 정보 표기","한세MK"]
[null,"검색","스마트 렌즈 기능 도입","한세MK"]
[null,"검색","검색 필터 기능강화(무신사/si빌리지/mr porter)","한세MK"]
[null,"화면공통/UI","브랜드 메뉴 분리, 대표 브랜드 Gnb에 노출","한세MK"]
[null,"화면공통/UI","최근 트렌드를 반영한 메인 화면 개편 \n- Snap 웹진 컨텐츠 전면 노출 비중 강화하여 타 사이트와 차별화, 트래픽 유도","한세MK"]
[null,"상품","고객 쇼핑 편리한 패션 각 복종 별 명확한 상품군 분류","한세MK"]
[null,"상품","2030대 고객 니즈 상품군 보강 : 자사 상품 외 주 타겟 고객층을 유입 시킬 수 있는 라이프스타일(리빙/가전/무형) 상품 보강","한세MK"]
[null,"브랜드샵","브랜드샵 강화 : 각 브랜드샵이 해당 브랜드 홈페이지 역할까지 할 수 있도록 컨텐츠 구성(시즌광고,영상,룩북 등)","한세MK"]
[null,"브랜드샵","브랜드 별 충성고객 모집(ex 스토어찜)및 SMS/앱푸시/카카오메시지 등 자체 마케팅 기능 구현","한세MK"]
[null,"결제","고객 선호 결재수단(카카오페이,네이버페이,페이코 등) 추가 및 카드사 제휴 혜택 강화","한세MK"]
[null,"프로모션","앱전용쿠폰, 상품지정쿠폰, 브랜드쿠폰 등 특정 Range 쿠폰 설정 기능 추가","한세MK"]
[null,"멤버쉽"," 고객 등급 별 혜택 강화를 통한 쇼핑몰 LOCK-IN 전략\n구매/리뷰작성/친구추천하기 등 다양한 활동 점수로 등급 반영, 회원 등급별 상품 가격 차별화 혜택","한세MK"]
[null,"특화서비스","신상 판매를 촉진을 위한 스페셜 기능 신설\n브랜드별 신상 출시 전 고객 알리기 / 사전혜택 프로모션 (29CM 'PT', 무신사 '쇼케이스’ 등)\n브랜드별 키아이템 노출 강화 : 하반기 브랜드별로 키아이팀에 2개씩 출시될 예정으로, 이를 효과적으로 노출할수 있는 페이지 필요","한세MK"]
[null,"특화서비스","브랜드 재고 부담 없이 고객 반응을 확인 할 수 있는 패션 전문 펀딩 코너 구성\n(고객 참여도를 높이기 위한 커뮤니티 구현)","한세MK"]
[null,"특화서비스","각 브랜드별 방대한 오프라인 매장 및 판매사원 컨텐츠로 연계 활용\n매장 직원 데일리 자사 착장 컷/헤시테그 컨텐츠 SNS 업로딩 및 아이스타일24 연동 구현(브랜드 자체 경진대회/포상안과 연계)","한세MK"]
[null,"검색","다양한 검색 (자동검색어/인기검색어/추천검색어/브랜드검색 등)기능/결과값을 통한 구매 전환율 UP","한세MK"]
[null,"검색","Snap 웹진 컨텐츠에 대한 내용도 아이스타일 상품 검색과 통합, 쇼핑/컨텐츠 포털화","한세MK"]
[null,"특화서비스","포장패키지 구매 : 제품 구매시 포장패키지 추가구매 선택하고, 쇼핑백/포장박스를 배송해주는 옵션 (유아동뿐 아니라 캐주얼도 니즈 있음)","김지원CEO"]
[null,"상품","입점 패션 카테고리는 리뉴얼시점에 CLOSE","김지원CEO"]
[null,"프로모션"," yes24 의 사은품을 적극적으로 활용해줄것 : 대량 제작시 개당 단가를 낮출수 있으므로 ","김지원CEO"]
[null,"상품","추천상품 (큐레이션) 제공 : 1차로 1뎁스 정도의 서비스로 시행 > 코디상품 제시, 같은카테고리 다른상품, 같은브랜드 다른상품","김지원CEO"]
[null,"특화서비스","②정기배송 서비스 : 정기배송서비스에 필요한 견적 검토하고,  리뉴얼 전에라도 수동으로 진행이 되었으면 한다","김지원CEO"]
[null,"특화서비스","사이즈 선택 고민 해소 : 2개이상의 사이즈를 배송하고, 하나를 반품하는 서비스 , 배송비 발생의 이슈가 있어 시뮬레이션 필요함\n- 아마존 프라임과 같은 유료회원제 사례","김지원CEO"]
[null,"특화서비스","멤버스 혜택 강화 : 멤버스만 접근할수 있는 이벤트페이지 및 폐쇄형 기획전페이지 개발 필요, 3~4년차 이월은 폐쇄기획전통해 소진 (정상상품 활성화 차원)","김지원CEO"]
[null,"IDENTITY","리뉴얼 사이트 '네이밍' 에 대한 의견취합 필요하다, 'YES'나 '한세' 문구가 들어가는 것 외에 다른 네이밍도 고민해보라","김지원CEO"]

{"sheet":"요청 산출물 리스트","index":5,"n_rows":31,"n_cols":5,"rows_kept":31,"cut":false,"hidden":false,"merged":[[0,1,0,4]]}
[null,"요청 산출물 리스트"]
[]
[null,null,"파트","산출물 리스트","작업주체"]
[null,1,"기획","요구사항 정의서","현업"]
[null,2,null,"기능정의서","수행사"]
[null,3,null,"서비스 정책서(프로세스정의서)","수행사"]
[null,4,null,"IA(Front / BOS)","수행사"]
[null,5,null,"화면설계서(Front / BOS)","수행사"]
[null,6,"디자인","디자인 PSD 전본","수행사"]
[null,7,null,"디자인 스타일 가이드","수행사"]
[null,8,null,"배너 운영 가이드","수행사"]
[null,9,"퍼블리싱","HTML/CSS 원본","수행사"]
[null,10,null,"CSS 스타일 가이드","수행사"]
[null,11,"구현/개발","ERD","수행사"]
[null,12,null,"테이블 명세서","수행사"]
[null,13,null,"Program 명세서","수행사"]
[null,14,null,"Program 목록","수행사"]
[null,15,null,"Batch/프로시저/인터페이스 LIST","수행사"]
[null,16,null,"개발 프로그램 소스","수행사"]
[null,17,"테스트","단위 테스트 시나리오(Front / BOS)","수행사"]
[null,18,null,"통합 테스트 시나리오(Front / BOS)","수행사"]
[null,19,null,"성능테스트 결과서","수행사"]
[null,20,"완료","운영자 매뉴얼(Front / BOS)","수행사"]
[null,21,null,"시스템 매뉴얼","수행사"]
[null,22,"프로젝트관리","WBS(IA기준 작성요망)","수행사"]
[null,23,null,"착수보고","수행사"]
[null,24,null,"중간보고","수행사"]
[null,25,null,"완료보고","수행사"]
[null,26,null,"주간보고","수행사"]
[null,27,null,"이슈리스트(상태관리 必)","수행사"]
[null,28,null,"회의록","수행사"]

{"sheet":"마이그레이션범위","index":6,"n_rows":26,"n_cols":5,"rows_kept":26,"cut":false,"hidden":false,"merged":[]}
[null,"DATA MIGRATION 기준"]
[]
[null,"구분","데이터","MIG/데이터이관 여부","비고"]
[null,"구bos","협력사 정보","O"]
[null,null,"공급처 정보","O"]
[null,null,"물류정보","O"]
[null,null,"택배사정보","O"]
[null,null,"브랜드","O"]
[null,null,"표준분류",null,"기존 표준분류와 신규 데이터와 매핑 필요"]
[null,null,"전시카테고리","X","상품 마이그레이션시 신규 카테고리 생성하여 매핑예정"]
[null,null,"상품정보","O","판매종료된 OLD 상품에 대한 구분 필요"]
[null,null,"상품평","O"]
[null,null,"1:1 문의","O"]
[null,null,"상품문의","O"]
[null,null,"회원정보","O"]
[null,null,"쿠폰"]
[null,null,"상품권","O"]
[null,null,"아이포인트","O"]
[null,null,"아이머니","O"]
[null,null,"시리얼쿠폰","O"]
[null,null,"주문정보","O"]
[null,null,"클레임정보(주문취소/교환/반품)","O"]
[null,null,"기획전","X"]
[null,null,"이벤트","X"]
[null,null,"패션매거진","해당없음"]
[null,"Newbos","잇스타일 관리","X"]

{"sheet":"TOBE FRONT IA","index":7,"n_rows":242,"n_cols":9,"rows_kept":242,"cut":false,"hidden":false,"merged":[[0,2,0,8]]}
[null,null,"TO-BE FRONT IA  현업 1차 가안"]
[]
[null,"No","1 Depth","2 Depth","3 Depth","4 Depth","5 Depth","Page Type","비고"]
[null,1,"홈",{"$nulls":4},"Page"]
[null,2,"브랜드","브랜드 목록","ㄱㄴㄷ형",null,null,"Tab"]
[null,3,null,null,"ABC형",null,null,"Tab"]
[null,4,null,null,"브랜드 개별메인",null,null,"Page"]
[null,5,null,null,"브랜드 카테고리",null,null,"Page"]
[null,6,"BEST",{"$nulls":4},"Page"]
[null,7,"핫딜",{"$nulls":4},"Page","하루특가 -> 변경"]
[null,8,"총알배송",{"$nulls":4},"Page"]
[null,9,"아울렛",{"$nulls":4},"Page"]
[null,10,"룩북","Index","목록 있음",null,null,"Page"]
[null,11,null,null,"목록 없음",null,null,"Page"]
[null,12,null,"상세",null,null,null,"Page"]
[null,13,"기획전","Index","목록 있음",null,null,"Page"]
[null,14,null,null,"목록 없음",null,null,"Page"]
[null,15,null,"기획전 상세",null,null,null,"Page"]
[null,16,"이벤트","Index","목록 있음",null,null,"Page"]
[null,17,null,null,"목록 없음",null,null,"Page"]
[null,18,null,"이벤트 상세",null,null,null,"Page"]
[null,19,null,null,"설문",null,null,"Page"]
[null,20,null,null,"댓글 결과 없음",null,null,"Page"]
[null,21,null,"핑캣 멤버쉽","로그인 전",null,null,"Page"]
[null,22,null,null,"로그인 후",null,null,"Page"]
[null,23,null,"신규가입 혜택",null,null,null,"Page","/PlanShop/PlanShopView.aspx?CategoryNo=1728390"]
[null,24,null,"생일 쿠폰 안내",null,null,null,"Page"]
[null,25,null,"월간 상품평",null,null,null,"Page","베스트 상품평 선정 시 노출"]
[null,26,null,"출석체크","로그인 전",null,null,"Page"]
[null,27,null,null,"로그인 후",null,null,"Script"]
[null,28,"카테고리","카테고리 레이어","로그인 전",null,null,"layer"]
[null,29,null,null,"로그인 후",null,null,"Script"]
[null,30,null,"상위 Depth",null,null,null,"Page"]
[null,31,null,"하위 Depth","목록",null,null,"Page","* 상품 없을 시 Front 카테고리 노출하지 않음"]
[null,32,null,null,"필터 결과 없음",null,null,"Page"]
[null,33,"상품 상세","상품 상세","Body",null,null,"Page"]
[null,34,null,null,"옵션레이어","딜상품","상품 선택 레이어","POPUP"]
[null,35,null,null,null,"일반상품","옵션 UI 타입 1","POPUP","Select box Type"]
[null,36,{"$nulls":4},"옵션 UI 타입 2","POPUP","컬러칩/사이즈 고르는형태"]
[null,37,{"$nulls":4},"옵션 리스트 레이어","POPUP","옵션 리스트 선택 (Selectbox type)"]
[null,38,{"$nulls":4},"선물포장 선택","POPUP"]
[null,39,null,null,null,"품절 재입고 알림",null,"POPUP"]
[null,40,null,null,"기능레이어","찜하기 완료",null,"layer"]
[null,41,null,null,null,"장바구니 담기완료",null,"layer"]
[null,42,null,null,"EP 쿠폰 안내 레이어",null,null,"POPUP"]
[null,43,null,null,"쿠폰받기","쿠폰 목록",null,"POPUP"]
[null,44,null,null,null,"쿠폰받기 완료",null,"layer"]
[null,45,null,null,"구매혜택",null,null,"POPUP"]
[null,46,null,null,"배송혜택",null,null,"POPUP"]
[null,47,null,null,"카드혜택","카드 할인 정보",null,"POPUP","layer 내 탭으로 처리"]
[null,48,null,null,null,"무이자 혜택",null,"Tab","layer 내 탭으로 처리"]
[null,49,null,null,"묶음배송 상품 목록",null,null,"Page"]
[null,50,null,null,"다다익선 상품 목록",null,null,"Page"]
[null,51,null,null,"상세정보","일반",null,"Page"]
[null,52,null,null,null,"딜상품","1개형","Page"]
[null,53,{"$nulls":4},"2개형","Page"]
[null,54,null,null,"코디 목록",null,null,"TAB"]
[null,55,null,null,"상품 Q&A","목록 있음","게시물 OPEN","Page"]
[null,56,{"$nulls":4},"비밀글 CASE","Script"]
[null,57,null,null,null,"목록 없음",null,"Page"]
[null,58,null,null,null,"Q&A 등록",null,"Page"]
[null,59,null,null,null,"Q&A 수정",null,"Page"]
[null,60,null,null,"상품평","상품평 목록",null,"Page"]
[null,61,null,null,null,"포토/비디오상품평 조회",null,"POPUP"]
[null,62,null,null,null,"소팅 레이어",null,"layer"]
[null,63,null,null,null,"상품평 소팅결과 없음",null,"Script"]
[null,64,null,null,null,"건강식품/상품평 노출불가",null,"Page"]
[null,65,null,null,null,"등록 상품평 없음",null,"Page"]
[null,66,null,null,null,"상품 리뷰 정책",null,"POPUP"]
[null,67,null,null,"사이즈 가이드","실측 사이즈",null,"POPUP","WMS 실측 등록 사이즈 데이터 호출됨\n- WMS 실측등록내역조회\n- Backend 조회 데이터 I/F 필요"]
[null,68,null,null,null,"표준 사이즈",null,"Tab","AS_IS 코너로 관리됨, 브랜드 코드에 매핑 변경\n(HTML 등록형태, 관리 어려움)\n- 데이터 형태 컬럼시트 참조 하여 제공"]
[null,69,null,null,null,"사이즈 측정 가이드",null,"Tab","상품 상세 코너로 관리"]
[null,70,null,null,"상품품목고시정보","품목별 정보",null,"POPUP","딜 상품에서는 상품 선택 UI 필요"]
[null,71,null,null,null,"안전정보/KC 정보 인증",null,"External Link"]
[null,72,null,null,"배송/교환/환불안내",null,null,"POPUP"]
[null,73,"검색","검색 레이어 ",null,null,null,"POPUP"]
[null,74,null,"검색 자동완성","자동완성 있음",null,null,"POPUP"]
[null,75,null,null,"자동완성 없음",null,null,"POPUP"]
[null,76,null,"검색 결과","검색결과 있음",null,null,"Page"]
[null,77,null,null,"검색결과 없음",null,null,"Page"]
[null,78,null,null,"검색필터링 결과 없음",null,null,"Page"]
[null,79,null,null,"소팅 레이어",null,null,"layer"]
[null,80,null,"검색필터",null,null,null,"Page"]
[null,81,"주문결제","장바구니","상품 없음",null,null,"Page"]
[null,82,null,null,"상품 있음",null,null,"Page"]
[null,83,null,null,"옵션 변경",null,null,"layer"]
[null,84,null,"주문서","주문서",null,null,"Page"]
[null,85,null,null,"사은품 선택",null,null,"Page"]
[null,86,null,null,"쿠폰 ","쿠폰 목록",null,"POPUP"]
[null,87,null,null,"배송지 선택","배송지 목록",null,"POPUP","* 회원 DATA의 배송지 "]
[null,88,null,null,null,"배송지 등록",null,"Internal Link"]
[null,89,null,null,"결제 수단 선택","신용카드",null,"Tab"]
[null,90,null,null,null,"휴대폰결제",null,"Tab"]
[null,91,null,null,null,"가상계좌결제",null,"Tab"]
[null,92,{"$nulls":4},"에스크로 가입 안내","layer"]
[null,93,null,null,null,"네이버페이",null,"Tab"]
[null,94,null,null,null,"페이코",null,"Tab"]
[null,95,null,null,null,"카카오페이",null,"Tab"]
[null,96,null,null,null,"세이페이","등록 카드 있음","Tab"]
[null,97,{"$nulls":4},"등록 카드 없음","Tab"]
[null,98,{"$nulls":4},"신규 카드 등록","POPUP","세이페이 정책에 따라 변경될 수있음"]
[null,99,{"$nulls":4},"카드사 선택","POPUP","세이페이 정책에 따라 변경될 수있음"]
[null,100,{"$nulls":4},"신규 계좌 등록","POPUP","세이페이 정책에 따라 변경될 수있음"]
[null,101,{"$nulls":4},"은행사 선택","POPUP","세이페이 정책에 따라 변경될 수있음"]
[null,102,{"$nulls":4},"등록완료","POPUP","세이페이 정책에 따라 변경될 수있음"]
[null,103,{"$nulls":4},"등록카드/계좌관리","POPUP","세이페이 정책에 따라 변경될 수있음"]
[null,104,{"$nulls":4},"Oauth로그인","Script","세이페이 정책에 따라 변경될 수있음"]
[null,105,null,null,"주문약관동의","3자 구매약관 동의",null,"POPUP"]
[null,106,null,"주문완료",null,null,null,"Page"]
[null,107,"MY쇼핑","MY쇼핑",null,null,null,"Page"]
[null,108,null,"주문배송조회","주문목록","주문목록 있음",null,"Page"]
[null,109,null,null,null,"주문목록 없음",null,"Page"]
[null,110,null,null,null,"주문상세",null,"Page","* 비회원 상세분기여부 확인"]
[null,111,null,null,null,"배송위치조회",null,"POPUP","* 스윗트래커/굿스플로 사용 중 고려"]
[null,112,null,null,null,"구매확정",null,"Page"]
[null,113,null,null,"반품신청","반품 상품 선택",null,"Page"]
[null,114,null,null,null,"반품 방법 선택",null,"Page"]
[null,115,{"$nulls":4},"추가금 결제","Script","PG 호출 필요\n- 신용카드 만 가능"]
[null,116,null,null,null,"반품 신청 완료",null,"Page"]
[null,117,null,null,"교환신청","교환 상품 선택",null,"Page"]
[null,118,null,null,null,"교환 방법 선택",null,"Page"]
[null,119,null,null,null,"교환 신청 완료",null,"Page"]
[null,120,null,null,"취소신청","취소 상품 선택",null,"Page"]
[null,121,null,null,null,"취소 완료",null,"Page"]
[null,122,null,"영수증 조회/출력","목록","목록 있음",null,"Page"]
[null,123,null,null,null,"목록 없음",null,"Page"]
[null,124,null,null,"발급","일반 신용카드",null," External Link","* KCP 이용 발행"]
[null,125,null,null,null,"현금 영수증",null," External Link","* KCP 이용 발행"]
[null,126,null,null,null,"네이버페이",null," External Link","* Naver 에서 처리"]
[null,127,null,"취소/교환/반품 조회","취소/교환/반품 목록","목록 있음",null,"Page"]
[null,128,null,null,null,"목록 없음",null,"Page"]
[null,129,null,null,"클레임 상세",null,null,"Page"]
[null,130,null,"쿠폰","쿠폰 목록",null,null,"Page"]
[null,131,null,null,"쿠폰 등록 완료",null,null,"layer"]
[null,132,null,"위시리스트","목록 있음",null,null,"Page"]
[null,133,null,null,"목록 없음",null,null,"Page"]
[null,134,null,"최근 본 상품","목록 있음",null,null,"Page"]
[null,135,null,null,"목록 없음",null,null,"Page"]
[null,136,null,"포인트/머니/상품권","아이포인트","목록 있음",null,"Page"]
[null,137,null,null,null,"목록 없음",null,"Page"]
[null,138,null,null,"아이머니","목록 있음",null,"Page"]
[null,139,null,null,null,"목록 없음",null,"Page"]
[null,140,null,null,null,"환전하기",null,"Page"]
[null,141,null,null,"상품권","목록 있음",null,"Page"]
[null,142,null,null,null,"목록 없음",null,"Page"]
[null,143,null,null,null,"상품권 등록",null,"Page"]
[null,144,null,"나의 상품리뷰","작성 필요 리뷰","목록 있음",null,"Page"]
[null,145,null,null,null,"목록 없음",null,"Page"]
[null,146,null,null,"리뷰 작성","평점 주기",null,"Page"]
[null,147,null,null,null,"내용 작성",null,"Page"]
[null,148,{"$nulls":4},"사진첩 호출","APP","* APP/Web 전용"]
[null,149,{"$nulls":4},"사진찍기 호출","APP","* APP/Web 전용"]
[null,150,null,null,"리뷰 수정",null,null,"page"]
[null,151,null,null,"내가 쓴 리뷰","목록 있음",null,"Page"]
[null,152,null,null,null,"목록 없음",null,"Page"]
[null,153,null,"나의 정보 관리","배송지 관리","배송지 목록","목록 있음","Page"]
[null,154,{"$nulls":4},"목록 없음","Page"]
[null,155,null,null,null,"배송지 등록",null,"Page"]
[null,156,null,null,null,"배송지 수정",null,"Page"]
[null,157,null,null,null,"우편번호 검색","우편번호 결과 없음","POPUP"]
[null,158,{"$nulls":4},"우편번호 결과 있음","POPUP"]
[null,159,{"$nulls":4},"2차 주소 입력/선택","POPUP"]
[null,160,null,null,"환불 계좌 등록",null,null,"Page"]
[null,161,null,null,"나의 문의","상품 문의",null,"Internal Link"]
[null,162,null,null,null,"1:1 문의",null,"Internal Link"]
[null,163,null,null,"나의 정보","비밀번호 재확인",null,"Page"]
[null,164,null,null,null,"이메일 변경",null,"Script"]
[null,165,{"$nulls":4},"이메일 인증완료","layer"]
[null,166,null,null,null,"이름 변경",null,"Script"]
[null,167,{"$nulls":4},"Yes24 아이디 계정연동","Script"]
[null,168,{"$nulls":4},"네이버 아이디 연동","Script"]
[null,169,null,null,null,"회원 탈퇴","탈퇴 신청","Page"]
[null,170,{"$nulls":4},"탈퇴 완료","Page"]
[null,171,"로그인/회원가입","로그인","일반로그인",null,null,"Page"]
[null,172,null,null,null,"비밀번호 5회이상오류",null,"Page","* 캡챠 인증 추가"]
[null,173,null,null,"YES 로그인",null,null,"Script"]
[null,174,null,null,"카카오로그인",null,null,"Script"]
[null,175,null,null,"네이버로그인",null,null,"Script"]
[null,176,null,null,"비밀번호 90일 미변경",null,null,"POPUP"]
[null,177,null,null,"휴면해제","휴면안내",null,"POPUP","* 휴대폰 본인인증"]
[null,178,null,null,null,"휴면해제완료",null,"POPUP"]
[null,179,null,"아이디/비밀번호찾기","아이디 찾기",null,null,"Page"]
[null,180,null,null,null,"아이디 찾기 결과",null,"Page"]
[null,181,null,null,"비밀번호 찾기",null,null,"Page"]
[null,182,null,null,null,"비밀번호 변경",null,"Page","* 신규비밀번호로 변경하는 process"]
[null,183,null,"회원가입","약관 동의",null,null,"Page"]
[null,184,null,null,"본인인증","인증방법 선택",null,"Page"]
[null,185,null,null,null,"휴대폰 인증",null,"Script"]
[null,186,null,null,null,"아이핀 인증",null,"Script"]
[null,187,null,null,"회원 정보 입력",null,null,"Page"]
[null,188,null,null,null,"네이버 가입",null,"Script","* 값 호출 분기만 처리"]
[null,189,null,null,null,"카카오 가입",null,"Script","* 값 호출 분기만 처리"]
[null,190,null,null,"가입완료",null,null,"Page"]
[null,191,"고객센터","고객센터 메인",null,null,null,"Page"]
[null,192,null,"FAQ","목록 있음",null,null,"Page"]
[null,193,null,null,"목록 없음",null,null,"Page"]
[null,194,null,"1:1 상담","목록 있음",null,null,"Page"]
[null,195,null,null,null,"주문내역 선택",null,"POPUP"]
[null,196,null,null,"목록 없음",null,null,"Page"]
[null,197,null,null,"상담 상세",null,null,"Page"]
[null,198,null,"상품Q&A","목록 있음",null,null,"Page"]
[null,199,null,null,"목록 없음",null,null,"Page"]
[null,200,null,null,"상담 상세",null,null,"Page"]
[null,201,null,"공지사항","공지사항","목록",null,"Page"]
[null,202,null,null,null,"목록없음",null,"Page"]
[null,203,null,null,null,"상세",null,"Page"]
[null,204,null,null,"당첨자 발표",null,null,"TAB","* 구분 값으로 분기"]
[null,205,"gnb/footer","팝업","PC",null,null,"POPUP"]
[null,206,null,null,"모바일",null,null,"POPUP"]
[null,207,null,"모바일 웹전용","앱 사용안내",null,null,"layer","앱 사용 유도 팝업"]
[null,208,null,"앱 메뉴","앱 인트로",null,null,"APP"]
[null,209,null,null,"앱 설정",null,null,"APP"]
[null,210,null,null,"코치 마크",null,null,"APP"]
[null,211,null,"개인정보취급방침",null,null,null,"Page"]
[null,212,null,"이용약관",null,null,null,"Page"]
[null,213,null,"제휴/입점문의",null,null,null,"Page"]
[null,214,null,"회사소개",null,null,null,"Page"]
[null,215,null,"앱다운로드",null,null,null,"Page","PC 앱다운 문자 발송"]
[null,216,null,"사업자정보확인",null,null,null,"External Link"]
[null,217,null,"보증보험가입사실확인",null,null,null,"External Link"]
[null,218,null,"패밀리사이트이동 ",null,null,null,"External Link"]
[null,219,null,"ISMS 인증 ",null,null,null,"POPUP","인증서 이미지  노출 팝업"]
[null,220,"기타","error 페이지","종료된 기획전",null,null,"Page"]
[null,221,null,null,"종료된 이벤트",null,null,"Page"]
[null,222,null,null,"404 Error",null,null,"Page"]
[null,223,null,null,"서비스 점검중",null,null,"Page"]
[null,224,null,"앱 등록 이미지","앱스토어 이미지",null,null,"image/html","* 주요 서비스에 대한 앱스토어 이미지"]
[null,225,null,null,"앱아이콘",null,null,"image/html"]
[null,226,null,"SMTP Email","회원 가입 완료",null,null,"HTML"]
[null,227,null,null,"주문 완료",null,null,"HTML"]
[null,228,null,null,"주문 취소",null,null,"HTML"]
[null,229,null,null,"발송 완료",null,null,"HTML"]
[null,230,null,null,"환불 신청",null,null,"HTML"]
[null,231,null,null,"교환 신청",null,null,"HTML"]
[null,232,null,null,"휴면 안내",null,null,"HTML"]
[null,233,null,null,"마케팅 수신내역 안내",null,null,"HTML"]
[null,234,null,null,"생일 쿠폰 안내",null,null,"HTML"]
[null,235,null,null,"주문 발송",null,null,"HTML"]
[null,236,null,null,"이메일 인증",null,null,"HTML"]
[null,237,null,null,"상품권 파기",null,null,"HTML"]
[null,238,null,null,"상품문의 답변",null,null,"HTML"]
[null,239,null,null,"1:1문의 답변",null,null,"HTML"]

{"sheet":"질의응답","index":8,"n_rows":337,"n_cols":11,"rows_kept":337,"cut":false,"hidden":false,"merged":[[0,1,0,3]]}
[null,"ST24_온라인몰 신규 구축 질의응답"]
[]
[null,"대분류","중분류","요구사항","상세 기능 요건 사항","요구번호","요청부서","질의일","답변일","질의사항","답변내용"]
[null,"01_개발 사양","개발범위","Front - IStyle24 PC / Mobile Web / Mobile app(AOS/IOS)\nBOS / SCM",null,{"$f":"CONCATENATE((VLOOKUP(B4,'요건 건수'!$D$4:$E$20,2)),COUNTIFS(B$4:B4,B4))","v":"IST_01_1"},"기획운영팀"]
[null,"01_개발 사양","관리자의 환경","관리자를 개별메뉴나 디바이스별 분리하는 형태로 구현하지 않는다.\n콘텐츠 관리는 모바일/PC 통일하여 일원화된 관리구조를 고려 한다.\n관리자의 접속은 브라우저에 관계없이 접속 및 동작되어야 한다.(IE 만 가능 등 불허)",null,{"$f":"CONCATENATE((VLOOKUP(B5,'요건 건수'!$D$4:$E$20,2)),COUNTIFS(B$4:B5,B5))","v":"IST_01_2"},"기획운영팀"]
[null,"01_개발 사양","도메인","현 페이지 별 분산된 도메인을 정리하여 일괄 도메인으로 처리할 수 있어야 한다.\n도메인 변경 시 도메인에 대한 연결 처리가 진행되어야 한다.\n- mall.isytle.com\n- event.istyle.com\n- www.istyle.com",null,{"$f":"CONCATENATE((VLOOKUP(B6,'요건 건수'!$D$4:$E$20,2)),COUNTIFS(B$4:B6,B6))","v":"IST_01_3"},"기획운영팀"]
[null,"01_개발 사양","모바일앱","하이브리드 Webwiew 방식으로 구현하고, 일부 Native 영역으로 구현한다.\n- 설계 시 네이티브 영역에 대해 명시하여야 한다.",null,{"$f":"CONCATENATE((VLOOKUP(B7,'요건 건수'!$D$4:$E$20,2)),COUNTIFS(B$4:B7,B7))","v":"IST_01_4"},"기획운영팀",null,null,"- 반드시 네이티브 영역으로 구현되어야 하는 화면/기능이 있는지?\n\n- 대략 생각하고 계신 네이티브 영역의 화면/기능 범위가 어느 정도 인지?(스플래시?/결제? 등)","- 네이티브 영역은 인트로, 스플래시 정도만 구현"]
[null,"01_개발 사양","모바일웹","디바이스 체크 후 모바일에서 접근시 모바일 버전으로 노출한다.",null,{"$f":"CONCATENATE((VLOOKUP(B8,'요건 건수'!$D$4:$E$20,2)),COUNTIFS(B$4:B8,B8))","v":"IST_01_5"},"기획운영팀"]
[null,"01_개발 사양","보안/검수관련","KISA시큐어 코딩 가이드를 준수한다. ",null,{"$f":"CONCATENATE((VLOOKUP(B9,'요건 건수'!$D$4:$E$20,2)),COUNTIFS(B$4:B9,B9))","v":"IST_01_6"},"정보보호팀"]
[null,"01_개발 사양","브라우저최적화","여러 디바이스(PC/모바일) 및 브라우저 최적화(IE11이상, chrome, safari, NAVER browser)",null,{"$f":"CONCATENATE((VLOOKUP(B10,'요건 건수'!$D$4:$E$20,2)),COUNTIFS(B$4:B10,B10))","v":"IST_01_7"},"기획운영팀"]
[null,"01_개발 사양","성능/사용성","CDN 및 리사이징 툴을 적용 하여 속도 및 관리 사용성을 향상하여야 한다.",null,{"$f":"CONCATENATE((VLOOKUP(B11,'요건 건수'!$D$4:$E$20,2)),COUNTIFS(B$4:B11,B11))","v":"IST_01_8"},"기획운영팀"]
[null,"01_개발 사양","암호화","개인정보는 암호화 하여 통신되어야 한다.",null,{"$f":"CONCATENATE((VLOOKUP(B12,'요건 건수'!$D$4:$E$20,2)),COUNTIFS(B$4:B12,B12))","v":"IST_01_9"},"정보보호팀"]
[null,"01_개발 사양","언어/프레임워크","개발 언어는 JAVA로 구현되어야 한다.\nDB - my sql / ms sql 중 사용한다.\n--> MY SQL 로 구현",null,{"$f":"CONCATENATE((VLOOKUP(B13,'요건 건수'!$D$4:$E$20,2)),COUNTIFS(B$4:B13,B13))","v":"IST_01_10"},"VIP_J",null,null,"6/12 DB 변경 Added","6/12 DB 변경 Added"]
[null,"01_개발 사양","웹접근성","웹 접근성을 준수하는 형태로 구현한다.\n- 인증심사는 미진행하는 것으로 한다.",null,{"$f":"CONCATENATE((VLOOKUP(B14,'요건 건수'!$D$4:$E$20,2)),COUNTIFS(B$4:B14,B14))","v":"IST_01_11"},"정보보호팀"]
[null,"01_개발 사양","제안솔루션","제안 기능에 대한 내용이 솔루션이 필요할 경우, 솔루션에 대한 소개 및 비용을 함께 제시하여야 한다.",null,{"$f":"CONCATENATE((VLOOKUP(B15,'요건 건수'!$D$4:$E$20,2)),COUNTIFS(B$4:B15,B15))","v":"IST_01_12"},"기획운영팀"]
[null,"02_I.F/MIG/연동/솔루션","데이터 연동","다음 시스템과 연동 개발이 진행되어야 한다.\n- 알림톡/SMS/LMS/E-mail/PUSH/개인화/기타연동시스템/WMS/CTI","WMS - API 인터페이스 진행, API는 업체 : Slow 개발 예정",{"$f":"CONCATENATE((VLOOKUP(B16,'요건 건수'!$D$4:$E$20,2)),COUNTIFS(B$4:B16,B16))","v":"IST_02_1"},"개발팀",null,null,"- 자동 발송(알림톡/SMS/LMS/E-mail/PUSH)되는 케이스에 대한 정의가 되어 있는지?","- SMS/LMS은 구달로 나가고 있으며, 알림톡으로 진행을 해주어야 함.\n(케이스 정리된 것은 가지고 있으나 1차 안으로 만들어 주면 검토할 예정)"]
[null,"02_I.F/MIG/연동/솔루션","마이그레이션","기존 운영중인 마이그레이션 방안을 제시하여야 한다.\n- 마이그레이션 범위는 별첨 시트_migration를 참조한다.",null,{"$f":"CONCATENATE((VLOOKUP(B17,'요건 건수'!$D$4:$E$20,2)),COUNTIFS(B$4:B17,B17))","v":"IST_02_2"},"기획운영팀"]
[null,"02_I.F/MIG/연동/솔루션","배치관리","운영 필요시 배치가 생성되어야 하며 배치 관리를 진행할 수 있어야 한다.\n- 배치리스트 및 배치 실행할 수 있는 관리 툴 필요\n- 배치 중단 기능 필요\n- 배치에 대한 실행 텀 및 실행자 등의 히스토리 관리 필요","- 배치 목록\n- 배치 실행 기능\n- 배치 상태\n- 배치 실행 시간\n- 배치 실행자(아이디/이름)\n- 배치 중단\n- 배치 중단 시간\n- 배치 중단 사유",{"$f":"CONCATENATE((VLOOKUP(B18,'요건 건수'!$D$4:$E$20,2)),COUNTIFS(B$4:B18,B18))","v":"IST_02_3"},"기획운영팀"]
[null,"02_I.F/MIG/연동/솔루션","상품등록솔루션","입점사의 상품 등록 솔루션을 지원 해야 한다.\n- 사방넷/플레이오토/샵링커/ec모니터",null,{"$f":"CONCATENATE((VLOOKUP(B19,'요건 건수'!$D$4:$E$20,2)),COUNTIFS(B$4:B19,B19))","v":"IST_02_4"},"패션팀"]
[null,"02_I.F/MIG/연동/솔루션","수집/분석","광고 분석 툴에 대한 설치/수집/동작할 수 있도록 하여야 한다.\n- 페이스북 픽셀 툴에 대한 설치가 진행 되어야 한다.\n- 구글 리타겟팅 툴에 대한 설치가 진행 되어야 한다.",null,{"$f":"CONCATENATE((VLOOKUP(B20,'요건 건수'!$D$4:$E$20,2)),COUNTIFS(B$4:B20,B20))","v":"IST_02_5"},"기획운영팀",null,null,"- 해당 툴은 개발사에서 설치 및 동작 확인을 진행하는지 하는지?(펜타 관여X)","개발사 요건으로 들어가 있음"]
[null,"02_I.F/MIG/연동/솔루션","수집/분석","포털 로봇 수집, SEO에 대한 대응이 진행되어야 한다.",null,{"$f":"CONCATENATE((VLOOKUP(B21,'요건 건수'!$D$4:$E$20,2)),COUNTIFS(B$4:B21,B21))","v":"IST_02_6"},"기획운영팀",null,null,"- 해당 툴은 개발사에서 설치 및 동작 확인을 진행하는지 하는지?(펜타 관여X)"]
[null,"02_I.F/MIG/연동/솔루션","수집/분석","로그분석 툴을 설치 하여 수집 및 동작할 수 있도록 하여야 한다.\n- 구글 Analytics 분석 툴을 설치 하며, 영역별 GTM 수집을 진행 하여야 한다.\n- 비즈 스프링 툴을 설치 하여야 한다.\n- 온사이트 툴에 대한 설치가 진행 되어야 한다.",null,{"$f":"CONCATENATE((VLOOKUP(B22,'요건 건수'!$D$4:$E$20,2)),COUNTIFS(B$4:B22,B22))","v":"IST_02_7"},"기획운영팀",null,null,"- 해당 툴은 개발사에서 설치 및 동작 확인을 진행하는지 하는지?(펜타 관여X)"]
[null,"02_I.F/MIG/연동/솔루션","외부검색/EP 연동","네이버 EP 연동을 진행 하여야 한다.",null,{"$f":"CONCATENATE((VLOOKUP(B23,'요건 건수'!$D$4:$E$20,2)),COUNTIFS(B$4:B23,B23))","v":"IST_02_8"},"패션팀",null,null,"- 해당 툴은 개발사에서 설치 및 동작 확인을 진행하는지 하는지?(펜타 관여X)"]
[null,"02_I.F/MIG/연동/솔루션","집계/연동 성능","전시 반영 집계 및 상품 입고 관련 인터페이스에 대한 적용 텀을 개선한다.\n- 전시 가격/ 품절 집계 최대 10분 단위\n- 입고반영, 재고반영 인터페이스 최대 10분단위로 개선",null,{"$f":"CONCATENATE((VLOOKUP(B24,'요건 건수'!$D$4:$E$20,2)),COUNTIFS(B$4:B24,B24))","v":"IST_02_9"},"기획운영팀"]
[null,"03_화면UI공통","Footer","사업자 관련 정보를 FOOTER를 통해 확인할 수 있어야 한다.\n- 사업자 정보에 대한 확인을 할 수 있어야 한다.\n- 개인정보 취급방침, 약관에 대한 정보를 확인 할 수 있어야 한다.\n- 구매안전서비스 서비스 내역에 대한 정보를 확인 할 수 있어야 한다.\n- 자 사 facebook 및 인스타그램으로 이동할 수 있는 링크를 제공해야 한다.\n- 고객센터 번호를 확인할 수 있어야 한다.\n- 대표자및 통신판매 신고정보 등을 확인할 수 있어야 한다.\n- ISMS 심사 내역에 대한 정보를 확인할 수 있어야 한다.",null,{"$f":"CONCATENATE((VLOOKUP(B25,'요건 건수'!$D$4:$E$20,2)),COUNTIFS(B$4:B25,B25))","v":"IST_03_1"},"기획운영팀"]
[null,"03_화면UI공통","header/GNB/공통UI","공통 사용성을 위한 효과적인 메뉴 구성과 사용자 동선이 수립되어야 한다.\n- GNB 메뉴를 관리자에서 등록/수정할 수 있어야 한다.(PC/MO)\n- 모바일 네비게이션 및 GNB 에 대한 UI/UX가 개선되어야 한다.\n- 모바일 퀵바를 제시하여야 한다.\n- 최근 본 상품은 DB 방식으로 User당 최근 50개를 기준으로 제공해야 한다.\n- PC 퀵 메뉴가 구현되어야 한다.\n- 모바일에서는 back 버튼이 제공되어야 한다.\n- History back 기능을 수행하였을 시 직전 보던 페이지의 정확한 좌표로 이동하여야 한다.\n- 모바일에서는 스와이프 백 기능이 이루어져야 한다.",null,{"$f":"CONCATENATE((VLOOKUP(B26,'요건 건수'!$D$4:$E$20,2)),COUNTIFS(B$4:B26,B26))","v":"IST_03_2"},"기획운영팀","7월 16일",null,"최근 본 상품은 퀵메뉴에서 50개를 꼭 노출할 필요는 없는건지?\n모바일 퀵바가 하단 고정 GNB 의미인가요?\n\n최근 본 상품 50개가 모두 노출되어야 하는지? 노출된가면 별도의 메뉴/페이지에서 사용자에서 50개를 보여줘야 하는지?\n\nAPP에서 [Back] 선택 시 History back이 아닌 이전 화면으로 이동하게 구현해도 되는지?(모바일웹에서는 History back으로 구현, 각 브라우저에 따름)\n\n스와이프 백 기능이 모바일 웹/앱, AOS/iOS에서 반드시 모두 구현되어야 하는지?(iOS 모바일 웹에서만 해당 기능을 기본으로 제공하고 있음, AOS 모바일 웹에서는 크롬같은 일부 브라우저에서만 지원)","퀵 메뉴에서 50개를 노출할 필요 없음(저장하는 데이터를 DB처리 해달라는 말임)\n\n모바일 웹/앱 하단바 공통으로 적용하려 함.\n\nBack 버튼은 히스토리백은 전시 또는 검색 등의 특이 케이스의 경우에만 적용. 케이스별로 백 버튼 구분되어야 함.\n\n스와이프백도 케이스별로 .."]
[null,"03_화면UI공통","LOGO/GUIDE","로고/가이드를 신규 수립하여야 한다.\n- 디바이스에 적합한 폰트를 제안하여야 한다.\n- 로고 및 키 컬러를 신규 수립하여야 한다.\n- 신규 코치마크 및 아이콘, 앱스토어 이미지를 제작하여야 한다.",null,{"$f":"CONCATENATE((VLOOKUP(B27,'요건 건수'!$D$4:$E$20,2)),COUNTIFS(B$4:B27,B27))","v":"IST_03_3"},"기획운영팀",null,null,"- BI/로고에 대한 가이드/정의서가 있는지?","아직 논의 진행 중\n(착수보고까지는 아이스타일24 기준으로 진행, 착수보고 이후 결정될 예정)\n\n기존 BI 로고 스타일 가이드 수급 요청(펜타 --> 아이스타일24)"]
[null,"03_화면UI공통","공통가이드","사이트 운영 전반 배너,팝업의 구좌/ 디자인가이드 / 적합한 해상도를 제공하여야 한다.\n- 디자인 텍스트가 아닌 TEXT입력을 활용하는 구조의 UI를 제안하여야 한다.\n- 모바일/PC 이미지 동비율로 사용하여 활용성 높일 수 있도록 고려해야 한다.\n- 와이드 배너 도입을 고려해야 한다.\n- PC의 해상도를 확대하여 와이드 화면에 대한 구현이 가능해야 한다.\n- 다양한 배너/컨텐츠 등록 영역이 구현되어야 한다.\n(신규회원혜택/앱설치배너 영역/spot 운영가능한 hidden 구좌 등)\n- 배너 컨텐츠는 PC/모바일 통합 사용 가능한 형태로 최대한 구현 되어야 한다.",null,{"$f":"CONCATENATE((VLOOKUP(B28,'요건 건수'!$D$4:$E$20,2)),COUNTIFS(B$4:B28,B28))","v":"IST_03_4"},"기획운영팀",null,null,"- 해상도를 확대하여 와이드 화면에 대한 구현이라는 것이 어떤 의미인지?\n\n- 신규회원혜택이라는 것이 어떤 것을 생각하고 계신지? 포인트? 쿠폰?\n\n- spot 운영가능한 hidden 구좌라는 것이 어떤 의미인지?\n\n- 배너 컨텐츠는 PC/모바일 통합 사용하기 보다는 각 채널에 맞는 배너 사이즈 및 컨텐츠 배치를 고려하여 variation하여 PC/모바일 2벌로 가야 할 것 같음","1200 미만의 경우 UI 고려가 되었으면 함.(현재 생각중인 미니멈 1300 고려 중)\n\n신규혜택은 정책서에 있는 내용들 있음\n\n커스텀 가능한 구조가 되었으면 함. 중간중간에 확장이 되었을 때 사용할 수 있도록 구좌가 있었으면 함.(배너, 상품, html 등- on/off 가능)\n\nPC/모바일 통합 사용 가능한 부분에 대해서만 적용 요청\n(기획전, 썸네일 등)"]
[null,"03_화면UI공통","공통기능","페이지 공유 하기 기능을 제공하여야 한다.\n- 공유하기 기능 제공 채널 : 카카오톡/페이스북/인스타그램/트위터/URL복사\n- 해당 페이지 : 상품 상세 / 기획전 / 이벤트",null,{"$f":"CONCATENATE((VLOOKUP(B29,'요건 건수'!$D$4:$E$20,2)),COUNTIFS(B$4:B29,B29))","v":"IST_03_5"},"기획운영팀"]
[null,"04_카테고리","진열카테고리","전시 카테고리(진열카테고리)는 확장성이 담보되어야 한다.\n- 1~5depth 내에서 자유롭게 생성/변경이 가능하여야 한다.\n- leaf 카테고리를 사용자가 자유롭게 설정할 수 있어야 한다.\n- 전시/비전시/상품의 일괄추가/카테고리명 변경 등이 가능해야 한다.",null,{"$f":"CONCATENATE((VLOOKUP(B30,'요건 건수'!$D$4:$E$20,2)),COUNTIFS(B$4:B30,B30))","v":"IST_04_1"},"패션팀",null,null,"leaf 카테고리는 무엇인지요","현재 자유롭게 생성/삭제가 불가하기 때문에, 카테고리 관리가 가능했으면 함(생성/삭제/변경 등)\n- 무조건 1~5뎁을 다 사용하는 구조가 아닌, 1~3 등 leaf가 자유롭게 구성될 수 있는 구조"]
[null,"04_카테고리","진열카테고리","전시 카테고리는 신규로 구성 하여야 하며, 기존 상품의 매핑을 진행하여야 한다.",null,{"$f":"CONCATENATE((VLOOKUP(B31,'요건 건수'!$D$4:$E$20,2)),COUNTIFS(B$4:B31,B31))","v":"IST_04_2"},"패션팀"]
[null,"04_카테고리","표준관리","매출 카테고리 관리(표준카테고리) 관리가 별도로 가능하여야 한다.\n- 매출카테고리는 md 담당자가 매핑되어야 한다.",null,{"$f":"CONCATENATE((VLOOKUP(B32,'요건 건수'!$D$4:$E$20,2)),COUNTIFS(B$4:B32,B32))","v":"IST_04_3"},"패션팀"]
[null,"04_카테고리","표준관리","라이프 스타일 카테고리를 신설 하고 데이터는 API를 통해 연동한다.\n- YES24 기프트 카테고리 중 대상 내용을 선정하여 연동한다.\n- 주문에 대한 처리는 YES24 기프트 측 물류창고에서 처리 하므로 관련 주문내역에 대한 전달 방안에 대한 협의가 필요하다.",null,{"$f":"CONCATENATE((VLOOKUP(B33,'요건 건수'!$D$4:$E$20,2)),COUNTIFS(B$4:B33,B33))","v":"IST_04_4"},"VIP_J","7월 16일",null,"해당 라이프 스타일 카테고리는 기존 잡화관련 콘텐츠와 병합인것인지 별도 신설을 해야만 하는것인지요?\n\n라이프 스타일 카테고리 신설에 대한 정확한 업무 범위 및 프로세스 설명 필요\n\n라이프 스타일 메뉴 1dep에 추가되어야 하는지?\n하위 카테고리는 어떤 메뉴들로 구성되는지?\n대상 연령층은 어떻게 되는지?(현재 유아동 잡화 내 문구류 메뉴 구성되어 있으므로, 메뉴 구성에 따라 위치 변경 필요)","이번 범위에서 삭제"]
[null,"04_카테고리","표준관리","기존 패션 입점 업체에 대해서는 퇴점 절차를 진행 한다.\n- 패션 외 카테고리 현재 미정",null,{"$f":"CONCATENATE((VLOOKUP(B34,'요건 건수'!$D$4:$E$20,2)),COUNTIFS(B$4:B34,B34))","v":"IST_04_5"},"기획운영팀",null,null,"카테고리에서 삭제되는 부분이 있을까요?\n사이트 내에 퇴점 기능/프로세스가 구현되어야 하는지?","빠지는 카테고리 없음"]
[null,"05_검색/전시공통","INDEXING / 크롤링","향후의 유지보수 시 필터 확장이 가능 해야 한다.\n색인을 업데이트한 후 화면에 노출할경우 배치타임은 최대 10분을 초과하여서는 안된다.",null,{"$f":"CONCATENATE((VLOOKUP(B35,'요건 건수'!$D$4:$E$20,2)),COUNTIFS(B$4:B35,B35))","v":"IST_05_1"},"기획운영팀"]
[null,"05_검색/전시공통","검색 기능","검색 시 결과 값을 개선시키기 위한 기능이 가능해야 한다.\n- 검색 자동완성\n- 인기 검색어\n- 연관 검색어(자동 - 사용자 검색 log 누적기반/수동-관리자 설정 두가지 가능하도록 필요)\n- 검색어 별 인기 상품 결과 노출\n- 검색어 별 바로가기 배너 및 바로가기 링크 정보 제공 및 관리\n- 초성 검색\n- 영문 입력 시 한글로 자동 변환 결과 호출\n- 오타 자동 보정\n- 키워드별 카테고리 부스팅\n- 사전 관리, 동의어 관리, 유의어 관리\n- 상품 태그 값에 대한 검색 지원\n- 광고 상품에 대한 검색 상위 노출 기능",null,{"$f":"CONCATENATE((VLOOKUP(B36,'요건 건수'!$D$4:$E$20,2)),COUNTIFS(B$4:B36,B36))","v":"IST_05_2"},"기획운영팀",null,null,"해당 기능은 기획에서 별도 정의 없이 검색 엔진에서 지원하는지?","광고에 대한 부분만 프론트 기획에서 필요(광고 노출, 정보 표기에 대해)"]
[null,"05_검색/전시공통","검색 기능","검색어 입력의 범주는 다음과 같은 기능을 제공해야 한다.\n- 품번(스타일넘버)검색\n- 상품 번호 검색\n- 상품 명 검색\n- 브랜드 명 검색\n- 기획전 명 검색\n- 이벤트 명 검색\n- 상품평 검색",null,{"$f":"CONCATENATE((VLOOKUP(B37,'요건 건수'!$D$4:$E$20,2)),COUNTIFS(B$4:B37,B37))","v":"IST_05_3"},"기획운영팀",null,null,"해당 기능은 기획에서 별도 정의 없이 검색 엔진에서 지원하는지?","엔진에서 크롤링 함\n결과에서 잘 녹여지면 됨"]
[null,"05_검색/전시공통","검색 기능","검색 필터를 통작할 수 있어야 한다.\n- 다중 브랜드 선택이 가능하도록 처리한다.\n- 다중 카테고리 선택이 가능하도록 처리 한다.\n- 필터링은 선택 즉시 필터링이 가능하도록 처리한다.\n- 결과에 따라 가격이 자동 6분할 되도록 처리 한다.\n- 품절 필터링이 되도록 처리한다(사이즈에 대한 품절 필터링 포함한 단품 필터링까지를 의미한다)\n- 사이즈 필터링이 되도록 처리한다(유아/성인/신발 분기처리요청)\n- 시즌으로 필터링이 되도록 처리한다.(봄/여름/가을/겨울/사계절)\n- 혜택으로 필터링 되도록 처리한다.(쿠폰/무료배송/온라인단독/단독특가/사은품/예약배송)\n- 성별로 필터링 되도록 처리 한다.(남성/여성/공용)\n- Age 필터링이 되도록 처리 한다(베이비/토들러/키즈/주니어/성인 etc)\n- 할인율로 조회 결과를 필터링 하도록 처리 한다.\n- 신상/ 이월 여부로 필터링 하도록 처리한다.(신상/이월)\n- 유니섹스 상품을 별도 필터링 하도록 처리한다.(유니섹스 상품 제외/포함)\n- 소재 로 필터링 하도록 처리 한다. 소재 정보는 확장이 가능해야 한다.\n- 색상을 자동으로 필터링 할 수 있어야 한다.(이미지를 확인 후 자동 색상 추출/ 데이터 입력하는 형태 아님)\n- 결과 내 재검색을 진행할 수 있어야 한다.",null,{"$f":"CONCATENATE((VLOOKUP(B38,'요건 건수'!$D$4:$E$20,2)),COUNTIFS(B$4:B38,B38))","v":"IST_05_4"},"기획운영팀\n한세드림\n한세MK",null,null,"해당 기능이 통합검색 시 사용하는 필터 기능인지? 아니면 검색 결과/List에 대한 필터 기능인지?\n\n즉시 필터링 가능이란 어떻게 구현되는 것을 원하시는 건지?\n\n할인율로 조회 결과를 필터링 한다는 것이 어떤 의미인지?\n\n유니섹스는 별도 필터링 처리가 아닌 \"남여공용\" 여부 필터링해도 되는지?\n\n소재 필터링이라 옷감 소재? 면/폴리 등을 의미하는 것인지\n\n가격은 무조건 6분할로 되어야 하는것인지요? 고정 값으로는 불가한가요?","결과 페이지 내 필터 설정하여 검색결과 내 재검색 가능하도록 되었으면 함.\n\n즉시 필터링이란, 모든 필터 설정 후 검색 가능한 구조 아니고 바로 검색 가능한 구조\n\n소재 필터링은 소재에 대한 것 맞음.(현재 관리 메뉴 없으므로, 속성관리 메뉴 생성 시 데이터 등록 필요함)\n- 데이터 마이그레이션은 지속적으로 진행할 예정\n\n할인율(바 형태로 땡기고 하는 구조로 되었으면 함.)\n\n가격차 때문에 고정 값으로 하기 어려움\n\n유니섹스 : 남녀 공용 상품만 보거나 제외하는 항목 있어야 함"]
[null,"05_검색/전시공통","검색 특이 기능","스마트 렌즈(이미지 검색) 기능 도입",null,{"$f":"CONCATENATE((VLOOKUP(B39,'요건 건수'!$D$4:$E$20,2)),COUNTIFS(B$4:B39,B39))","v":"IST_05_5"},"한세MK","7월 16일",null,"해당 검색 프로세스가 어떻게 되는지요?\n해당 솔루션 도입 예정인지?\n해당 기능은 APP에서만 구현하는지?\n솔루션 도입을 한다면 시기가 언제쯤 될지?","해당 기능 이번 범위에서 제외"]
[null,"05_검색/전시공통","검색결과","검색 결과 페이지에는 다음 정보들이 노출되어야 한다.\n- 연관 검색어\n- 해당 검색어로 인기 있는 상품\n- 바로가기 \n- 상품 검색결과(상품에는 딜/세트/일반 모두 포함)\n- 상품평 검색 결과\n- 기획전 검색 결과\n- 이벤트 검색 결과",null,{"$f":"CONCATENATE((VLOOKUP(B40,'요건 건수'!$D$4:$E$20,2)),COUNTIFS(B$4:B40,B40))","v":"IST_05_6"},"기획운영팀"]
[null,"05_검색/전시공통","검색결과","웹진(SNAPP) 컨텐츠에 대해서도 검색 결과 페이지에 노출되어야 한다.",null,{"$f":"CONCATENATE((VLOOKUP(B41,'요건 건수'!$D$4:$E$20,2)),COUNTIFS(B$4:B41,B41))","v":"IST_05_7"},"한세MK","7월 16일",null,"검색결과 선택 시, SNAPP 사이트로 이동하는 것인지요?\nSNAPP쪽 콘텐츠도 플랫폼 안으로 들어와야 하나요?","검색결과에서 제외"]
[null,"05_검색/전시공통","검색화면 소팅 및 동작","검색 화면에서는 다음과 같은 동작이 가능 해야 한다.\n- 소팅이 제공되어야 한다(인기상품순/최신등록순/낮은가격순/높은가격순)\n- 페이지에서 상품을 터치 하고 HISTORY BACK 할 시 해당 조회하던 좌표로 노출되어야 한다.\n- 페이지의 마지막에 도달했을때는 관련 안내가 노출되어야 한다.\n- PC에서는 한 페이지에서 노출되는 상품 수를 지정할 수 있어야 한다.",null,{"$f":"CONCATENATE((VLOOKUP(B42,'요건 건수'!$D$4:$E$20,2)),COUNTIFS(B$4:B42,B42))","v":"IST_05_8"},"기획운영팀",null,null,"검색 결과 페이지에서 상품 선택하여 상품 상세 페이지로 진입 후 HISTORY BACK 하는 경우 이전 페이지인 검색 결과 페이지에서 검색 결과 조건이 유지되어 이는 상태로 노출되는 것을 의미하는지?\n\n 페이지 마지막 도달 시 관련 안내 노출이란 무엇을 의미하는지?","무한 스크롤의 UI인 경우, 마지막 페이지까지 도달했을 때 인지되도록 표기되었으면 함(마지막 페이지 입니다.)"]
[null,"05_검색/전시공통","공통상품전시규칙수립","상품 전시 시 우선 세팅되는 경우, 기간과 우선순위를 지정할 수 있어야 한다.\n상품 전시 시 상품코드 단위로 전시 한다.\n전시가격 노출은 실시간 성 페이지(상품상세/주문서/주문상세) 외 전체 공통 룰에 따른다.",null,{"$f":"CONCATENATE((VLOOKUP(B43,'요건 건수'!$D$4:$E$20,2)),COUNTIFS(B$4:B43,B43))","v":"IST_05_9"},"기획운영팀"]
[null,"05_검색/전시공통","공통전시템플릿","다양한 전시템플릿을 관리자가 모듈형태로 설정하고 별도 개발 없이 선택한 내용이 FRONT에 정상적으로 노출되어야 한다.\n- 이벤트/기획전/카테고리/브랜드샵메인과 같은 메뉴는 상기와 같은 템플릿을 조합하여 구현하는 템플릿-페이지 조합이 되어야 한다.\n- 각 코너별 운영기간을 설정할 수 있어야 한다.\n- 관리자를 통해 슬라이드형태의 상품/더보기 유형의 상품 전시 코너를 제공해야 한다.\n- 상품 코너의 상품 노출 스타일은 다양하게 제공되어야 한다(설명하는 유형/상품가격없는유형/아이콘미노출유형 등)\n- 상품의 리스트 노출에 대한 개별 제어가 가능해야한다(상품의 전시 순번, 스타일, 진열열수, 리스트처리방법 등)\n- 신상품/베스트 상품 과 같은 유형은 기준 등록 시, 노출 될수 있도록 코너를 제공해야한다.\n- 관리자를 통해 슬라이드 배너 / 더보기 배너 를 생성할 수 있도록 코너를 제공해야 한다.\n- 관리자를 통해 쿠폰을 전시할 수 있어야 한다.(쿠폰번호/기간/순서)\n- 디자인을 하여 코딩으로 처리할 수 있는 쿠폰 다운로드 스크립트를 함께 제공하여야 한다.\n- 관리자를 통해 이미지를 기간별로 전시할 수 있어야 한다..\n- 관리자를 통해 HTML 을 기간별로 전시할 수 있어야 한다.\n- HTML은 에디터를 통해 등록할수 있어야 한다.\n- 관리자를 통해 댓글/이미지첨부 형태를 셋팅할 수 있어야 한다.\n- 관리자를 통해 댓글 게시판의 리스트 형태를 셋팅할 수 있어야 한다\n- 관리자를 통해 상품리뷰를 전시할 수 있는 코너 셋팅을 제공해야 한다.\n- 위의 템플릿 유형은 기간과 순번에 따라 코너를 조합하여 셋팅할 수 있어야 한다.",null,{"$f":"CONCATENATE((VLOOKUP(B44,'요건 건수'!$D$4:$E$20,2)),COUNTIFS(B$4:B44,B44))","v":"IST_05_10"},"기획운영팀"]
[null,"05_검색/전시공통","구분타이틀전시","구분타이틀 별 상품을 전시할 수 있어야 한다.\n- 관리자를 통해 구분타이틀 별 상품을 전시할 수 있어야 한다.\n- 구분 타이틀에는 타이틀 배너를 등록 하고 기간별/노출관리를 할 수 있어야 한다.\n- 구분 타이틀 별 1열당 상품 노출 개수를 지정할 수 있어야 한다.",null,{"$f":"CONCATENATE((VLOOKUP(B45,'요건 건수'!$D$4:$E$20,2)),COUNTIFS(B$4:B45,B45))","v":"IST_05_11"},"기획운영팀",null,null,"구분 타이틀이라는 게 어떤걸 의미하는 걸까요?","전시 페이지 하단에 노출되는 추천템 영역 같은 것\nMD들이 타이틀을 선택하여 등록함."]
[null,"05_검색/전시공통","상품목록","상품 목록에는 상기 정보가 반드시 포함되어야 한다.\n- 상품썸네일/상품아이콘/브랜드명/상품명/상품가격/찜/옵션(컬러칩or사이즈)\n- 세로형 썸네일을 기본으로 사용하여야 한다.\n- Pc- 마우스 썸네일 오버 시, 옵션노출/찜 등의 기능이 제공되어야 한다.\n- 사이즈옵션의 경우 품절과 비품절 옵션에 대한 구분을 할 수 있도록 처리한다.",null,{"$f":"CONCATENATE((VLOOKUP(B46,'요건 건수'!$D$4:$E$20,2)),COUNTIFS(B$4:B46,B46))","v":"IST_05_12"},"한세MK","7월 16일",null,"세로형 이미지를 써야 하는 이유는 무엇인지?\n리뉴얼 시 반드시 세로형 썸네일로 변경을 해야하는지? \n기존처럼 정방향 이미지를 사용하면 안되는지?","등록한 이미지(세로형/정방형)에 따라 UI가 구성되었으면 함.\n지그재그 형 등.."]
[null,"05_검색/전시공통","화면의 제공","검색의 화면은 다음의 화면을 제공해야 하며 검색 엔진을 통해 타 페이지 부스팅시 관련 화면은 명시 및 검토가 필요하다.\n- 검색 입력 화면(자동완성 및 관련 내용)\n- 통합검색 결과 화면 (결과 있음/없음)\n- 단일 브랜드 샵에서의 검색결과 화면\n- 단일 브랜드 샵에서의 카테고리 상품목록\n- 카테고리 상품목록\n- 재검색 결과(결과 있음/없음)",null,{"$f":"CONCATENATE((VLOOKUP(B47,'요건 건수'!$D$4:$E$20,2)),COUNTIFS(B$4:B47,B47))","v":"IST_05_13"},"기획운영팀"]
[null,"06_브랜드샵","개별브랜드샵","브랜드의 룩북/카탈로그/쇼룸 컨텐츠를 구성하고 전시할 수 있어야 한다.\n- 화보 컷/ 화보컷에 대한 설명을 넣을 수 있어야 한다.\n- 화보 컷에 피커태그와 같은 태그를 붙일수 있어야 한다.\n- Html 컨텐츠/ 에디터 등록할 수 있어야 한다.\n- 동영상(Youtube / upload)을 등록하면 front에서 스트리밍 지원이 되어야 한다.\n- 화보를 슬라이드 하여 조회할 수 있어야 한다.\n- 설정한 상품 일괄 장바구니 담기를 진행할 수 있어야 한다.",null,{"$f":"CONCATENATE((VLOOKUP(B48,'요건 건수'!$D$4:$E$20,2)),COUNTIFS(B$4:B48,B48))","v":"IST_06_1"},"한세MK","7월 16일",null,"룩북, 카탈로그, 쇼룸 콘텐츠 정의는 무엇인지?\n - '룩북/카탈로그/쇼룸'을 공통 카테고리로 가져가는 것인지?\n피커태그가 무엇인지?\n\n\n- IST_06_3 항목 내용 중 개별 카테고리를 사용하지 않는 경우 해당 카테고리로 설정되면 되는지?","룩북, 카탈로그 : 화보라고 보면 됨\n쇼룸 : 쇼케이스(건바이건 형태로, 운영의 범위임. 따라서 고려하지 않고, 카탈로그/화보 기준으로 작업해 주면 됨)\n\n개별 카테고리 사용하지 않는 경우, 룩북/카탈로그/쇼룸 카테고리로 사용하면 됨"]
[null,"06_브랜드샵","개별브랜드샵","개별 브랜드 페이지는 브랜드 사이트의 수준으로 운영할 수 있어야 한다.\n- 브랜드 페이지 메인을 제공해야 한다.\n- 브랜드 페이지 메인은 커스텀 하여 진행할 수 있어야 한다.\n- 브랜드 페이지 메인의 커스텀 가능 범위는 구좌의 순서, 전시 등을 비롯해 전시공통과 동일한 수준의 템플릿 구현구조를 따른다.",null,{"$f":"CONCATENATE((VLOOKUP(B49,'요건 건수'!$D$4:$E$20,2)),COUNTIFS(B$4:B49,B49))","v":"IST_06_2"},"한세MK",null,null,"브랜드별 별도 뉴스 및 공지 관련 게시내용도 고려 대상인가요?","니즈 있을 수도.."]
[null,"06_브랜드샵","개별브랜드샵","브랜드 페이지에서 브랜드 별 개별 카테고리를 생성 및 상품 전시를 진행할 수 있다.\n- 개별 카테고리를 사용하지 않을 경우 공통 전시 카테고리를 사용한다.\n- 브랜드 별 카테고리 목록에서는 신상품 순으로 상품을 소팅한다.\n- 브랜드 카테고리 목록에도 이월상품이 노출되어야 한다.\n- 브랜드 카테고리에서는 정상/이월 상품을 구분할 수 있어야 한다.\n- 브랜드 별 카테고리 목록에서 상품의 전시를 임의 세팅할 경우, 세팅 상품이 우선 노출되도록 한다.",null,{"$f":"CONCATENATE((VLOOKUP(B50,'요건 건수'!$D$4:$E$20,2)),COUNTIFS(B$4:B50,B50))","v":"IST_06_3"},"패션팀",null,null,"사용자화면에서도 정상, 이월 상품 구분이 되어야 하나요?","사용자화면상 구분은 안됨\n정상/이월 상품 구분 : 정상 상품만 전시, 카테고리 기준으로 관리할 것이기 때문에 상관X"]
[null,"06_브랜드샵","브랜드인덱스","브랜드 인덱스 페이지가 생성되어야 한다.\n- 브랜드는 GNB에 노출되어야 하며, 인덱스 페이지 外 레이어 페이지도 함께 구현되어야 한다.\n- 자사 브랜드의 대표 이미지가 노출되어야 한다.\n- 브랜드 목록 조회 시 위탁브랜드(자사)는 강조 처리 하도록 UI를 설계한다.\n- 브랜드 목록 조회 시 가나다 / ABC 순으로 브랜드 목록이 노출되는 화면을 생성한다.\n- 해당 자음 클릭 시 해당 앵커위치로 이동되어야 한다.\n- 모바일용 인디케이터를 제공해야 한다.\n- 브랜드 명 검색을 제공하여야 한다.",null,{"$f":"CONCATENATE((VLOOKUP(B51,'요건 건수'!$D$4:$E$20,2)),COUNTIFS(B$4:B51,B51))","v":"IST_06_4"},"한세MK",null,null,"브랜드 인덱스 페이지라하면 브랜드 목록을 볼 수 있는 페이지를 의미하는것인지요?\n필수인가요?\n모바일용 인디케이터가 정확히 무엇을 의미하는지\n\n인덱스 페이지 외 레이어 페이지가 어떤 것인지?\nGNB에서 자사 브랜드 및 일부 브랜드 노출되고, 전체 브랜드 페이지 별도 구성하는 것인지?","LF, 신세계의 브랜드 인덱스 페이지 참고하고 있음.\n자사 브랜드가 강조되었으면 함\n\n자사로 바로 갈 수 있는 레이어(GNB)와 전체 브랜드 리스트를 볼 수 있는 것이 니즈사항임"]
[null,"07_전시메뉴","베스트","베스트 메뉴는 유지 하고 로직 및 페이지를 다시 설계한다.\n- 데이터는 1~100위 까지로 노출하며 상품은 가중치를 부여 한다.\n- 카테고리별 데이터를 노출할 수 있도록 한다.\n- 기획전 등은 제거한다.",null,{"$f":"CONCATENATE((VLOOKUP(B52,'요건 건수'!$D$4:$E$20,2)),COUNTIFS(B$4:B52,B52))","v":"IST_07_1"},"기획운영팀"]
[null,"07_전시메뉴","쇼룸/카탈로그/룩북","브랜드 샵에 등록 한 쇼룸/카탈로그/룩북을 전체 모아 볼수 있는 메뉴를 구현해야 한다.",null,{"$f":"CONCATENATE((VLOOKUP(B53,'요건 건수'!$D$4:$E$20,2)),COUNTIFS(B$4:B53,B53))","v":"IST_07_2"},"기획운영팀",null,null,"쇼룸, 카탈로그, 룩북의 각 차이점이 어떻게 될까요?"]
[null,"07_전시메뉴","아울렛","이월 상품만을 전시 하는 아울렛 메뉴를 신설한다.\n- 아울렛 內 배너 및 상품 전시 영역이 구현되어야 한다.\n- 아울렛 상품을 해당 아울렛 페이지에서 조회할 수 있어야 한다.\n- 할인율로 소팅할 수 있어야 한다.",null,{"$f":"CONCATENATE((VLOOKUP(B54,'요건 건수'!$D$4:$E$20,2)),COUNTIFS(B$4:B54,B54))","v":"IST_07_3"},"패션팀"]
[null,"07_전시메뉴","총알배송","당일 배송 상품만을 노출 하는 총알 배송 메뉴를 신설한다.\n- 총알 배송 협력처에 해당 하는 상품에 한하여 노출한다.\n- 당일 배송 배송지인지를 조회할 수 있는 기능을 제공해야 한다.",null,{"$f":"CONCATENATE((VLOOKUP(B55,'요건 건수'!$D$4:$E$20,2)),COUNTIFS(B$4:B55,B55))","v":"IST_07_4"},"기획운영팀",null,null,"당일 배송지 조회 기능에 어떤 형태로 구현되어야 하는지? \n해당 정보에 대한 DB는 있는지?","우편번호 기준으로 해당 권역인지 구분함\n(주소 직접 입력 또는 배송지 정보 호출하여 사용)\n- 총알배송 가능 지역이 아닌 경우, 일반 배송으로 진행됨"]
[null,"07_전시메뉴","하루특가","특가 노출 메뉴로 활용 특가 진행 시간/판매 수량등을 노출 할 수 있도록 한다.",null,{"$f":"CONCATENATE((VLOOKUP(B56,'요건 건수'!$D$4:$E$20,2)),COUNTIFS(B$4:B56,B56))","v":"IST_07_5"},"기획운영팀"]
[null,"08_이벤트/기획전","생성관리","관리자 페이지에서 기획전의 생성 및 관리가 가능해야 한다.\n- 기획전 번호/기획전 명 다중 조회 가능\n- 업체 기획전 별도 관리\n- 기획전 페이지의 접근 조건의 제어가 가능해야 한다.(등급별/접속채널별/회원유형별)\n- 기획전의 운영 기간을 지정할 수 있어야 한다.\n- 기획전 구분타이틀 별 운영 기간을 지정할 수 있어야 한다.",null,{"$f":"CONCATENATE((VLOOKUP(B57,'요건 건수'!$D$4:$E$20,2)),COUNTIFS(B$4:B57,B57))","v":"IST_08_1"},"기획운영팀",null,null,"기획전 메뉴 접근 시, 조건별로 어떤 콘텐츠들이 제공되는 것인지?","접근이 불가능하게 제어하는 것"]
[null,"08_이벤트/기획전","응모관리","이벤트에 대한 응모내역 관리를 진행할 수 있어야 한다.\n- 응모자 목록을 확인할 수 있어야 한다.\n- 응모자의 응모한 내용을 확인할 수 있어야 한다. \n- 이벤트 별 적재된 내역을 엑셀 다운로드 할 수 있어야 한다.",null,{"$f":"CONCATENATE((VLOOKUP(B58,'요건 건수'!$D$4:$E$20,2)),COUNTIFS(B$4:B58,B58))","v":"IST_08_2"},"기획운영팀"]
[null,"08_이벤트/기획전","자동템플릿","출석 체크 이벤트의 경우, 관리자 세팅을 통하여 즉시 진행이 가능한 템플릿 형태로 구현되어야 한다.",null,{"$f":"CONCATENATE((VLOOKUP(B59,'요건 건수'!$D$4:$E$20,2)),COUNTIFS(B$4:B59,B59))","v":"IST_08_3"},"기획운영팀",null,null," 출석 체크 이벤트에 대한 기획/디자인/개발은 누가 하는지?\n\n 이벤트에 대한 업무롤 정의 필요\n\n기존에 어떤 방식으로 운영됐었는지?\n템플릿화 할 수 있는 기준 데이터가 있는지?\n(이전에 진행했던 이벤트 참고자료 등)","디자인, 캘린더 설정 등 운영 공수가 안들었으면 함.\n(월 단위로 끊어지게끔 진행하므로, 설정한 월 기준으로 달력 노출)"]
[null,"08_이벤트/기획전","자동템플릿","라디오/멀티선택/간략입력이 가능한 설문 툴이 구현되어야 한다.",null,{"$f":"CONCATENATE((VLOOKUP(B60,'요건 건수'!$D$4:$E$20,2)),COUNTIFS(B$4:B60,B60))","v":"IST_08_4"},"기획운영팀",null,null," 해당 이벤트에 대한 기획/디자인/개발 구현은 누가 하는지?\n\n 이벤트에 대한 업무롤 정의 필요","설문이벤트는 이벤트 상세에서만 사용"]
[null,"08_이벤트/기획전","자동템플릿","댓글이벤트/ 이미지첨부 게시판(게시판스타일지정) 이 구현되어야 한다.",null,{"$f":"CONCATENATE((VLOOKUP(B61,'요건 건수'!$D$4:$E$20,2)),COUNTIFS(B$4:B61,B61))","v":"IST_08_5"},"기획운영팀",null,null," 해당 이벤트에 대한 기획/디자인/개발 구현은 누가 하는지?\n\n 이벤트에 대한 업무롤 정의 필요"]
[null,"08_이벤트/기획전","조건관리","접근 조건 및 권한, 응모조건을 세팅할 수 있어야 한다.\n- 관리자를 통해 응모에 대한 조건을 셋팅할 수 있어야 한다.(선착순/신규/등급/응모횟수제한)\n- 관리자를 통해 페이지 접근 권한을 셋팅할 수 있어야 한다.(채널/등급/신규)",null,{"$f":"CONCATENATE((VLOOKUP(B62,'요건 건수'!$D$4:$E$20,2)),COUNTIFS(B$4:B62,B62))","v":"IST_08_6"},"기획운영팀"]
[null,"09_상품관리","MD공지관리","상품 별 MD 공지를 관리자에서 진행할 수 있어야 한다.\n- 상품의 일괄로 설정할 수 있는 메뉴가 있어야 한다.\n- 상품을 여러 개 세팅할 수 있어야 한다.\n- 노출 기간/노출여부를 설정할 수 있어야 한다.\n- 에디터를 제공해야 한다.\n- 다수개 노출 할 수 있어야 한다.",null,{"$f":"CONCATENATE((VLOOKUP(B63,'요건 건수'!$D$4:$E$20,2)),COUNTIFS(B$4:B63,B63))","v":"IST_09_1"},"패션팀",null,null,"MD공지 노출이 현재는 어떻게 되고 있는지?\n(어떻게 노출되는지 확인 필요)","현재 노출되고 있지 않음.\n상품 상세 상단에서 노출되는 입고지원 등의 공지 내용"]
[null,"09_상품관리","가격관리","상품의 가격 관리가 가능해야 한다.\n- 업체 상품의 경우, 승인 절차가 있어야 한다.\n- 상품의 가격 변경 예약이 가능해야 한다.(시간예약 必)\n- 상품별 가격 변경 이력이 적재되어야 한다.\n- 상품 가격은 일괄로 변경할 수 있어야 한다.\n- 상품 쿠폰이 적용되어 있을 경우, 쿠폰 적용가/쿠폰번호가 목록과 가격관리 영역에 표시되어야 한다.\n- 쿠폰적용가 에 대한 기준은 1차 상품쿠폰에 한한다.\n- 마이너스 가격/소수점 단위 가격은 등록이 불가해야 한다.\n- 가격은 1원단위부터 등록할 수 있다.",null,{"$f":"CONCATENATE((VLOOKUP(B64,'요건 건수'!$D$4:$E$20,2)),COUNTIFS(B$4:B64,B64))","v":"IST_09_2"},"패션팀"]
[null,"09_상품관리","딜상품","딜 상품\n- 이종의 상품을 1코드에 묶어서 보여주게만 하는 상품으로 실제 구매는 단품코드로 구매를 진행이 가능해야 한다.\n- 상품명/상품셀링문구/상품 목록 상 가격 안내 까지만 진행한다.\n- 상품 구매 시 가격은 해당 단품의 가격 정책에 따른다.\n- 단품에서 쿠폰이 별도로 적용되었을 경우 딜 상품의 코드를 추가하지 않더라도 자동 적용된다.\n- 상품 목록에 전시 등이 반드시 가능해야 하며, 전시 카테고리는 해당 단품들의 카테고리에 기본적으로 전시한다.\n- 매출은 단품 단위로 집계한다.\n- 품목고시정보/상품평/상품정보는 설정한 단품의 정보를 자동으로 호출 및 조회할 수 있도록 설계한다.\n- 구성 단품을 선택할 수 있는 UI를 제공해야 한다.",null,{"$f":"CONCATENATE((VLOOKUP(B65,'요건 건수'!$D$4:$E$20,2)),COUNTIFS(B$4:B65,B65))","v":"IST_09_3"},"패션팀"]
[null,"09_상품관리","무형상품","무형 상품(무배송상품)에 대한 판매 및 관리가 가능해야 한다.\n- 무배송 상품으로 등록되었을 경우, 별도 배송지시 로의 처리가 진행되지 않는다.\n- 무형상품의 경우 장바구니/결제를 분리하여 처리한다.\n- 환불에 대한 규정 별도 수립 필요",null,{"$f":"CONCATENATE((VLOOKUP(B66,'요건 건수'!$D$4:$E$20,2)),COUNTIFS(B$4:B66,B66))","v":"IST_09_4"},"한세MK",null,null,"회장님 리뷰이후 요청제거함(6/12)"]
[null,"09_상품관리","상품공통","front에서는 상품의 기본 정보와 혜택에 대해서 제공할 수 있어야 하며 관리자에서 전체 관리가 가능해야 한다.\n- 딜상품/세트상품/일반상품 모두 전체 전시 및 판매운영이 가능해야 한다.\n- 상품 가격 구조는 각 상품의 구조에 따른다.\n- 상품 가격 표시는 전시 전체 동일한 룰로 적용한다.\n- 상품 상세의 경우 실시간 조회를 통해 가격정보를 제공한다.",null,{"$f":"CONCATENATE((VLOOKUP(B67,'요건 건수'!$D$4:$E$20,2)),COUNTIFS(B$4:B67,B67))","v":"IST_09_5"},"기획운영팀"]
[null,"09_상품관리","상품구분값관리","상품의 구분값 선택이 가능해야 한다.\n- 구분 : 신규/해외구매대행/주문제작상품/병행수입/중고/리퍼/전시/반품/스크래치\n- 반품가능여부 : Y/N\n- 상품노출여부 : 노출/비노출\n- 과세유형 : 과세/비과세\n- 구분 값에 따라 상품 상세 정보에 내용이 안내 되어야 한다.\n- 반품 가능여부가 N  일 경우, 상품의 Front 반품이 제한되어야 한다.\n- 해외구매대행/병행수입 상품일 경우 주문 시 통관부호 입력 란이 추가되어야 한다.\n- 주문제작상품의 경우 주문 시 책임동의에 대한 동의란이 추가되어야 한다.",null,{"$f":"CONCATENATE((VLOOKUP(B68,'요건 건수'!$D$4:$E$20,2)),COUNTIFS(B$4:B68,B68))","v":"IST_09_6"},"패션팀"]
[null,"09_상품관리","상품기본관리","관리자를 통해 상품의 전반을 관리 하고 판매를 진행할 수 있어야 한다.\n- 상품 번호의 구조는 1가지로 통일한다.\n- 세트/딜 상품의 등록 및 관리가 가능하여야 한다.\n- 상품의 등록/승인/가격관리/가격변경/상품상태 변경 등 단일 및 일괄업로드/수정기능으로 처리 가능해야 한다.\n- 상품의 품목정보에 대한 등록,수정,승인관리,일괄수정,변경,등록으로 진행할 수 있어야 한다.\n- 상품의 일괄 판매 승인/반려를 할 수 있어야 한다.\n- 상품의 판매 상태/판매 기간을 일괄 변경할 수 있어야 한다.\n- 상품의 복사 등록 기능이 제공되어야 한다.\n- 품목정보가 등록되지 않았을 경우 상품 판매 승인이 되면 안된다.\n- 배송안내를 저장.등록,수정하도록 제공되어야 한다.\n- 상품 정보 일괄 수정이 가능해야 한다.(품목,컨텐츠,상품기본정보,재고,상품공급처 등 상품의 제공되는 데이터 항목 전체)\n- 상품 기술서의 에디터 기능이 변경되어야 한다.\n- 상품의 예약 판매에 대한 설정을 진행할 수 있어야 한다.\n- 구매 제한에 대한 설정을 진행할 수 있어야 한다(구매수량,등급,신규회원구매에 따른 조건값등)",null,{"$f":"CONCATENATE((VLOOKUP(B69,'요건 건수'!$D$4:$E$20,2)),COUNTIFS(B$4:B69,B69))","v":"IST_09_7"},"패션팀"]
[null,"09_상품관리","상품정보","상품 정보에서 상품 기술서를 확인할 수 있어야 한다.\n- 상품 기술서 정보는 에디터를 통해 등록할 수 있어야 한다.\n- 모바일의 경우, 디바이스에 맞게 리사이징 되어야 한다.\n- 외부 링크가 걸려 있을 경우, 모바일에서 baCK을 하여도 처리되도록 방어책을 구현한다.",null,{"$f":"CONCATENATE((VLOOKUP(B70,'요건 건수'!$D$4:$E$20,2)),COUNTIFS(B$4:B70,B70))","v":"IST_09_8"},"기획운영팀",null,null," 상품 상세 정보는 통이미지로 업로드되는 건지, html 퍼블리싱되어 html 태그로 업로드하는지?\n\n 각 상품 상세 정보에 대한 신규 이미지 제작이 필요한지? 기존 상품 상세 이미지를 그대로 사용하는지?\n\n 외부 링크는 새 창으로 띄워도 되는지?","html 형태로 등록. 기존은 에디터에서 편집해서 올림\n템플릿화 해서 에디터에서 수정하여 사용할 수 있었으면 함(퀄리티 유지)\n\n신규 템플릿 전달 시, 신규 상품부터 활용하여 운영 진행. 기존 상품들은 마이그레이션하여 사용\n\n- 외부링크는 앱에서의 이슈임. 현재 상품 기술서 선택하면 타 앱을 호출하여 열리는 경우가 있으 back 버튼 선택 시, 정보가 유실되기도 함. back 기능은 개발파트와 논의 필요"]
[null,"09_상품관리","상품정보","상품 정보에서 상품평을 조회할 수 있도록 제공 하여야 한다.\n- 선택한 옵션별로 상품평을 조회할 수 있어야 한다.\n- 별점 별 상품평을 조회할 수 있어야 한다.\n- 딜에 해당 하는 상품평은 딜에 묶여 있는 전체 상품평을 호출 하며, 상품별로 조회할 수 있어야 한다.\n- 포토 상품평만 골라 조회할 수 있는 UI를 제공하여야 한다.\n- 상품평에 대한 UI의 개선화면을 제공하여야 한다.",null,{"$f":"CONCATENATE((VLOOKUP(B71,'요건 건수'!$D$4:$E$20,2)),COUNTIFS(B$4:B71,B71))","v":"IST_09_9"},"패션팀"]
[null,"09_상품관리","상품정보","상품 정보에서 상품 FAQ를 조회할 수 있도록 제공하여야 한다.\n- 비공개 글인 경우 작성자만 조회할 수 있어야 한다.",null,{"$f":"CONCATENATE((VLOOKUP(B72,'요건 건수'!$D$4:$E$20,2)),COUNTIFS(B$4:B72,B72))","v":"IST_09_10"},"기획운영팀"]
[null,"09_상품관리","상품정보","상품정보에서 배송/반품/교환 안내를 노출할 수 있도록 제공하여야 한다.\n- 관리자에서 해당 정보를 상품별로 등록 할 수 있어야 한다.\n- 저장된 상품안내를 호출 할수 있는 형태로 제공되어야 한다.",null,{"$f":"CONCATENATE((VLOOKUP(B73,'요건 건수'!$D$4:$E$20,2)),COUNTIFS(B$4:B73,B73))","v":"IST_09_11"},"기획운영팀"]
[null,"09_상품관리","상품정보","추천 상품 정보를 노출하여야 한다.(상품상세/카테고리/장바구니/브랜드매장 etc)\n- 브랜드별 많이 클릭/구매한 상품\n- 함께 구매하려는 상품\n- 해당 카테고리에서 많이 구매하는 상품\n- 같은 브랜드 다른상품\n- 현재 장바구니에 많이 담는 상품\n- 동일연령대에서 많이 본 상품",null,{"$f":"CONCATENATE((VLOOKUP(B74,'요건 건수'!$D$4:$E$20,2)),COUNTIFS(B$4:B74,B74))","v":"IST_09_12"},"한세MK","7월 16일",null,"추가 추천 내용 모두 노출 필요한지?","케이스별로 적합한 곳에 적절히 노출되었으면 함\n한 페이지에 모두 노출할 필요X"]
[null,"09_상품관리","세트상품","세트상품\n- 동일 공급처에 상품에 한하여 처리할 수 있다\n- 상품의 상세정보는 미등록 시 단품을 기준으로 모두 노출한다.\n- 고시 정보에 대해서는 단품읠 기준으로 자동 호출 한다.\n- 가격은 별도로 설정 하며, 원가율은 가격 비중으로 배분한다.",null,{"$f":"CONCATENATE((VLOOKUP(B75,'요건 건수'!$D$4:$E$20,2)),COUNTIFS(B$4:B75,B75))","v":"IST_09_13"},"패션팀"]
[null,"09_상품관리","아이콘관리","상품 아이콘의 관리가 가능해야 한다.\n- 해당 내용은 아이콘 기준 표에 따른다.\n- 아이콘은 확장 가능한 형태로 설계 해야 한다.",null,{"$f":"CONCATENATE((VLOOKUP(B76,'요건 건수'!$D$4:$E$20,2)),COUNTIFS(B$4:B76,B76))","v":"IST_09_14"},"패션팀",null,null,"상품 아이콘은 정책 가이드에 있는 상품 아이콘만 제작하면 되는지?\n상품 아이콘은 상품 목록, 상세에서만 노출되면 되는지?\n상품 아이콘이 한 상품에 최대 몇 개까지 노출되는지?","정책 가이드에 있는 상품 아이콘만 제작하면 됨\n(2개 정도 줄어서 최종 아이콘 정보 수급 필요)\n아이콘 상세에 노출되는 것은 우선순위 정해주었으면 함.(아이콘 2개 정도 노출되면 좋을 듯)\n썸네일에서 노출되는 것은 지양"]
[null,"09_상품관리","옵션관리","상품의 옵션을 선택할 수 있어야 한다.\n- 옵션 생성이 관리자에서 가능해야 한다.\n- 옵션 추가금은 운영하지 않는다.\n- 상품 옵션 선택 시 옵션별 잔여 재고값이 노출되어야 한다.\n- 색상/컬러/사이즈 등을 명확하게 표현할 수 있는 옵션 UI를 제공해야 한다.",null,{"$f":"CONCATENATE((VLOOKUP(B77,'요건 건수'!$D$4:$E$20,2)),COUNTIFS(B$4:B77,B77))","v":"IST_09_15"},"패션팀"]
[null,"09_상품관리","이미지/영상관리","상품 이미지/상품 대표 동영상 관리 기능을 제공해야 한다.\n- 상품 등록 된 이미지 순번 조정\n- 상품 이미지 선택 하여 대표이미지로 지정\n- 상품 이미지 수정/삭제\n- 상품 동영상 등록\n- 상품 GIF 생성 및 GIF 등록이 가능해야 한다.\n- 상품 컷 자동 리사이징(기존 리사이징 솔루션 有/ 해당 솔루션활용)\n- Front 상품이미지 오버 시 상품 확대 보기\n- 상품 직사각 컷에 대한 반영(기 정사각 이미지에 대한 처리방안)\n- 상품 동영상이나 GIF 등록 시 우선 노출 및 자동재생",null,{"$f":"CONCATENATE((VLOOKUP(B78,'요건 건수'!$D$4:$E$20,2)),COUNTIFS(B$4:B78,B78))","v":"IST_09_16"},"패션팀",null,null,"직사각형으로 고정인가요?\n상품 이미지 및 동영상 제작은 누가 하는지?\n리뉴얼 시 반드시 세로형/직사각 이미지로 변경을 해야하는지? 기존처럼 정방향 이미지를 사용하면 안되는지?\n동영상 업로드에 대한 인프라를 구축되어 있는지? 동영상 업로드 이슈, 용량, 트래픽, 네트워크 속도 등","제작은 아이스타일에서 제작함.\n동영상 업로드는 현재 클라우드 사용 중으로, 구현 되었으면 함"]
[null,"09_상품관리","재고관리","상품의 재고 관리가 가능하여야 한다.\n- 외부몰과의 분할을 위한 상품 단품별 재고배분율을 설정할 수 있어야 한다.\n- 재고 배분율은 단품단위로 설정가능해야 한다.\n- 재고 배분율은 일괄 업데이트가 가능해야 한다.\n- 재고 배분율을 기준으로 자사몰의 재고는 설정되어야 한다.\n- 전체 재고 숫자 / 배분율/ 배분율 적용된 재고숫자/ 잔여재고 숫자가 표시되어야 한다.\n- 재고 관리는 상품 관리에서 함께 진행될 수 있어야 한다.\n- WMS와의 재고연동을 진행할 수 있어야 한다",null,{"$f":"CONCATENATE((VLOOKUP(B79,'요건 건수'!$D$4:$E$20,2)),COUNTIFS(B$4:B79,B79))","v":"IST_09_17"},"패션팀"]
[null,"09_상품관리","코디상품관리","코디 상품 정보를 관리 및 노출 할수 있어야 한다.\n- 코디 상품에 대한 등록 및 수정\n- 코디된 화보와 상품 정보\n- 상품 일괄 담기 기능\n- 코디 상품 정보 일괄 등록",null,{"$f":"CONCATENATE((VLOOKUP(B80,'요건 건수'!$D$4:$E$20,2)),COUNTIFS(B$4:B80,B80))","v":"IST_09_18"},"한세드림"]
[null,"09_상품관리","품목정보관리","상품의 품목정보에 대한 관리가 가능해야 한다.\n- 품목정보를 조회하고 엑셀 다운로드 받을 수 있는 화면이 구성되어야 한다.\n- 품목정보를 일괄 수정 및 승인할 수 있어야 한다.\n- 개별 상품의 품목정보에 대한 변경 및 수정을 진행할 수 있어야 한다.\n- 품목정보는 각 고시 품목별 기본 템플릿이 제공되어야 한다.\n- 품목정보의 상품 조회는 일괄 조회 등이 가능해야 한다.\n- 안전인증 등이 필수인 품목은 해당 값이 정상적인 값인지 검증할 수 있어야 한다.(api 검증필요)\n- 제조국 등의 품목 국가에 대해서는 국가 코드로의 등록 및 관리가 별도로 이루어져야 한다.",null,{"$f":"CONCATENATE((VLOOKUP(B81,'요건 건수'!$D$4:$E$20,2)),COUNTIFS(B$4:B81,B81))","v":"IST_09_19"},"패션팀"]
[null,"09_상품관리","품절입고알림","품절이 된 옵션에 대한 재입고 알림을 설정할 수 있어야 한다.\n- 재고가 품절일 시, 재입고 알림 버튼이 노출되어야 한다.\n- 재입고 알림을 선택 했을 시 재고가 들어왔을 경우 알림이 사용자에게 발송되어야 한다.",null,{"$f":"CONCATENATE((VLOOKUP(B82,'요건 건수'!$D$4:$E$20,2)),COUNTIFS(B$4:B82,B82))","v":"IST_09_20"},"기획운영팀"]
[null,"10_프로모션","다다익선","다다익선 프로모션 구조가 구현되어야 한다.\n- 수량 별 할인, 금액 별 할인 두가지 구조를 구현 한다.\n- 행사 상품을 할인 받기 위한 기본 조건을 설정할 수 있어야 한다.(특정 상품 N만원 이상 구매, 특정 상품 N 개 이상 구매)\n- 수량 별 할인은 개수 조건을 최대 5개 까지 생성할 수 있어야 한다.\n- 행사 상품/브랜드/공급처를 지정할 수 있어야 한다.\n- 수량 합산인지 수량 개별인지 지정할 수 있어야 한다.\n- 예외 상품을 등록할 수 있어야 한다.\n- 수량할인과 금액 할인 프로모션은 중첩 적용될 수 있어야 한다.\n- 프로모션에 대한 안내가 상품 상세 정보에 표시되어야 한다.\n- 장바구니에서 수량이나 금액이 충족되면, 할인 계산이 적용되어야 한다.\n- 클레임으로 인한 허들이 무너졌을 경우 할인 금액은 비례 배분하여 환수 한다.",null,{"$f":"CONCATENATE((VLOOKUP(B83,'요건 건수'!$D$4:$E$20,2)),COUNTIFS(B$4:B83,B83))","v":"IST_10_1"},"한세MK",null,null,"2개 이상 구매 시, 추가상품의 대한 할인인가요?\n2개 이상 구매 시, 전체 상품의 대한 할인인가요?\n\n코디 상품 구매 시, 코디상품의 한해서만 할인 대상인가요?\n\n해당 프로모션에 대한 정확한 설명 필요\n\n어떤식으로 구현이 되어야 하는지?","롤을 정하기 나름. 타사 확인 후 다시 확인 요청주었으면 함\n(마트 등에서 많이 사용함. 참고할 것)"]
[null,"10_프로모션","사은품","사은품 프로모션 구조가 구현되어야 한다.\n- 관리자에서 사은품 프로모션에 대한 기간/시작/종료/설정 등의 관리가 가능하여야 한다.\n- 주문채널/금액/브랜드/공급처/대상상품 을 설정할 수 있어야 한다.\n- 지급할 사은품을 다수개를 설정할 수 있어야 한다.\n- 사은품의 지급 구간을 복수개 설정할 수 있어야 한다.\n- 선택 사은품일 경우 주문서에서 사은품을 선택할 수 있어야 한다.\n- 사은품 프로모션이 적용되는 상품일 경우 상품 정보에 사은품 안내가 노출되어야 한다.\n- 사은품 프로모션이 적용되었을 경우, 주문서/ 주문상세 페이지에 지급되는 사은품 정보가 노출되어야 한다.",null,{"$f":"CONCATENATE((VLOOKUP(B84,'요건 건수'!$D$4:$E$20,2)),COUNTIFS(B$4:B84,B84))","v":"IST_10_2"},"패션팀",null,null," 사은품에는 선택에 대한 샘플 화면 수급이 가능한지?\n\n 사은품으로 대체로 어떤 것이 제공되는지?","현재 없음.\n타사 확인 필요(프로모션 구조를 안쪽으로 바꾸려고 함)\n상품상세에서는 안내 정도 하고, 사은품 선택은 장바구니 내 결제 시 선택가능한 구조(예스24 / 마트, 도서류 등쪽에서 참고)"]
[null,"10_프로모션","증정","N+1, 1+N 증정 프로모션 구조가 구현되어야 한다.\n- 상품단위의 증정 프로모션 구조가 구현 되어야 한다.\n- 관리자에서 프로모션의 기간/설정 등의 관리가 가능하여야 한다.\n- 증정 프로모션에 대해서는 상품 정보에 표시가 되어야 한다.\n- 증정 프로모션의 경우 동일 상품으로 선택 가능해야 한다.\n- 장바구니에서 옵션의 수량을 변경 시, 해당 프로모션이 계산되어 적용되어야 한다.\n- 출고 송장 및 피킹리스트에 관련 프로모션 적용 수량이 정상적으로 표시되어야 한다.\n- N+1 1+N 상품의 클레임의 경우 해당 상품의 수량을 부분반품할 수 없고 해당 증정에 대한 전체 반품이 진행되어야 한다.",null,{"$f":"CONCATENATE((VLOOKUP(B85,'요건 건수'!$D$4:$E$20,2)),COUNTIFS(B$4:B85,B85))","v":"IST_10_3"},"한세드림",null,"2020-07-02","7/2 비용이슈로 요건 제거함"]
[null,"10_프로모션","카드 무이자","카드 무이자 정보에 대한 관리를 진행할 수 있어야 한다.\n- 관리자에서 카드 정보(다중) 및 할부기간, 프로모션 기간을 설정하고 관리할 수 있어야한다.\n- 중지/진행 등을 관리자에서 관리할 수 있어야한다.\n- 부분무이자 안내를 위한 부분무이자 html 등록영역이 추가되어야 한다.\n- 등록된 카드 정보는 Front 상품 상세 정보에 노출되어야 한다.",null,{"$f":"CONCATENATE((VLOOKUP(B86,'요건 건수'!$D$4:$E$20,2)),COUNTIFS(B$4:B86,B86))","v":"IST_10_4"},"기획운영팀"]
[null,"10_프로모션","카드 할인","즉시할인/청구할인 정보에 대한 관리를 진행할 수 있어야 한다.\n- 관리자에서 카드할인 정보에 대해 등록/수정/삭제 관리할 수 있어야 한다.\n- 할인 유형은 즉시할인/ 청구할인 중 선택할 수 있어야 한다.\n- 중지/진행 등을 관리자에서 관리할 수 있어야한다.\n- 할인유형,카드선택,최저구매금액,기간,정액/정율,조건 및 유의 사항을 input 및 수정할 수 있어야 한다.\n- 이벤트 페이지로 연결 할 수 있는 링크 input이 제공되어야 한다.\n- 이벤트 링크 가 등록되었을 경우 바로가기 버튼이 노출되어야 한다.\n- 등록된 카드 정보는 Front 상품 상세 정보에 노출되어야 한다.\n- 카드 할인 기간에 따라 카드정보와 카드할인이 적용된 가격이 상품 상세에 카드할인가 컬럼으로 노출 되어야 한다.\n- 적용되는 카드할인가 조건에 부합할 경우 EP에 카드할인가를 전송해야 한다.",null,{"$f":"CONCATENATE((VLOOKUP(B87,'요건 건수'!$D$4:$E$20,2)),COUNTIFS(B$4:B87,B87))","v":"IST_10_5"},"기획운영팀"]
[null,"10_프로모션","카드목록 관리","카드 무이자 및 카드 할인에서 공통으로 사용하는 카드목록은 코드화 하여 관리자에서 추가 및 확장 관리가 가능하여야 한다.",null,{"$f":"CONCATENATE((VLOOKUP(B88,'요건 건수'!$D$4:$E$20,2)),COUNTIFS(B$4:B88,B88))","v":"IST_10_6"},"기획운영팀"]
[null,"10_프로모션","쿠폰","쿠폰에 대한 현황 관리가 가능해야 한다.\n- 쿠폰의 번호/쿠폰 상태/쿠폰 유형 별 쿠폰 목록을 조회할 수 있어야 한다.\n- 쿠폰의 상태를 일괄 변경할 수 있어야 한다.\n- 쿠폰의 사용금액(비용)/ 쿠폰에 사용된 유관주문금액을 확인할 수 있어야 한다.\n- 쿠폰의 발급매수를 확인할 수 있어야 한다.\n- 쿠폰의 사용매수와 사용율을 확인할 수 있어야 한다.",null,{"$f":"CONCATENATE((VLOOKUP(B89,'요건 건수'!$D$4:$E$20,2)),COUNTIFS(B$4:B89,B89))","v":"IST_10_7"},"패션팀",null,null,"사용자가 직접 쿠폰을 등록하는 기능이 있어야 하는지?","있어야 함\n(주문 페이지, 마이페이지에서 있어야 함. 10_9번 항목의 내용)"]
[null,"10_프로모션","쿠폰","다양한 종류의 쿠폰을 설정할 수 있도록 개발되어야 한다.\n- 즉시할인 / 상품쿠폰 /  주문서 쿠폰 /  배송비 쿠폰 \n- 모든 쿠폰은 최소구매 금액/ 최대할인 금액을 지정할 수 있어야 한다.\n- 정액/정율을 지정할 수 있어야 한다.\n- 쿠폰 사용 조건은 브랜드/카테고리/공급처/상품 으로 지정할 수 있고 조건은 멀티+다중 등록으로 지정할 수 있어야 한다.\n- 쿠폰 사용 예외 조건을 지정할 수 있어야 한다.\n- 쿠폰의 분담율을 지정할 수 있어야 한다.\n- 쿠폰의 할인율은 100%를 초과할 수없다.\n- 주문서 쿠폰은 결제 수단(일반신용카드/페이코/네이버페이)과 카드사를 제어할 수 있어야 한다.\n- 디바이스에 대한 사용 조건을 제어할 수 있어야 한다.(PC/모바일웹/모바일앱 다중선택)\n- 채널에 대한 사용 조건을 제어할 수 있어야 한다.(제휴특정채널, 자사몰 등 채널에 대한 조건)\n- 배송비 쿠폰 역시 사용조건에 종속되어 조건을 적용한다.",null,{"$f":"CONCATENATE((VLOOKUP(B90,'요건 건수'!$D$4:$E$20,2)),COUNTIFS(B$4:B90,B90))","v":"IST_10_8"},"패션팀"]
[null,"10_프로모션","쿠폰","사용자가 입력-등록 하여 사용하는 시리얼유형을 만들수 있어야 한다. \n- 시리얼 쿠폰 유형은 관리자가 쿠폰코드를 생성하는 입력형과 자동 생성하는 난수형으로 생성유형을 설정할 수 있어야 한다.\n- 시리얼의 입력형 쿠폰코드는 기간 내 중복될 수 없으며, 입력 글자수는 최소 2자 ~ 최대 10자, 한글.영문.숫자로 제어한다.\n- 난수의 경우 12자리 난수로 생성한다.",null,{"$f":"CONCATENATE((VLOOKUP(B91,'요건 건수'!$D$4:$E$20,2)),COUNTIFS(B$4:B91,B91))","v":"IST_10_9"},"기획운영팀"]
[null,"10_프로모션","쿠폰","쿠폰의 다운로드조건에 대한 관리/적용기능이 개발 되어야 한다.\n- 쿠폰의 다운로드 기간 및 유효기간에 대해 관리할 수 있어야 한다.(연월일시분초단위)\n- 쿠폰의 상태를 관리할 수 있어야 한다.(대기/진행/중지/종료, 진행->대기로 변경등)\n- 선착순 조건이 부여되어야 한다.(시간/횟수/매일할지,요일로할지/선착순에서마감매수)\n- 전체 다운로드 매수와 아이디 별 기간 다운로드 매수의 제어가 개발되어야 한다.(기간내 N매, 일당 N매, 전체 N매)\n- 등급,멤버쉽 조건에 따라 다운로드를 제어해야 한다.\n- 기간 내 첫구매 조건에 따라 다운로드를 제어해야 한다.\n- 기간 내 신규회원 여부에 따라 다운로드를 제어해야 한다.\n- 쿠폰을 다운받은 회원 이력,시간과 사용여부, 사용한주문번호 등을 확인할 수 있어야 한다.\n- 쿠폰에 대한 소멸 알림 여부 값을 제어해야 한다.",null,{"$f":"CONCATENATE((VLOOKUP(B92,'요건 건수'!$D$4:$E$20,2)),COUNTIFS(B$4:B92,B92))","v":"IST_10_10"},"기획운영팀"]
[null,"10_프로모션","쿠폰","프론트 전시 영역에서 자유로운 쿠폰 노출이 제어 되어야 한다.\n- EP쿠폰에 대해서는 관련 안내가 노출되어야 한다.\n- 쿠폰 번호 설정으로 쿠폰 전시가 가능해야 한다.(기획전/이벤트/카테고리/메인)\n- 상품 상세 페이지에는 조건에 맞는 쿠폰인 경우, 쿠폰 다운받기 버튼이 노출되어야 한다.\n- 퍼블리싱 하여 사용이 가능한 쿠폰 다운로드 스크립트를 제공해주어야 한다.",null,{"$f":"CONCATENATE((VLOOKUP(B93,'요건 건수'!$D$4:$E$20,2)),COUNTIFS(B$4:B93,B93))","v":"IST_10_11"},"패션팀",null,null,"EP쿠폰은 어떤 것인지요?","네이버 쇼핑 등 타고 왔을 때 주는 할인쿠폰 같은 것\n(새창 팝업으로 띄워야 할 것)"]
[null,"11_주문결제","네이버아이디 주문","네이버 아이디 주문을 제공해야 한다.\n- 네이버 npay로그인 후 주문할 수 있는 프로세스를 제공한다.",null,{"$f":"CONCATENATE((VLOOKUP(B94,'요건 건수'!$D$4:$E$20,2)),COUNTIFS(B$4:B94,B94))","v":"IST_11_1"},"한세드림"]
[null,"11_주문결제","마일리지","아이머니/포인트 외 별도 마일리지가 신설되어야 한다.\n- 마일리지는 결제 시 사용할 수 있도록 만들어야 한다.\n- 마일리지의 금액 사용은 제어되어야 한다.\n- 마일리지에 대한 적립 현황 및 사용현황이 관리되어야 한다.\n- 현재 포인트로 커뮤니케이션 되던 포인트적립은 모두 마일리지로 교체한다.",null,{"$f":"CONCATENATE((VLOOKUP(B95,'요건 건수'!$D$4:$E$20,2)),COUNTIFS(B$4:B95,B95))","v":"IST_11_2"},"기획운영팀",null,null," 기존 아이머니/포인트가 신설되는 마일리지로 통합되는 건지?\n\n 아이머니/포인트/마일리지가 모두 존재하다면 사용자 입장에서 매우 혼란스러울 듯","통합하려는 목적 있음(포인트로 통합하고 싶음)\n- 전환비율 1:1이기 때문에 통합에 대한 이슈는 없는 상황\n\n제안보고 시, 통합해야 한다는 전략적 이유 언급해주었으면 함.\n(포인트 사용에 어려움이 있어 프로모션 적으로 활용 어려움, \n고객 인지의 어려움)"]
[null,"11_주문결제","비회원 주문","비회원 주문을 제공해야 한다. \n- 비회원 주문 시 휴대폰 본인인증을 진행 해야 한다.\n- 비회원이더라도 만 14세 미만에 대해서는 주문이 불가하여야 한다.\n- 비회원 주문은 개인정보 수집에 대한 동의를 받아야 한다.\n- 비회원 주문자가 주문번호와 비밀번호 or 인증을 통하여 본인 주문을 확인할 수 있어야 한다.\n- 비회원은 정기배송/선물서비스를 이용할 수 없다.\n- 비회원 주문자는 결제 프로모션중 쿠폰/포인트가 적립되지 않으며, 할인을 받을수 없도록 처리해야 한다.",null,{"$f":"CONCATENATE((VLOOKUP(B96,'요건 건수'!$D$4:$E$20,2)),COUNTIFS(B$4:B96,B96))","v":"IST_11_3"},"고객만족팀",null,null," 현재 비회원 주문 시 휴대폰 본인인증을 진행하고 있는지?\n\n 비회원 주문 시에도 휴대전화 본인인증 후 마이페이지 내 모든 메뉴/페이지의 기능을 로그인 주문 사용자와 동일하게 사용 가능한지?","현재 진행하고 있지 않음.\n주문하기로 넘어가는 시점에서 노출되어야 함\n(주문 관련만 확인할 수 있음)"]
[null,"11_주문결제","상품권","상품권에 대한 현황 관리가 가능해야 한다.\n- 전체 상품권 등록 현황 및 차감 현황 확인이 가능해야 한다.\n- 상품권 현황에서 기간내 등록금액/사용금액/잔액 등을 확인할 수 있어야 한다.\n- 현황을 다운로드 받을 수 있어야 한다.\n- 상품권을 관리자에서 일괄등록할 수 있어야 한다.\n- 상품권 번호로 내역을 확인할 수 있어야 한다.(등록아이디/등록일/금액/상품권번호/주문번호등)\n- 상품권 사용에 대해서는 주문일 경우 주문번호 이력이 기재되어야 한다.",null,{"$f":"CONCATENATE((VLOOKUP(B97,'요건 건수'!$D$4:$E$20,2)),COUNTIFS(B$4:B97,B97))","v":"IST_11_4"},"기획운영팀"]
[null,"11_주문결제","아이머니","아이머니에 대한 현황 관리가 가능해야 한다.\n- 아이머니에 대한 소멸 기한을 발생시켜야 한다.\n- 아이머니에 대한 환전 및 사용 현황을 확인해야 한다.",null,{"$f":"CONCATENATE((VLOOKUP(B98,'요건 건수'!$D$4:$E$20,2)),COUNTIFS(B$4:B98,B98))","v":"IST_11_5"},"기획운영팀",null,null," 아이머니를 계속 가져갈 것인지?"]
[null,"11_주문결제","장바구니","장바구니에 저장된 상품은 30일간 유지되어야 한다.\n일시품절/품절 상품은 장바구니 내 별도목록으로 노출되어야 한다.\n일시품절/품절 상품은 자동 비활성화 및 일괄 삭제 기능이 제공되어야 한다.\n예약배송 상품의 경우 예약 배송일정을 표시해 주어야 한다.\n장바구니에서의 수량변경/옵션변경이 가능해야 한다.\n비로그인 상태에서 담은 장바구니 상품은 동세션 로그인 시, 장바구니에 추가되어야 한다.",null,{"$f":"CONCATENATE((VLOOKUP(B99,'요건 건수'!$D$4:$E$20,2)),COUNTIFS(B$4:B99,B99))","v":"IST_11_6"},"기획운영팀"]
[null,"11_주문결제","주결제수단","- 다양한 주 결제 수단이 제공되어야 한다.( 신용카드/ 무통장입금 / 실시간 계좌이체 / N페이 / 페이코)\n- 간편 결제 세이 페이(Yes24간편결제)를 제공해야 한다.\n- 간편 결제 카카오페이를 제공해야 한다.\n- 부결제수단은 아이머니/마일리지/상품권을 사용할 수 있어야 한다.\n- 포인트에 대한 아이머니로의 환전 정책은 현재와 동일하게 유지한다.",null,{"$f":"CONCATENATE((VLOOKUP(B100,'요건 건수'!$D$4:$E$20,2)),COUNTIFS(B$4:B100,B100))","v":"IST_11_7"},"기획운영팀",null,null,"6/12 added(카카오페이/세이페이)"]
[null,"11_주문결제","주문서","주문의 편의 및 결제/쿠폰이 정상적으로 동작하여야 한다.\n- 당일 배송 시간이고 당일 배송 상품이 있을 경우, 당일배송여부를 선택할 수 있어야 한다.\n- 주문 시 주문자 정보를 수정하거나 변경할 수 있어야 한다.\n- 지식쇼핑으로 접근 하여 상품 상세 > NPAY결제 시 결제 수단이 NPAY로 제어되어야 한다.\n- 카드사 쿠폰 사용시, 해당 카드사로 결제 수단이 제어되어야 한다.\n- 적용 가능한 쿠폰을 보유하고 있을 경우 쿠폰은 자동 적용 되어야 한다.\n- 선택 사은품이 있을 경우 사은품 선택이 가능하여야 한다.\n- 아이머니로의 결제는 30,000원 이상일 시에만 사용이 가능하며, 결제액의 최대 40% 까지 사용이 가능하도록 처리해야한다.\n- 적립 예정 포인트를 선 사용할 수 있도록 기능을 제공해야 한다.\n- 주문서에서도 시리얼 쿠폰 번호를 등록할 수 있어야 한다. \n- 결제 금액은 1원 단위까지 결제가 가능하도록 처리해야 한다.\n- PG로의 0원 결제가 가능하도록 처리해야 한다.",null,{"$f":"CONCATENATE((VLOOKUP(B101,'요건 건수'!$D$4:$E$20,2)),COUNTIFS(B$4:B101,B101))","v":"IST_11_8"},"고객만족팀",null,null," 결제금액이 0원인데 사용자가 꼭 PG에서 0원 결제를 진행해야 하는지? 금액이 0원인 경우 [결제하기] 선택 시 바로 주문완료 페이지로 넘어갈 수는 없는지?","프로세스 잡아주었으면 함"]
[null,"11_주문결제","포인트","포인트에 대한 현황 관리가 가능해야 한다.\n- 포인트는 시일이 지나면 자동 소멸되어야 한다.\n- 소멸된 내역에 대해서도 확인할 수 있어야 한다.\n- 적립에 대한 이력이 적재되어야 한다.\n- 반품/취소 시 포인트는 환수되어야 한다.\n- 포인트에 대해서는 제거 절차를 수립한다.",null,{"$f":"CONCATENATE((VLOOKUP(B102,'요건 건수'!$D$4:$E$20,2)),COUNTIFS(B$4:B102,B102))","v":"IST_11_9"},"기획운영팀"]
[null,"12_주문/클레임","CTI","상담 프로그램 내에서 bos와 동일한 수준으로 주문/클레임 업무를 확인/진행할 수 있는 시스템이 구현되어야 한다.\n-  CTI 내 환불/교환/반품 기능은 bos와 동일 수준으로 구현되어야 한다.\n- 회원 쿠폰 내역에서는 사용된 주문번호 등을 확인할 수 있어야 한다.\n- 회원 상품권 내역에서 사용된 상품권 번호/만료정보 등을 확인할 수 있어야 한다.",null,{"$f":"CONCATENATE((VLOOKUP(B103,'요건 건수'!$D$4:$E$20,2)),COUNTIFS(B$4:B103,B103))","v":"IST_12_1"},"고객만족팀",null,null," 상담 프로그램은 어떤 시스템을 말하는지?","CTI 시스템이 별도로 있음.\n개발사하고 이야기 해야 하는 부분.\nCS / 회원 / 주문에 대한 처리"]
[null,"12_주문/클레임","결품취소","결품/과주문 취소(現 배송예외)는 자동 부분취소 처리를 진행한다.\n결품/과주문 취소는 판매자/물류관리자가 송장 등록/생성되더라도 최종출고완료 처리 전에는 취소처리를 진행할 수 있어야 한다.\n결품/과주문 취소건에 대해서는 결품에 대한 자동 안내 문자 발송을 진행한다.\n결품에 대한 문자 발송/취소에 대해서는 위탁/입점 상품 모두에 대해 진행 한다.\n세트 상품의 부분결품 발생 시 본코드 전체 구성상품이 출고되지 않아야 한다.\n결품/과주문 취소에 대해서는 주문 상세 내 결품 취소되었음을 안내해야 한다.",null,{"$f":"CONCATENATE((VLOOKUP(B104,'요건 건수'!$D$4:$E$20,2)),COUNTIFS(B$4:B104,B104))","v":"IST_12_2"},"고객만족팀"]
[null,"12_주문/클레임","구매확정","구매확정단계를 두어야 한다.\n- 수동/자동 구매확정이 가능하여야 한다.\n- 구매 확정 시 FRONT에서의 클레임은 제한한다.\n- 자동 구매 확정은 배송완료 기준으로부터 D+14로 처리 한다.",null,{"$f":"CONCATENATE((VLOOKUP(B105,'요건 건수'!$D$4:$E$20,2)),COUNTIFS(B$4:B105,B105))","v":"IST_12_3"},"기획운영팀"]
[null,"12_주문/클레임","반품/교환 신청","Front/관리자를 통해 반품/교환 신청이 가능하여야 한다.\n부분교환/반품 신청이 가능하여야 한다.\n접수된 반품/교환건이 있더라도 추가 반품/교환을 신청할 수 있어야 한다.\n교환/반품 접수 시 회수지/재배송지를 지정할 수 있도록 하여야 한다.",null,{"$f":"CONCATENATE((VLOOKUP(B106,'요건 건수'!$D$4:$E$20,2)),COUNTIFS(B$4:B106,B106))","v":"IST_12_4"},"고객만족팀"]
[null,"12_주문/클레임","반품/교환의 변경","반품과 교환을 사용자/관리자에서 철회하거나 변경할 수 있어야 한다.\nFront에서 반품/교환을사용자가 철회할 수 있다.\n관리자에서 반품을 교환으로 변경할 수 있어야 한다.\n관리자에서 교환을 반품으로 변경할 수 있어야 한다.",null,{"$f":"CONCATENATE((VLOOKUP(B107,'요건 건수'!$D$4:$E$20,2)),COUNTIFS(B$4:B107,B107))","v":"IST_12_5"},"고객만족팀"]
[null,"12_주문/클레임","반품/교환의 수거","반품/교환 신청시 WMS상품에 한하여 택배사를 연동 자동 수거를 하도록 인터페이스 연동을 진행한다\n(CJ대한통운 인터페이스)\n반품 교환 신청 후 수거 운송장이 자동 등록되어야 한다.\n반품/교환 신청된 송장의 수거 현황을 조회할 수 있다.\n오배송/재출고에 대한 플로우가 수립되어야 한다.",null,{"$f":"CONCATENATE((VLOOKUP(B108,'요건 건수'!$D$4:$E$20,2)),COUNTIFS(B$4:B108,B108))","v":"IST_12_6"},"고객만족팀"]
[null,"12_주문/클레임","주문관리","관리자는 주문에 대한 전체 관리가 가능하여야 한다.\n- 주문 전체 내역을 확인할 수 있어야 한다.\n- 클레임 내역을 확인할 수 있어야 한다.\n- 제휴/자사/채널/상품/회원/주문번호/기간/주문상태 등에 따라 멀티 조회가 가능해야 한다.\n- 목록에는 주문번호(자사/제휴주문번호),주문시간,주문상태,금액 등 전체를 확인할 수 있어야 한다.\n- BOS의 주문 상세에서는 해당 주문에서 사용한 쿠폰번호/상품권번호 등 까지도 표시되어야 한다.\n- 주문 상세에서는 주문자정보, 주문상품정보, 배송상태, 클레임상태, 쿠폰 등의 해당 주문과 연관된 모든 정보가 표시되어야 한다.\n- 주문에 대한 취소,반품,교환,환불 등이 가능해야 한다.",null,{"$f":"CONCATENATE((VLOOKUP(B109,'요건 건수'!$D$4:$E$20,2)),COUNTIFS(B$4:B109,B109))","v":"IST_12_7"},"고객만족팀"]
[null,"12_주문/클레임","주문취소","주문의 취소는 출고확정전 까지 Front 및 BOS를 통해 취소가 가능하도록 하여야 한다.\n- 출고완료 이후, front에서는 주문취소 버튼이 노출되지 않고 반품/교환 접수 버튼으로 변경되어야 한다.\n- 무통장 입금 주문에 대한 입금 전 부분취소가 가능하여야 한다.",null,{"$f":"CONCATENATE((VLOOKUP(B110,'요건 건수'!$D$4:$E$20,2)),COUNTIFS(B$4:B110,B110))","v":"IST_12_8"},"고객만족팀"]
[null,"12_주문/클레임","주문확인/변경","주문에 대한 확인 및 변경이 가능해야 한다.\n- 주문 정보를 확인할 수 있어야 한다.\n- 주문 완료 후와 주문취소 시 해당 전체 주문 내역에 대해서 다시 담기를 제공해야 한다.\n- 주문 정보에는 지급되는 사은품 정보 등도 포함되어야 한다.\n- 주문 이후 피킹지시 전까지 주소변경이 가능하여야 한다.\n- 주문 이후 피킹지시 전까지 옵션 변경이 가능하여야 한다. 단, 옵션은 동일 상품번호의 단품에 한한다.\n- 결제 완료 후 배송 중 상태 부터 상품평이 등록 가능해야 한다.",null,{"$f":"CONCATENATE((VLOOKUP(B111,'요건 건수'!$D$4:$E$20,2)),COUNTIFS(B$4:B111,B111))","v":"IST_12_9"},"고객만족팀"]
[null,"12_주문/클레임","주문확인/변경","주문의 상태값을 정의 하고, 시스템 별 상태값을 확인 및 매핑 하여야 한다.\n- Front는 배송완료 까지 표시되어야 한다.*(現 발송완료가 마지막)\n- 품절 취소는 별도 상태로 표시되어야 한다.",null,{"$f":"CONCATENATE((VLOOKUP(B112,'요건 건수'!$D$4:$E$20,2)),COUNTIFS(B$4:B112,B112))","v":"IST_12_10"},"기획운영팀"]
[null,"12_주문/클레임","클레임제한","반품/교환 불가 상품에 대한 안내를 진행하고 해당 상품 반품/교환은 BOS에서만 접수된다.\n세트 상품의 경우 세트의 구성상품만을 부분으로 반품신청 할 수 없다.\n프론트에서 교환/환불신청가능 기한을 지정한다.\n주문제작 상품의 경우 BOS/CTI에서만 반품/환불/교환이 가능해야 한다.",null,{"$f":"CONCATENATE((VLOOKUP(B113,'요건 건수'!$D$4:$E$20,2)),COUNTIFS(B$4:B113,B113))","v":"IST_12_11"},"고객만족팀"]
[null,"12_주문/클레임","환불 계좌 관리","환불 계좌에 대한 관리가 가능하여야 한다.\n- 환불 계좌는 Front 마이페이지 와 BOS를 통해 등록 및 제거할 수 있어야 한다.\n- 환불 계좌 등록 시, As-is의 계좌 외 카카오뱅크/케이뱅크도 추가되어야 한다.\n- 환불 계좌를 등록 시 환불 계좌가 정상 계좌인지 검증할 수 있어야 한다.\n- 환불 계좌를 통해 환불되는 실시간계좌이체, 무통장입금,시일이 경과한 휴대폰결제는 환불계좌 등록 후 클레임을 신청할 수있어야 한다.",null,{"$f":"CONCATENATE((VLOOKUP(B114,'요건 건수'!$D$4:$E$20,2)),COUNTIFS(B$4:B114,B114))","v":"IST_12_12"},"고객만족팀"]
[null,"12_주문/클레임","환불 금액 정책","환불금액은 환불계산 정책에 따라 자동 계산되어야 한다.\n- 반품 시 포인트는 회수처리 하며 없을 시 마이너스 차감처리 한다.\n- 귀책사유에 따른 배송비 Rule 에 따라 환불 배송비는 계산된다.\n- 환불/교환/복합결제에 따라 비례배분 및 환불계산을 진행한다.\n- 상품권/포인트/현금환불 등에 대해서는 환불금액 Rule에 따른다.",null,{"$f":"CONCATENATE((VLOOKUP(B115,'요건 건수'!$D$4:$E$20,2)),COUNTIFS(B$4:B115,B115))","v":"IST_12_13"},"기획운영팀"]
[null,"12_주문/클레임","환불확정/교환확정","환불확정이 존재하여야 한다.\n교환에 대한 확정 상태가 존재하여야 한다.( 정상 교환 완료/ 일부 망실/ 오배송재출고)\n물류 물건 입고 및 출고확정/배송완료 되었을 경우 환불 확정이 가능하다.\n고객 환불 시 추가금이 발생할 경우 Front 및 상담요청에 따라 추가 결제가 가능하도록 개별 결제창을 생성할 수 있어야 한다.\n환불확정에 대한 일괄 승인이 가능하여야 한다.\n환불확정 시 최종 클레임 완료 되며 사용자에게 최종 환불된다.",null,{"$f":"CONCATENATE((VLOOKUP(B116,'요건 건수'!$D$4:$E$20,2)),COUNTIFS(B$4:B116,B116))","v":"IST_12_14"},"고객만족팀"]
[null,"13_제휴주문관리","제휴몰 주문관리","제휴몰 주문에 대한 주문 업로드 및 주문관리가 가능해야 한다.\n- 제휴몰 주문은 제휴몰 상품번호, 제휴몰 주문번호, 자사 상품번호, 자사 상품명, 자사 주문번호 등이 모두 표시되어야 한다.",null,{"$f":"CONCATENATE((VLOOKUP(B117,'요건 건수'!$D$4:$E$20,2)),COUNTIFS(B$4:B117,B117))","v":"IST_13_1"},"고객만족팀"]
[null,"13_제휴주문관리","제휴몰 주문관리","재고 미할당된 주문에 대한 일괄 문자 발송 기능의 생성",null,{"$f":"CONCATENATE((VLOOKUP(B118,'요건 건수'!$D$4:$E$20,2)),COUNTIFS(B$4:B118,B118))","v":"IST_13_2"},"고객만족팀"]
[null,"14_고객센터/커뮤니티","1:1문의/상품Q&A","고객 대응이 필요한 게시판은 관리자가 답변을 할 수 있어야 한다.\n- 1:1문의 / 상품 Q&A / 상품평 답변은 비공개 여부를 설정할 수 있어야 한다.\n- 상품 Q&A는 해당 업체 SCM에서도 답변을 진행할 수 있어야 한다.\n- 답변 등록 시 SMS/ 이메일 발송여부는 사용자의 선택값을 default로 선택 되며, 관리자가 설정할 수 있어야 한다.\n- 답변 등록 시 SMS나 이메일 이 발송되어야 한다. \n- 목록 내 답변 여부에 대해 표시되어야 한다.",null,{"$f":"CONCATENATE((VLOOKUP(B119,'요건 건수'!$D$4:$E$20,2)),COUNTIFS(B$4:B119,B119))","v":"IST_14_1"},"고객만족팀"]
[null,"14_고객센터/커뮤니티","1:1문의/상품Q&A","문의가 필요한 내용은 마이페이지를 통해 확인할 수 있어야 한다.\n- 1:1 문의/상품Q&A/상품평 작성 내역을 확인할 수 있어야 한다.\n- 문의 내용은 사용자가 작성 및 삭제가 가능해야 한다.\n- 답변 등록 시 SMS/이메일 알림 여부를 설정할 수 있어야 한다.\n- 관리자가 답변한 내역을 확인할 수 있어야 한다.\n- 상품평의 경우 삭제 시에도 포인트를 다시 회수하지는 않는다.",null,{"$f":"CONCATENATE((VLOOKUP(B120,'요건 건수'!$D$4:$E$20,2)),COUNTIFS(B$4:B120,B120))","v":"IST_14_2"},"기획운영팀"]
[null,"14_고객센터/커뮤니티","FAQ","FAQ는 관리자를 통해 일원화 관리를 할 수 있어야 한다.\n- FAQ의 등록/삭제/수정/순서변경이 자유로워야 한다.\n- FAQ의 카테고리 항목의 추가 및 변경이 자유로워야 한다.\n- PC/Mobile 이원화 관리를 해서는 안된다.",null,{"$f":"CONCATENATE((VLOOKUP(B121,'요건 건수'!$D$4:$E$20,2)),COUNTIFS(B$4:B121,B121))","v":"IST_14_3"},"고객만족팀"]
[null,"14_고객센터/커뮤니티","공지사항","관리자를 통해 공지사항을 관리할 수 있어야 한다.\n- SCM/front/bos 공지 를 등록할 수 있어야 한다.\n- 등록 된 공지를 최 상단 메인에 표시하는 기간이 있어야 한다.\n- HTML 에디터를 지원해야 한다.\n- SCM/BOS에 대해서는 첨부파일이 지원되어야 한다.\n- 노출여부/삭제/수정이 가능해야 한다.",null,{"$f":"CONCATENATE((VLOOKUP(B122,'요건 건수'!$D$4:$E$20,2)),COUNTIFS(B$4:B122,B122))","v":"IST_14_4"},"기획운영팀"]
[null,"14_고객센터/커뮤니티","상품평","일반후기/상품후기/스타일후기/사이즈추천 이 제공되어야 한다.\n- 상품평은 성인/유아/키/몸무게/카테고리/별점 등과 같은 정보로 소팅할 수 있어야 한다.\n- 상품명을 통해 검색할 수 있어야 한다.\n- 사이즈 추천 리뷰를 통해 고객 편의가 제공되어야 한다.\n- 상품평에 대한 숨김/노출처리가 가능하여야 한다.",null,{"$f":"CONCATENATE((VLOOKUP(B123,'요건 건수'!$D$4:$E$20,2)),COUNTIFS(B$4:B123,B123))","v":"IST_14_5"},"한세MK",null,null," 여기서 말하는 상품명은 상품 상세의 상품 리뷰/후기와 다른 것인지?\n\n 동일하다면 요구사항 및 정책 통일/취합 필요","상품후기 외에 제공할 수 있는 데이터 외에 현재는 없음.\n성인/유아/키/몸무게/별점 등은 후기 등록 시 옵션 제공되었으면 함"]
[null,"14_고객센터/커뮤니티","상품평","상품평은 등록/수정/삭제/관리가 가능해야 한다.\n- 상품평은 구매자 기준으로 등록할 수 있어야 하며, 등록된 내용은 자동 노출된다.\n- 등록된 상품평은 모두 관리자에서 조회 및 관리(RUD), 일괄처리가 가능해야 한다.(포토는 목록에서 확인 必)\n- 포토상품평/일반상품평 으로 등록이 가능하여야 한다.\n- 포토 상품평은 포토 최대 10개 까지 등록이 가능하며 1이미지 당 10M로 등록 용량을 제한한다.\n- 동영상은 최대1개 첨부할 수 있도록 한다. 동영상의 용량 제한은 100M로 제한하며 모바일에 한하여 제공한다.\n- 상품평 등록 시 30자 이상 ~500 자 미만으로 등록할 수 있다.\n- 욕설/스크립트 등은 등록되지 않도록 필터링 한다.\n- 구매일로부터 60일 까지 등록 가능하도록 제한하고 상품평 등록 잔여일과 마감날짜를 표시한다.\n- 등록된 상품평에 관리자가 답변을 작성할 수 있어야 한다.",null,{"$f":"CONCATENATE((VLOOKUP(B124,'요건 건수'!$D$4:$E$20,2)),COUNTIFS(B$4:B124,B124))","v":"IST_14_6"},"기획운영팀",null,null," 여기서 말하는 상품명은 상품 상세의 상품 리뷰/후기와 다른 것인지?\n\n 동일하다면 요구사항 및 정책 통일/취합 필요","같은 내용임"]
[null,"14_고객센터/커뮤니티","상품평","상품평 작성 시 포인트는 자동으로 지급 되어야 한다.\n- 일반 상품평을 작성 하면 기본 포인트가 지급되어야 한다.\n- 포토 상품평일 경우 포토 포인트가 추가로 지급되어야 한다.\n- 작성한 포인트가 첫 상품평 일 시에는 포인트가 추가 지급되어야 한다.\n- 베스트 상품평을 관리자가 선정할 수 있어야 한다.\n- 베스트 상품평을 선정 시, 관리자 포인트가 자동으로 지급되고, Front 상단에 베스트 영역으로 노출되어야 한다.",null,{"$f":"CONCATENATE((VLOOKUP(B125,'요건 건수'!$D$4:$E$20,2)),COUNTIFS(B$4:B125,B125))","v":"IST_14_7"},"기획운영팀",null,null," 여기서 말하는 상품명은 상품 상세의 상품 리뷰/후기와 다른 것인지?\n\n 동일하다면 요구사항 및 정책 통일/취합 필요"]
[null,"14_고객센터/커뮤니티","상품평","상품평 포인트 지급 값은 기준은 다음과 같은 규칙에 따른다.\n 포토 : 1,000P\n 일반 : 200P\n 첫구매 : 1,000P\n 베스트 : 5,000P\n- 기간 내 최대 적립될 수 있는 상품평 포인트는 포토/일반/첫구매 합산 월(1일~말일) 기준 10,000P로 제한한다.\n- 상품평 포인트의 지급은 1 ID의 1 상품번호 당 1회에 한한다.(작성은 구매조건 충족시 제한하지 않는다.)\n- 상품평 포인트의 지급은 구매확정에 한한다.\n- 베스트 상품평은 관리자가 BOS를 통해 승인 시, 즉시 지급된다.\n- 첫 구매 상품평은 해당 SKU의 첫 상품평으로 한다.(블라인드 처리된 상품평도 카운트한다.)",null,{"$f":"CONCATENATE((VLOOKUP(B126,'요건 건수'!$D$4:$E$20,2)),COUNTIFS(B$4:B126,B126))","v":"IST_14_8"},"기획운영팀",null,null," 여기서 말하는 상품명은 상품 상세의 상품 리뷰/후기와 다른 것인지?\n\n 동일하다면 요구사항 및 정책 통일/취합 필요"]
[null,"14_고객센터/커뮤니티","팝업관리","관리자를 통해 팝업을 등록 관리할 수 있어야 한다.\n- SCM/front/bos 팝업을 등록할 수 있어야 한다.\n- 이미지/html중 선택할 수 있어야 한다.\n- 페이지 설정이 지원되어야 한다.\n- pc의 경우 팝업 사이즈를 지정할 수 있도록 하여야 한다.\n- 다수개 설정되었을 경우 우선순위 별 롤링 처리 되어야 한다.\n- 기간/노출여부/삭제/수정이 가능해야 한다.",null,{"$f":"CONCATENATE((VLOOKUP(B127,'요건 건수'!$D$4:$E$20,2)),COUNTIFS(B$4:B127,B127))","v":"IST_14_9"},"기획운영팀",null,null," 페이지 설정 지원이 어떤 의미인지?\n\n 팝업 사이즈가 고정이 아닌 반드시 사이즈 별도 설정이 가능해야 하는지?(팝업 여러 개 롤링 시 깨질 수 있음)","고정된 좌표에 레이어 호출 시, 팝업 사이즈가 다른 경우가 있으니 높이/가로 값 조절할 수 있어야 함.\nPC에서는 롤링하지 않고 여러 개 나열되어 뜨는 구조,\nMW에서는 롤링 필요"]
[null,"15_특화서비스","라스트마일서비스","2개 이상 사이즈 배송 후 하나 반품 하는 서비스\n- 라스트마일 배송서비스/런드리고/매쉬코리아 제휴",null,{"$f":"CONCATENATE((VLOOKUP(B128,'요건 건수'!$D$4:$E$20,2)),COUNTIFS(B$4:B128,B128))","v":"IST_15_1"},"VIP_S",null,"2020-06-12","회장님 리뷰이후 요청제거함(6/12)"]
[null,"15_특화서비스","선물포장 서비스","선물 포장 서비스를 구현하여야 한다.\n- 선물 포장 가능 여부를 상품 정보단에서 설정할 수 있어야 한다.\n- 상품정보에서 상품을 담을 때, 선물포장패키지/쇼핑백,포장박스 배송 중 선택할 수 있어야 한다.\n- 선물포장에 대한 비용은 상품가액에 옵션가로 추가한다.\n- 선물포장의 경우, 쇼핑백,포장박스유무를 주문서 표시 및 WMS전송/배송지시서에 출력하여야 한다.",null,{"$f":"CONCATENATE((VLOOKUP(B129,'요건 건수'!$D$4:$E$20,2)),COUNTIFS(B$4:B129,B129))","v":"IST_15_2"},"VIP_J",null,null," 신규 추가되는 기능인지?\n\n 어떤 서비스인지 기능 및 프로세스 설명 필요","신규 서비스\n상품 주문 시, 선물포장 옵션 선택(부자재 고르기 X, 포장한다 안한다 선택하는 정도의 수준)"]
[null,"15_특화서비스","선물하기","선물 하기 서비스를 구현하여야 한다.\n- 선물 상품 여부는 상품 정보 단에서 설정할 수 있어야 한다.\n- 선물 상품의 경우, 선물 주문 버튼이 표시되어야 한다.\n- 선물 주문 시 통합 장바구니가 아닌 즉시 주문만 가능하도록 처리되어야 한다.(장바구니X)\n- 선물 주문의 경우 주문 시 받는 사람의 휴대폰 번호로 배송지 입력에 대한 안내가 전송되어야 한다.\n- 선물 주문의 경우, 배송지 입력 전 까지 출고 주문으로 내려가지 않아야 한다.\n- 수령받는 사람이 수령받는 배송지/연락처를 입력할 수 있어야 한다.\n- 선택 한 옵션 값을 수령받는 사람이 변경할 수 있어야 한다. 변경은 동 상품 번호의 옵션 限, 이종상품번호 불가.(단품번호 단위만 가능)\n- 선물 주문의 배송지가 입력 된 상태에서 주문자의 취소는 불가하여야 한다.\n- 선물 배송지가 주문일 D+5 기준 입력되지 않으면 자동 주문 취소 처리가 되어야 한다.\n- 선물 배송의 결제는 신용카드/간편결제(네이버페이/페이코) 만 가능하다.",null,{"$f":"CONCATENATE((VLOOKUP(B130,'요건 건수'!$D$4:$E$20,2)),COUNTIFS(B$4:B130,B130))","v":"IST_15_3"},"VIP_S",null,"2020-07-02","구축 범위 축소로 관련 요청 제거함(박중재T)"]
[null,"15_특화서비스","정기배송","정기 배송 서비스를 구현하여야 한다.(구독 형태로 구현할지에 대해서는 미정)\n- 정기배송 카드를 등록, 수정, 삭제할 수 있어야 한다.\n- 정기배송 상품에 대한 관리가 가능하여야 한다.\n- 정기배송 장바구니가 별도로 있어야 한다.\n- 정기배송에 대한 주기를 설정할 수 있어야 한다.\n- 정기배송 주문 관리 및 건너뛰기, 해지가 가능해야 한다.\n- 정기배송에 대한 자동 결제가 이루어져야 한다.\n- 자동 결제 시 정기배송주문이 WMS로 내려가도록 처리해야 한다.",null,{"$f":"CONCATENATE((VLOOKUP(B131,'요건 건수'!$D$4:$E$20,2)),COUNTIFS(B$4:B131,B131))","v":"IST_15_4"},"VIP_J",null,"2020-06-12","회장님 리뷰이후 요청제거함(6/12)"]
[null,"15_특화서비스","총알배송","총알 배송(당일배송) 서비스에 대한 관리 및 진행이 가능 하여야 한다.\n- 총알 배송 가능 설정 일자, 마감시간 세팅이 가능하여야 한다.\n- 총알 배송 가능 권역에 대한 우편번호를 인터페이스로 일 단위 수집하여야 한다.\n- 총알 배송 가능 공급처에 대한 세팅이 가능하여야 한다.\n- 총알 배송 가능 상품이고 배송권역이 동일할 때, 주문서에서 총알배송에 대한 내용이 노출되어야 한다.\n- 총알 배송 여부를 주문서 표시 및 WMS에 전송되어야 한다.",null,{"$f":"CONCATENATE((VLOOKUP(B132,'요건 건수'!$D$4:$E$20,2)),COUNTIFS(B$4:B132,B132))","v":"IST_15_5"},"VIP_J"]
[null,"15_특화서비스","펀딩/예약배송","펀딩/예약배송이 가능한 서비스를 구현해야 한다.\n- 예약 배송만 자체적으로 이용할 수 있어야 한다.\n- 펀딩의 인원/금액/기간을 설정하면 해당 기간동안 펀딩상품으로 처리 된다. \n- 펀딩으로 걸린 상품은 해당 기간 내 달성하지 못할시 결제 내역이 전체 취소 되어야 한다.\n- 펀딩 페이지에서 댓글을 달 수 있어야 한다.\n- 펀딩 페이지에서 투표를 할 수 있어야 한다.\n- 컨텐츠를 추가로 등록할 수 있어야 한다.\n- 출고일을 설정할 수 있어야 한다.\n- 펀딩이 달성 후 출고일이 되어야 주문이 정상 출하된다.\n- 관리자에서 펀딩페이지 및 관련 세팅을 진행 할 수 있다.\n- 펀딩 으로 설정되었을 경우, 카드 결제만 가능 하도록 제약되어야 한다.",null,{"$f":"CONCATENATE((VLOOKUP(B133,'요건 건수'!$D$4:$E$20,2)),COUNTIFS(B$4:B133,B133))","v":"IST_15_6"},"VIP_J",null,"2020-06-12","회장님 요청으로 제거함(6/12)"]
[null,"16_회원/멤버쉽","로그인/회원정보관리","본인인증이 없는 회원에 대한 안내 화면이 있어야 한다.\n- 본인인증 시 중복 체크 후 해당 CI값을 저장한다.",null,{"$f":"CONCATENATE((VLOOKUP(B134,'요건 건수'!$D$4:$E$20,2)),COUNTIFS(B$4:B134,B134))","v":"IST_16_1"},"기획운영팀"]
[null,"16_회원/멤버쉽","로그인/회원정보관리","로그인에 대한 보안 기능을 적용 해야 한다.\n1. 비밀번호 입력 오류 시, 비밀번호가 틀리다는 안내 문구 노출 및 횟수 카운트를 하여야 한다.\n2. 5회 이상 입력 오류 시, 자동입력 문자가 노출되어야 한다.\n - 자동입력 문자는 6자로 입력 받으며, 캡챠 툴을 제시하여야 한다.\n - 자동입력 방지 듣기/새로고침 버튼 추가되어야 한다.\n - 음성으로 듣기 시, 음성으로 안내 내용이 노출되어야 한다.\n - 자동입력 방지 문자 입력 오류 시, 리프레시되며 안내가 노출되어야 한다.\n3. 10회 이상 입력 오류 시 30초 間 아이디 로그인이 차단되어야 한다.",null,{"$f":"CONCATENATE((VLOOKUP(B135,'요건 건수'!$D$4:$E$20,2)),COUNTIFS(B$4:B135,B135))","v":"IST_16_2"},"기획운영팀"]
[null,"16_회원/멤버쉽","로그인/회원정보관리","디바이스와 관계없이 회원 탈퇴를 진행할 수 있어야 한다.\n- 탈퇴 시 탈퇴연월일시분초를 저장하여야 한다.\n- 탈퇴 시 아이포인트/아이머니/쿠폰은 소멸 되어야 한다.\n- 탈퇴회원이 주문 클레임 진행중일 시 탈퇴 불가 하다.\n- 신규재가입 불가 시점 : 탈퇴일로부터 90일 동안 신규 가입이 불가하다.\n- 90일 이전의 고객은 안내 노출 후, 기존 아이디 복구 여부를 확인한다. 복구되더라도 소멸된 정보는 복원되지 않는다.\n- 아이디 복구 시, 해당 아이디로 재사용 가능",null,{"$f":"CONCATENATE((VLOOKUP(B136,'요건 건수'!$D$4:$E$20,2)),COUNTIFS(B$4:B136,B136))","v":"IST_16_3"},"기획운영팀"]
[null,"16_회원/멤버쉽","로그인/회원정보관리","사용자는 회원정보관리에서 회원 정보를 수정할 수 있어야 한다.\n- 회원 정보의 수정 시, 생년월일 인증을 진행해야 한다.\n- 개명으로 인한 이름 변경 시, 아이핀 인증/휴대폰 인증 중 선택 하여 인증 후에 성명 변경을 진행해야 한다.\n- 이메일 변경 시 이메일 인증을 진행 하여야 한다.",null,{"$f":"CONCATENATE((VLOOKUP(B137,'요건 건수'!$D$4:$E$20,2)),COUNTIFS(B$4:B137,B137))","v":"IST_16_4"},"기획운영팀"]
[null,"16_회원/멤버쉽","마이페이지","회원은 마이페이지를 통해 본인의 모든 활동 내역을 확인할 수 있어야 한다.\n- 주문,문의,클레임,위시리스트,회원정보관리,상품권,쿠폰,머니,포인트 등",null,{"$f":"CONCATENATE((VLOOKUP(B138,'요건 건수'!$D$4:$E$20,2)),COUNTIFS(B$4:B138,B138))","v":"IST_16_5"},"기획운영팀"]
[null,"16_회원/멤버쉽","멤버쉽","활동점수를 통한 등급 체계 수립\nㄴ 구매/리뷰/친구추천 등",null,{"$f":"CONCATENATE((VLOOKUP(B139,'요건 건수'!$D$4:$E$20,2)),COUNTIFS(B$4:B139,B139))","v":"IST_16_6"},"한세MK",null,"2020-06-12","회장님 리뷰이후 요청제거함(6/12)"]
[null,"16_회원/멤버쉽","멤버쉽","멤버쉽 등급 체계에 대한 검토",null,{"$f":"CONCATENATE((VLOOKUP(B140,'요건 건수'!$D$4:$E$20,2)),COUNTIFS(B$4:B140,B140))","v":"IST_16_7"},"VIP_J",null,"2020-06-12","회장님 리뷰이후 요청제거함(6/12)"]
[null,"16_회원/멤버쉽","아이디/비밀번호찾기","아이디찾기/비밀번호찾기를 진행할 수 있어야 한다.\n- 본인인증(휴대폰인증/아이핀인증)/이메일인증) 으로 진행 할수 있어야 한다.\n- 이메일 인증의 경우, 발송된 이메일의 임시번호값(4자리 숫자) 를 Front에 입력하여 인증할수 있어야 한다.\n- 아이디 찾기 결과는 즉시 확인할 수 있어야 한다.\n- 비밀번호 찾기 시, 기존 비밀번호를 Reset 하고 신규 비밀번호를 받아야 한다.\n- BOS/CTI에서 임시 비밀번호를 사용자에게 발송할 수 있어야 한다.",null,{"$f":"CONCATENATE((VLOOKUP(B141,'요건 건수'!$D$4:$E$20,2)),COUNTIFS(B$4:B141,B141))","v":"IST_16_8"},"고객만족팀"]
[null,"16_회원/멤버쉽","유료멤버쉽","유료 멤버쉽 정책이 수립되어야 한다.\n- 유료 회원 가입 화면이 생성되어야 한다.\n- 유료 회원 가입 시 결제가 진행되어야 하며, 해지 전까지는 자동결제가 가능해야 한다.\n- 유료 회원에 대한 가입 기간 및 내역을 확인할 수 있어야 한다.\n- 유료 회원에 대한 해지가 가능해야 한다.(Front/bos)\n- 유료 회원 가입 시 유료회원 전용 benefit(미정) 이 지급되어야 한다.\n- 유료 회원 만 구입 가능한 상품 세팅이 가능해야 한다.",null,{"$f":"CONCATENATE((VLOOKUP(B142,'요건 건수'!$D$4:$E$20,2)),COUNTIFS(B$4:B142,B142))","v":"IST_16_9"},"VIP_S",null,"2020-06-12","회장님 리뷰이후 요청제거함(6/12)"]
[null,"16_회원/멤버쉽","회원가입","회원 가입에 대한 내용이 구현 되어야 한다.\n- 간편 로그인이 가능 해야 한다.(네이버로그인/Yes24로그인)\n- 카카오 멤버십 가입이 가능해야 한다.\n- 회원 가입은 본인인증 - 휴대폰인증/아이핀 인증을 통한 회원 가입이 진행되어야 한다.\n- 기 등록된 이메일은 등록할 수 없도록 처리해야 한다.(이메일 인증 프로세스도입)\n- 비밀번호 생성 규칙은 상기와 같은 룰을 적용해야 한다.\n ㄴ8~20자리의 영문 대/소문자, 숫자, 특수문자 중 2가지 이상 조합 -아이디 및 아이디를 포함한 문자/숫자 비밀번호로 사용 불가. \n ㄴ 특수문자 !@#$%^&*()-_ 사용가능. -동일한 문자(숫자), 연속적인 숫자 4자 이상 사용 불가 예)1234, 1111, aaaa",null,{"$f":"CONCATENATE((VLOOKUP(B143,'요건 건수'!$D$4:$E$20,2)),COUNTIFS(B$4:B143,B143))","v":"IST_16_10"},"기획운영팀",null,null," 카카오 멤버십 가입이 어떤 의미인지? 단순 카카오 계정 로그인?","카카오 계정 로그인 추가"]
[null,"16_회원/멤버쉽","회원가입","추천인에 대한 룰을 수립해야 한다.\n- 추천인 등록 시 혜택 지급 룰을 수립해야 한다.\n- 회원 가입 /회원정보등록에서 추천인 등록이 가능해야 한다.","회원 가입 시 필수 정보\n- 아이디\n- 본인인증키값(생년월일/성별값 저장)\n- 휴대폰 번호(본인인증값의 휴대폰 자동)\n",{"$f":"CONCATENATE((VLOOKUP(B144,'요건 건수'!$D$4:$E$20,2)),COUNTIFS(B$4:B144,B144))","v":"IST_16_11"},"기획운영팀",null,null," 추천인에 대한 정책/룰 수립은 언제 확정되는지?","해당 요건 삭제"]
[null,"16_회원/멤버쉽","회원관리","관리자에서 회원을 관리 할 수 있어야 한다.\n- 회원 목록\n- 회원 기본정보\n- 회원 쿠폰 내역(쿠폰 기간/사용여부/사용된 주문번호 등)\n- 회원 상품권 내역(등록 내역, 사용내역, 사용된 주문번호, 잔액 등)\n- 회원 포인트 내역\n- 회원 아이머니 내역\n- 회원 주문배송/클레임 내역(주문클레임은 클레임.주문/배송 별도 분리형태로 진행하지 않을것)\n- 회원 이벤트 참여 이력",null,{"$f":"CONCATENATE((VLOOKUP(B145,'요건 건수'!$D$4:$E$20,2)),COUNTIFS(B$4:B145,B145))","v":"IST_16_12"},"기획운영팀"]
[null,"16_회원/멤버쉽","회원관리","관리자에서 블랙리스트 관리를 제공해야 한다.\n- 블랙리스트 등록 시, 구매제한/이벤트 응모제한으로 나누어 처리할 수 있어야 한다.\n- 블랙리스트는 회원단위로 등록 할수 있어야 한다.\n- 블랙리스트를 해제 할 수 있어야 한다.\n- 등록 해제 기록이 남아야 한다.",null,{"$f":"CONCATENATE((VLOOKUP(B146,'요건 건수'!$D$4:$E$20,2)),COUNTIFS(B$4:B146,B146))","v":"IST_16_13"},"기획운영팀"]
[null,"16_회원/멤버쉽","회원관리","탈퇴/휴면회원에 대한 회원 확인이 가능해야 한다.\n- 관리자를 통해 휴면 해제가 가능해야 한다.",null,{"$f":"CONCATENATE((VLOOKUP(B147,'요건 건수'!$D$4:$E$20,2)),COUNTIFS(B$4:B147,B147))","v":"IST_16_14"},"고객만족팀"]
[null,"16_회원/멤버쉽","휴면회원","휴면 회원에 대한 관리를 진행할 수 있어야 한다.\n- 회원 정보 보유 기간에 따라 해당 기간만큼의 접속기록(로그인 기록)이 없을 시 휴면으로 처리 되어야 한다. \n- 사용자는 로그인 시 휴면에 대한 안내창을 확인할 수 있어야 하며, 휴면에 대한 해제를 본인인증(휴대폰인증/아이핀인증)을 통해 할 수 있어야 한다.\n- 휴면 회원에 대한 해제는 관리자(BOS/CTI)에서 별도로 진행할 수 있어야 한다.\n- 휴면 회원에 대한 내역을 관리자(BOS/CTI)에서 확인할 수 있어야 한다.",null,{"$f":"CONCATENATE((VLOOKUP(B148,'요건 건수'!$D$4:$E$20,2)),COUNTIFS(B$4:B148,B148))","v":"IST_16_15"},"고객만족팀"]
[null,"17_운영관리","EP/제휴관리","EP 미전송 상품에 대한 관리가 가능해야한다.",null,{"$f":"CONCATENATE((VLOOKUP(B149,'요건 건수'!$D$4:$E$20,2)),COUNTIFS(B$4:B149,B149))","v":"IST_17_1"},"패션팀"]
[null,"17_운영관리","EP/제휴관리","네이버 지식쇼핑 최저가를 검색할 수 있는 메뉴가 생성되어야 한다.\n- 상품 다수개 넣고 조회 하는 메뉴 생성\n- 노출 내용 최저가/자사몰가격/차액/최저가몰URL ",null,{"$f":"CONCATENATE((VLOOKUP(B150,'요건 건수'!$D$4:$E$20,2)),COUNTIFS(B$4:B150,B150))","v":"IST_17_2"},"패션팀"]
[null,"17_운영관리","관리자조회공통","관리자의 조회 옵션에 대한 강화 및 조회 성능이 개선되어야 한다.\n- 10만개 이상의 데이터를 조회할 수 있어야 한다.\n- 기간 제한 없이 조건 검색시 결과가 노출되어야 한다.\n- 상품번호, 공급처, 브랜드, 협력사번호, 주문번호, 채널값, 회원아이디 등은 다수개/멀티 조회할 수 있어야 한다\n- 관리자에서 데이터 등록 시 기본 시간 설정은 연/월/일/시/분/초를 모두 설정할 수 있어야한다..\n- 그리드조회 목록에 대한 엑셀 다운로드 기능이 제공되어야 한다.",null,{"$f":"CONCATENATE((VLOOKUP(B151,'요건 건수'!$D$4:$E$20,2)),COUNTIFS(B$4:B151,B151))","v":"IST_17_3"},"패션팀"]
[null,"17_운영관리","당일배송 관리","당일 배송 관리는 권역단위로 인터페이스 되어야 한다.\n당일 배송에 대한 권역(우편번호)를 수신받아야 한다.\n당일 배송은 자사 상품에 한한다.",null,{"$f":"CONCATENATE((VLOOKUP(B152,'요건 건수'!$D$4:$E$20,2)),COUNTIFS(B$4:B152,B152))","v":"IST_17_4"},"기획운영팀"]
[null,"17_운영관리","배송관리","배송정보 관리가 가능하여야 한다.\n- 일반 배송비/ 반품교환배송비 를 설정할 수 있어야 한다.\n- 배송지/반송지 설정이 가능해야 한다.",null,{"$f":"CONCATENATE((VLOOKUP(B153,'요건 건수'!$D$4:$E$20,2)),COUNTIFS(B$4:B153,B153))","v":"IST_17_5"},"기획운영팀"]
[null,"17_운영관리","배송비 정산","배송비 정산은 별도로 진행할 수 있어야 한다.",null,{"$f":"CONCATENATE((VLOOKUP(B154,'요건 건수'!$D$4:$E$20,2)),COUNTIFS(B$4:B154,B154))","v":"IST_17_6"},"패션팀"]
[null,"17_운영관리","권한관리","구현될 메뉴 구조도와 사용자/그룹별 접근 권한을 제시하여야 한다\n관리자에서 사용자 생성/관리/메뉴별/그룹별/ 사용권한을 변경 하거나 제어할 수 있어야 한다.\n개인정보와 관련된 메뉴에 대해서는 접근 권한 관리, 접근 이력 및 처리 이력을 로그로 저장되어야 한다. ",null,{"$f":"CONCATENATE((VLOOKUP(B155,'요건 건수'!$D$4:$E$20,2)),COUNTIFS(B$4:B155,B155))","v":"IST_17_7"},"기획운영팀"]
[null,"17_운영관리","알림/CRM","푸시 발송 툴과의 연계 작업이 진행되어야 한다.\n관리자를 통해 이메일을 발송하거나 세팅할 수 있어야 한다.\n자동 발송 이메일이 개발되어야 한다.",null,{"$f":"CONCATENATE((VLOOKUP(B156,'요건 건수'!$D$4:$E$20,2)),COUNTIFS(B$4:B156,B156))","v":"IST_17_8"},"기획운영팀"]
[null,"17_운영관리","알림/CRM","자동 알림 기능을 개발 하여야 한다.\n- 쿠폰 소멸 기한(D-3) 시점 쿠폰 사용 알림이 발송되어야 한다.\nㄴ 소멸 기한 알림은 쿠폰의 알림 설정 여부에 따른다.\n- 장바구니에 3일 이상 상품이 담겨져 있을 경우 알림이 발송되어야 한다.\n- 장바구니 등록 상품이 등록 시점보다 할인 되었을 시 알림이 발송되어야 한다.\n- 위시리스트 등록 상품이 등록 시점보다 할인 되었을 시 알림이 발송되어야 한다.\n- 품절 재입고 알림을 설정한 상품일 경우, 입고 된 시점일 때 재입고 알림이 발송되어야 한다.",null,{"$f":"CONCATENATE((VLOOKUP(B157,'요건 건수'!$D$4:$E$20,2)),COUNTIFS(B$4:B157,B157))","v":"IST_17_9"},"기획운영팀",null,null," 자동 발송(알림톡/SMS/LMS/Email/PUSH)되는 케이스에 대한 정의가 되어 있는지?","현재 자동화 기능 X\nTO-BE 내용 만들어 주어야 함\n현재 정의된 내용에 해당 요구사항 조건 추가\nPUSH 정도만 생각 중"]
[null,"17_운영관리","알림/CRM","주문상태에 대한 알림이 이메일/알림톡 or SMS로 발송되어야 한다.\n- 자동발송 이메일에 대한 템플릿 관리가 가능해야 한다.",null,{"$f":"CONCATENATE((VLOOKUP(B158,'요건 건수'!$D$4:$E$20,2)),COUNTIFS(B$4:B158,B158))","v":"IST_17_10"},"기획운영팀",null,null," 자동 발송(알림톡/SMS/LMS/Email/PUSH)되는 케이스에 대한 정의가 되어 있는지?","TO-BE IA에 명시되어 있음"]
[null,"17_운영관리","정산관리","제휴처에 대한 매출 정산, 매출전표 조회, 주문전표조회가 가능해야 한다.",null,{"$f":"CONCATENATE((VLOOKUP(B159,'요건 건수'!$D$4:$E$20,2)),COUNTIFS(B$4:B159,B159))","v":"IST_17_11"},"패션팀"]
[null,"17_운영관리","정산확정","정산확정이 가능해야 한다.",null,{"$f":"CONCATENATE((VLOOKUP(B160,'요건 건수'!$D$4:$E$20,2)),COUNTIFS(B$4:B160,B160))","v":"IST_17_12"},"패션팀"]
[null,"17_운영관리","코드관리","관리자에서 코드 관리를 통해 사이트에서 사용하는 항목의 상태값의 관리를 진행하여야 한다.",null,{"$f":"CONCATENATE((VLOOKUP(B161,'요건 건수'!$D$4:$E$20,2)),COUNTIFS(B$4:B161,B161))","v":"IST_17_13"},"기획운영팀"]
[null,"17_운영관리","통계관리","회원 및 구매 현황 분석이 가능한 통계 화면을 제공해야 한다.\n기간별 조회가 가능하여야 하며, 각 조건은 멀티 조회가 가능해야 한다.\n조회한 통계는 엑셀 다운로드가 가능해야 한다.\n[제공 통계내역]\n- 전체회원통계(등급별회원수,일별회원가입수,탈퇴수,휴면회원수,전체회원수성별.연령별 회원,액티브회원)\n- 신규회원통계(일별/가입경로별/연령별)\n- 휴면/탈퇴회원통계(기간별/성별/연령별)\n- 일별 주문 통계(전체/채널별/주문수/주문금액/주문취소수/주문취소액/교환주문수/반품/반품주문수/반품상품수/반품상품액)\n- 등급/연령/지역별/상위구매자 주문통계\n- 상품/카테고리별/브랜드별/공급처별 주문 통계\n- 결제수단별 통계(PG별/아이머니/상품권)\n- 쿠폰 사용 통계(쿠폰 다운로드수, 쿠폰 사용 수, 쿠폰 사용율, 쿠폰 사용액, 쿠폰매출액)\n- 기획전 주문 통계(기획전 판매 상품, 기획전 매출)\n- 주문 프로모션 통계(프로모션 적용주문 수, 프로모션 사용액, 프로모션 적용 매출액)","\n기간 : 일간/주간/월간/기간설정(최대3년)\n[다중선택]\n연령 : 10대/20대/30대/40대/50대/기타\n성별 : 남성/여성\n브랜드\n공급처\n상품번호",{"$f":"CONCATENATE((VLOOKUP(B162,'요건 건수'!$D$4:$E$20,2)),COUNTIFS(B$4:B162,B162))","v":"IST_17_14"},"기획운영팀"]
[null,"17_운영관리","통계관리","조건별 데이터 추출이 가능한 메뉴를 생성 한다.\n- 브랜드 별 구매자\n- 주문 일괄 추출\n- 추출 항목은 향후 추가할 수 있는 형태로 ui를 설계한다.",null,{"$f":"CONCATENATE((VLOOKUP(B163,'요건 건수'!$D$4:$E$20,2)),COUNTIFS(B$4:B163,B163))","v":"IST_17_15"},"기획운영팀"]
[null,"17_운영관리","협력사관리","협력사 관리가 가능하여야 한다.\n- AS-IS와 동일 수준으로 관리가 가능하여야 한다.\n- 협력사 조회 시, 협력사 명, 사업자등록번호, 협력사 ID 로 조회할 수 있어야 한다.\n- 협력사 계정으로 SCM에 로그인할 수 있어야 한다.",null,{"$f":"CONCATENATE((VLOOKUP(B164,'요건 건수'!$D$4:$E$20,2)),COUNTIFS(B$4:B164,B164))","v":"IST_17_16"},"패션팀"]
[null,"15_특화서비스","예약배송","예약 배송을 설정할 수 있어야 한다.\n- 예약 기간/출고일을 설정할 수 있어야 한다.\n- 출고일 전에 주문은 묶여있다가 출고일 이후 주문이 내려갈 수 있어야 한다.\n- 현 재고와 관계없이 예약재고를 별도로 설정할 수 있어야 한다.",null,{"$f":"CONCATENATE((VLOOKUP(B165,'요건 건수'!$D$4:$E$20,2)),COUNTIFS(B$4:B165,B165))","v":"IST_15_7"},"패션팀",null,null,"6/12 Added\n\n 어떤 기능인지 설명 필요\n\n 주문 시 사용자가 배송일을 지정할 수 있는 것인지?","6/12 Added\n\n날짜지정X\n출고 전 주문 받는 상품임. 출고 일자 노출\n예약발송된다는 노티만 있으면 됨. 예약발송 상품인지"]
[null,"15_특화서비스","매장 O2O","- 매장 재고 연동되어야 한다.\n- 온라인 주문 후 직송매장 할당 -> 매장에서의 택배발송 이 되어야 한다.\n- 재고 연동 및 주문이 내려갈 수있는 기간계연동이 필요하다.",null,{"$f":"CONCATENATE((VLOOKUP(B166,'요건 건수'!$D$4:$E$20,2)),COUNTIFS(B$4:B166,B166))","v":"IST_15_8"},"패션팀"]
[null,"02_I.F/MIG/연동/솔루션","상품등록솔루션","상품등록/관리 솔루션 연동(자사몰정보기준)\n자사몰정보 --> 샵링커 연동을 지원해야 한다.",null,{"$f":"CONCATENATE((VLOOKUP(B167,'요건 건수'!$D$4:$E$20,2)),COUNTIFS(B$4:B167,B167))","v":"IST_02_10"},"패션팀",null,null,"6/12 Added","6/12 Added"]
[null,"15_특화서비스","라이브 커머스","라이브커머스를 제공할 수 있는 툴이 제공되어야 한다.\n- 라이브 영상을 스트리밍 할수 있어야 한다.\n- 라이브를 시청하면서 채팅을 입력할 수 있어야 한다.\n- 채팅방에 대한 관리자 권한이 존재하여야 한다.\n- 상품상세에서 라이브로 접근할 수 있어야 한다.\n- 라이브를 조회한 상태에서 화면을 축소했을 때, 재생되는 상태의 소 레이어를 구현해야한다.",null,{"$f":"CONCATENATE((VLOOKUP(B168,'요건 건수'!$D$4:$E$20,2)),COUNTIFS(B$4:B168,B168))","v":"IST_15_9"},"기획운영팀",null,"2020-07-03","결제 즉시 연동 가능여부 검토(6/12 Added)\n7/3 요건 범위 이슈로 제거 확정"]
[null,"09_상품관리","구매 제한 및 수량","구매 수량 제한이 가능 해야 한다.\n- ID 당 일일 최대 구매 수량을 제어할 수 있어야 한다.\n- 구매 조건 당 최대 구매수량을 제어할 수 있어야 한다..",null,{"$f":"CONCATENATE((VLOOKUP(B169,'요건 건수'!$D$4:$E$20,2)),COUNTIFS(B$4:B169,B169))","v":"IST_09_21"},"기획운영팀",null,null," 구매 수량 제한에 대한 정책 확인 필요(ID당 1일 최대 999건/999,999원 등)","데이터를 백앤드에서 받을 것\n상품당 수량임\n프론트에서 구매수량 노출만 고려되면 됨"]
[{"$nulls":5},{"$f":"CONCATENATE((VLOOKUP(B170,'요건 건수'!$D$4:$E$20,2)),COUNTIFS(B$4:B170,B170))","v":{"$error":"#N/A"}}]
[{"$nulls":5},{"$f":"CONCATENATE((VLOOKUP(B171,'요건 건수'!$D$4:$E$20,2)),COUNTIFS(B$4:B171,B171))","v":{"$error":"#N/A"}}]
[{"$nulls":5},{"$f":"CONCATENATE((VLOOKUP(B172,'요건 건수'!$D$4:$E$20,2)),COUNTIFS(B$4:B172,B172))","v":{"$error":"#N/A"}}]
[{"$nulls":5},{"$f":"CONCATENATE((VLOOKUP(B173,'요건 건수'!$D$4:$E$20,2)),COUNTIFS(B$4:B173,B173))","v":{"$error":"#N/A"}}]
[{"$nulls":5},{"$f":"CONCATENATE((VLOOKUP(B174,'요건 건수'!$D$4:$E$20,2)),COUNTIFS(B$4:B174,B174))","v":{"$error":"#N/A"}}]
[{"$nulls":5},{"$f":"CONCATENATE((VLOOKUP(B175,'요건 건수'!$D$4:$E$20,2)),COUNTIFS(B$4:B175,B175))","v":{"$error":"#N/A"}}]
[{"$nulls":5},{"$f":"CONCATENATE((VLOOKUP(B176,'요건 건수'!$D$4:$E$20,2)),COUNTIFS(B$4:B176,B176))","v":{"$error":"#N/A"}}]
[{"$nulls":5},{"$f":"CONCATENATE((VLOOKUP(B177,'요건 건수'!$D$4:$E$20,2)),COUNTIFS(B$4:B177,B177))","v":{"$error":"#N/A"}}]
[{"$nulls":5},{"$f":"CONCATENATE((VLOOKUP(B178,'요건 건수'!$D$4:$E$20,2)),COUNTIFS(B$4:B178,B178))","v":{"$error":"#N/A"}}]
[{"$nulls":5},{"$f":"CONCATENATE((VLOOKUP(B179,'요건 건수'!$D$4:$E$20,2)),COUNTIFS(B$4:B179,B179))","v":{"$error":"#N/A"}}]
[{"$nulls":5},{"$f":"CONCATENATE((VLOOKUP(B180,'요건 건수'!$D$4:$E$20,2)),COUNTIFS(B$4:B180,B180))","v":{"$error":"#N/A"}}]
[{"$nulls":5},{"$f":"CONCATENATE((VLOOKUP(B181,'요건 건수'!$D$4:$E$20,2)),COUNTIFS(B$4:B181,B181))","v":{"$error":"#N/A"}}]
[{"$nulls":5},{"$f":"CONCATENATE((VLOOKUP(B182,'요건 건수'!$D$4:$E$20,2)),COUNTIFS(B$4:B182,B182))","v":{"$error":"#N/A"}}]
[{"$nulls":5},{"$f":"CONCATENATE((VLOOKUP(B183,'요건 건수'!$D$4:$E$20,2)),COUNTIFS(B$4:B183,B183))","v":{"$error":"#N/A"}}]
[{"$nulls":5},{"$f":"CONCATENATE((VLOOKUP(B184,'요건 건수'!$D$4:$E$20,2)),COUNTIFS(B$4:B184,B184))","v":{"$error":"#N/A"}}]
[{"$nulls":5},{"$f":"CONCATENATE((VLOOKUP(B185,'요건 건수'!$D$4:$E$20,2)),COUNTIFS(B$4:B185,B185))","v":{"$error":"#N/A"}}]
[{"$nulls":5},{"$f":"CONCATENATE((VLOOKUP(B186,'요건 건수'!$D$4:$E$20,2)),COUNTIFS(B$4:B186,B186))","v":{"$error":"#N/A"}}]
[{"$nulls":5},{"$f":"CONCATENATE((VLOOKUP(B187,'요건 건수'!$D$4:$E$20,2)),COUNTIFS(B$4:B187,B187))","v":{"$error":"#N/A"}}]
[{"$nulls":5},{"$f":"CONCATENATE((VLOOKUP(B188,'요건 건수'!$D$4:$E$20,2)),COUNTIFS(B$4:B188,B188))","v":{"$error":"#N/A"}}]
[{"$nulls":5},{"$f":"CONCATENATE((VLOOKUP(B189,'요건 건수'!$D$4:$E$20,2)),COUNTIFS(B$4:B189,B189))","v":{"$error":"#N/A"}}]
[{"$nulls":5},{"$f":"CONCATENATE((VLOOKUP(B190,'요건 건수'!$D$4:$E$20,2)),COUNTIFS(B$4:B190,B190))","v":{"$error":"#N/A"}}]
[{"$nulls":5},{"$f":"CONCATENATE((VLOOKUP(B191,'요건 건수'!$D$4:$E$20,2)),COUNTIFS(B$4:B191,B191))","v":{"$error":"#N/A"}}]
[{"$nulls":5},{"$f":"CONCATENATE((VLOOKUP(B192,'요건 건수'!$D$4:$E$20,2)),COUNTIFS(B$4:B192,B192))","v":{"$error":"#N/A"}}]
[{"$nulls":5},{"$f":"CONCATENATE((VLOOKUP(B193,'요건 건수'!$D$4:$E$20,2)),COUNTIFS(B$4:B193,B193))","v":{"$error":"#N/A"}}]
[{"$nulls":5},{"$f":"CONCATENATE((VLOOKUP(B194,'요건 건수'!$D$4:$E$20,2)),COUNTIFS(B$4:B194,B194))","v":{"$error":"#N/A"}}]
[{"$nulls":5},{"$f":"CONCATENATE((VLOOKUP(B195,'요건 건수'!$D$4:$E$20,2)),COUNTIFS(B$4:B195,B195))","v":{"$error":"#N/A"}}]
[{"$nulls":5},{"$f":"CONCATENATE((VLOOKUP(B196,'요건 건수'!$D$4:$E$20,2)),COUNTIFS(B$4:B196,B196))","v":{"$error":"#N/A"}}]
[{"$nulls":5},{"$f":"CONCATENATE((VLOOKUP(B197,'요건 건수'!$D$4:$E$20,2)),COUNTIFS(B$4:B197,B197))","v":{"$error":"#N/A"}}]
[{"$nulls":5},{"$f":"CONCATENATE((VLOOKUP(B198,'요건 건수'!$D$4:$E$20,2)),COUNTIFS(B$4:B198,B198))","v":{"$error":"#N/A"}}]
[{"$nulls":5},{"$f":"CONCATENATE((VLOOKUP(B199,'요건 건수'!$D$4:$E$20,2)),COUNTIFS(B$4:B199,B199))","v":{"$error":"#N/A"}}]
[{"$nulls":5},{"$f":"CONCATENATE((VLOOKUP(B200,'요건 건수'!$D$4:$E$20,2)),COUNTIFS(B$4:B200,B200))","v":{"$error":"#N/A"}}]
[{"$nulls":5},{"$f":"CONCATENATE((VLOOKUP(B201,'요건 건수'!$D$4:$E$20,2)),COUNTIFS(B$4:B201,B201))","v":{"$error":"#N/A"}}]
[{"$nulls":5},{"$f":"CONCATENATE((VLOOKUP(B202,'요건 건수'!$D$4:$E$20,2)),COUNTIFS(B$4:B202,B202))","v":{"$error":"#N/A"}}]
[{"$nulls":5},{"$f":"CONCATENATE((VLOOKUP(B203,'요건 건수'!$D$4:$E$20,2)),COUNTIFS(B$4:B203,B203))","v":{"$error":"#N/A"}}]
[{"$nulls":5},{"$f":"CONCATENATE((VLOOKUP(B204,'요건 건수'!$D$4:$E$20,2)),COUNTIFS(B$4:B204,B204))","v":{"$error":"#N/A"}}]
[{"$nulls":5},{"$f":"CONCATENATE((VLOOKUP(B205,'요건 건수'!$D$4:$E$20,2)),COUNTIFS(B$4:B205,B205))","v":{"$error":"#N/A"}}]
[{"$nulls":5},{"$f":"CONCATENATE((VLOOKUP(B206,'요건 건수'!$D$4:$E$20,2)),COUNTIFS(B$4:B206,B206))","v":{"$error":"#N/A"}}]
[{"$nulls":5},{"$f":"CONCATENATE((VLOOKUP(B207,'요건 건수'!$D$4:$E$20,2)),COUNTIFS(B$4:B207,B207))","v":{"$error":"#N/A"}}]
[{"$nulls":5},{"$f":"CONCATENATE((VLOOKUP(B208,'요건 건수'!$D$4:$E$20,2)),COUNTIFS(B$4:B208,B208))","v":{"$error":"#N/A"}}]
[{"$nulls":5},{"$f":"CONCATENATE((VLOOKUP(B209,'요건 건수'!$D$4:$E$20,2)),COUNTIFS(B$4:B209,B209))","v":{"$error":"#N/A"}}]
[{"$nulls":5},{"$f":"CONCATENATE((VLOOKUP(B210,'요건 건수'!$D$4:$E$20,2)),COUNTIFS(B$4:B210,B210))","v":{"$error":"#N/A"}}]
[{"$nulls":5},{"$f":"CONCATENATE((VLOOKUP(B211,'요건 건수'!$D$4:$E$20,2)),COUNTIFS(B$4:B211,B211))","v":{"$error":"#N/A"}}]
[{"$nulls":5},{"$f":"CONCATENATE((VLOOKUP(B212,'요건 건수'!$D$4:$E$20,2)),COUNTIFS(B$4:B212,B212))","v":{"$error":"#N/A"}}]
[{"$nulls":5},{"$f":"CONCATENATE((VLOOKUP(B213,'요건 건수'!$D$4:$E$20,2)),COUNTIFS(B$4:B213,B213))","v":{"$error":"#N/A"}}]
[{"$nulls":5},{"$f":"CONCATENATE((VLOOKUP(B214,'요건 건수'!$D$4:$E$20,2)),COUNTIFS(B$4:B214,B214))","v":{"$error":"#N/A"}}]
[{"$nulls":5},{"$f":"CONCATENATE((VLOOKUP(B215,'요건 건수'!$D$4:$E$20,2)),COUNTIFS(B$4:B215,B215))","v":{"$error":"#N/A"}}]
[{"$nulls":5},{"$f":"CONCATENATE((VLOOKUP(B216,'요건 건수'!$D$4:$E$20,2)),COUNTIFS(B$4:B216,B216))","v":{"$error":"#N/A"}}]
[{"$nulls":5},{"$f":"CONCATENATE((VLOOKUP(B217,'요건 건수'!$D$4:$E$20,2)),COUNTIFS(B$4:B217,B217))","v":{"$error":"#N/A"}}]
[{"$nulls":5},{"$f":"CONCATENATE((VLOOKUP(B218,'요건 건수'!$D$4:$E$20,2)),COUNTIFS(B$4:B218,B218))","v":{"$error":"#N/A"}}]
[{"$nulls":5},{"$f":"CONCATENATE((VLOOKUP(B219,'요건 건수'!$D$4:$E$20,2)),COUNTIFS(B$4:B219,B219))","v":{"$error":"#N/A"}}]
[{"$nulls":5},{"$f":"CONCATENATE((VLOOKUP(B220,'요건 건수'!$D$4:$E$20,2)),COUNTIFS(B$4:B220,B220))","v":{"$error":"#N/A"}}]
[{"$nulls":5},{"$f":"CONCATENATE((VLOOKUP(B221,'요건 건수'!$D$4:$E$20,2)),COUNTIFS(B$4:B221,B221))","v":{"$error":"#N/A"}}]
[{"$nulls":5},{"$f":"CONCATENATE((VLOOKUP(B222,'요건 건수'!$D$4:$E$20,2)),COUNTIFS(B$4:B222,B222))","v":{"$error":"#N/A"}}]
[{"$nulls":5},{"$f":"CONCATENATE((VLOOKUP(B223,'요건 건수'!$D$4:$E$20,2)),COUNTIFS(B$4:B223,B223))","v":{"$error":"#N/A"}}]
[{"$nulls":5},{"$f":"CONCATENATE((VLOOKUP(B224,'요건 건수'!$D$4:$E$20,2)),COUNTIFS(B$4:B224,B224))","v":{"$error":"#N/A"}}]
[{"$nulls":5},{"$f":"CONCATENATE((VLOOKUP(B225,'요건 건수'!$D$4:$E$20,2)),COUNTIFS(B$4:B225,B225))","v":{"$error":"#N/A"}}]
[{"$nulls":5},{"$f":"CONCATENATE((VLOOKUP(B226,'요건 건수'!$D$4:$E$20,2)),COUNTIFS(B$4:B226,B226))","v":{"$error":"#N/A"}}]
[{"$nulls":5},{"$f":"CONCATENATE((VLOOKUP(B227,'요건 건수'!$D$4:$E$20,2)),COUNTIFS(B$4:B227,B227))","v":{"$error":"#N/A"}}]
[{"$nulls":5},{"$f":"CONCATENATE((VLOOKUP(B228,'요건 건수'!$D$4:$E$20,2)),COUNTIFS(B$4:B228,B228))","v":{"$error":"#N/A"}}]
[{"$nulls":5},{"$f":"CONCATENATE((VLOOKUP(B229,'요건 건수'!$D$4:$E$20,2)),COUNTIFS(B$4:B229,B229))","v":{"$error":"#N/A"}}]
[{"$nulls":5},{"$f":"CONCATENATE((VLOOKUP(B230,'요건 건수'!$D$4:$E$20,2)),COUNTIFS(B$4:B230,B230))","v":{"$error":"#N/A"}}]
[{"$nulls":5},{"$f":"CONCATENATE((VLOOKUP(B231,'요건 건수'!$D$4:$E$20,2)),COUNTIFS(B$4:B231,B231))","v":{"$error":"#N/A"}}]
[{"$nulls":5},{"$f":"CONCATENATE((VLOOKUP(B232,'요건 건수'!$D$4:$E$20,2)),COUNTIFS(B$4:B232,B232))","v":{"$error":"#N/A"}}]
[{"$nulls":5},{"$f":"CONCATENATE((VLOOKUP(B233,'요건 건수'!$D$4:$E$20,2)),COUNTIFS(B$4:B233,B233))","v":{"$error":"#N/A"}}]
[{"$nulls":5},{"$f":"CONCATENATE((VLOOKUP(B234,'요건 건수'!$D$4:$E$20,2)),COUNTIFS(B$4:B234,B234))","v":{"$error":"#N/A"}}]
[{"$nulls":5},{"$f":"CONCATENATE((VLOOKUP(B235,'요건 건수'!$D$4:$E$20,2)),COUNTIFS(B$4:B235,B235))","v":{"$error":"#N/A"}}]
[{"$nulls":5},{"$f":"CONCATENATE((VLOOKUP(B236,'요건 건수'!$D$4:$E$20,2)),COUNTIFS(B$4:B236,B236))","v":{"$error":"#N/A"}}]
[{"$nulls":5},{"$f":"CONCATENATE((VLOOKUP(B237,'요건 건수'!$D$4:$E$20,2)),COUNTIFS(B$4:B237,B237))","v":{"$error":"#N/A"}}]
[{"$nulls":5},{"$f":"CONCATENATE((VLOOKUP(B238,'요건 건수'!$D$4:$E$20,2)),COUNTIFS(B$4:B238,B238))","v":{"$error":"#N/A"}}]
[{"$nulls":5},{"$f":"CONCATENATE((VLOOKUP(B239,'요건 건수'!$D$4:$E$20,2)),COUNTIFS(B$4:B239,B239))","v":{"$error":"#N/A"}}]
[{"$nulls":5},{"$f":"CONCATENATE((VLOOKUP(B240,'요건 건수'!$D$4:$E$20,2)),COUNTIFS(B$4:B240,B240))","v":{"$error":"#N/A"}}]
[{"$nulls":5},{"$f":"CONCATENATE((VLOOKUP(B241,'요건 건수'!$D$4:$E$20,2)),COUNTIFS(B$4:B241,B241))","v":{"$error":"#N/A"}}]
[{"$nulls":5},{"$f":"CONCATENATE((VLOOKUP(B242,'요건 건수'!$D$4:$E$20,2)),COUNTIFS(B$4:B242,B242))","v":{"$error":"#N/A"}}]
[{"$nulls":5},{"$f":"CONCATENATE((VLOOKUP(B243,'요건 건수'!$D$4:$E$20,2)),COUNTIFS(B$4:B243,B243))","v":{"$error":"#N/A"}}]
[{"$nulls":5},{"$f":"CONCATENATE((VLOOKUP(B244,'요건 건수'!$D$4:$E$20,2)),COUNTIFS(B$4:B244,B244))","v":{"$error":"#N/A"}}]
[{"$nulls":5},{"$f":"CONCATENATE((VLOOKUP(B245,'요건 건수'!$D$4:$E$20,2)),COUNTIFS(B$4:B245,B245))","v":{"$error":"#N/A"}}]
[{"$nulls":5},{"$f":"CONCATENATE((VLOOKUP(B246,'요건 건수'!$D$4:$E$20,2)),COUNTIFS(B$4:B246,B246))","v":{"$error":"#N/A"}}]
[{"$nulls":5},{"$f":"CONCATENATE((VLOOKUP(B247,'요건 건수'!$D$4:$E$20,2)),COUNTIFS(B$4:B247,B247))","v":{"$error":"#N/A"}}]
[{"$nulls":5},{"$f":"CONCATENATE((VLOOKUP(B248,'요건 건수'!$D$4:$E$20,2)),COUNTIFS(B$4:B248,B248))","v":{"$error":"#N/A"}}]
[{"$nulls":5},{"$f":"CONCATENATE((VLOOKUP(B249,'요건 건수'!$D$4:$E$20,2)),COUNTIFS(B$4:B249,B249))","v":{"$error":"#N/A"}}]
[{"$nulls":5},{"$f":"CONCATENATE((VLOOKUP(B250,'요건 건수'!$D$4:$E$20,2)),COUNTIFS(B$4:B250,B250))","v":{"$error":"#N/A"}}]
[{"$nulls":5},{"$f":"CONCATENATE((VLOOKUP(B251,'요건 건수'!$D$4:$E$20,2)),COUNTIFS(B$4:B251,B251))","v":{"$error":"#N/A"}}]
[{"$nulls":5},{"$f":"CONCATENATE((VLOOKUP(B252,'요건 건수'!$D$4:$E$20,2)),COUNTIFS(B$4:B252,B252))","v":{"$error":"#N/A"}}]
[{"$nulls":5},{"$f":"CONCATENATE((VLOOKUP(B253,'요건 건수'!$D$4:$E$20,2)),COUNTIFS(B$4:B253,B253))","v":{"$error":"#N/A"}}]
[{"$nulls":5},{"$f":"CONCATENATE((VLOOKUP(B254,'요건 건수'!$D$4:$E$20,2)),COUNTIFS(B$4:B254,B254))","v":{"$error":"#N/A"}}]
[{"$nulls":5},{"$f":"CONCATENATE((VLOOKUP(B255,'요건 건수'!$D$4:$E$20,2)),COUNTIFS(B$4:B255,B255))","v":{"$error":"#N/A"}}]
[{"$nulls":5},{"$f":"CONCATENATE((VLOOKUP(B256,'요건 건수'!$D$4:$E$20,2)),COUNTIFS(B$4:B256,B256))","v":{"$error":"#N/A"}}]
[{"$nulls":5},{"$f":"CONCATENATE((VLOOKUP(B257,'요건 건수'!$D$4:$E$20,2)),COUNTIFS(B$4:B257,B257))","v":{"$error":"#N/A"}}]
[{"$nulls":5},{"$f":"CONCATENATE((VLOOKUP(B258,'요건 건수'!$D$4:$E$20,2)),COUNTIFS(B$4:B258,B258))","v":{"$error":"#N/A"}}]
[{"$nulls":5},{"$f":"CONCATENATE((VLOOKUP(B259,'요건 건수'!$D$4:$E$20,2)),COUNTIFS(B$4:B259,B259))","v":{"$error":"#N/A"}}]
[{"$nulls":5},{"$f":"CONCATENATE((VLOOKUP(B260,'요건 건수'!$D$4:$E$20,2)),COUNTIFS(B$4:B260,B260))","v":{"$error":"#N/A"}}]
[{"$nulls":5},{"$f":"CONCATENATE((VLOOKUP(B261,'요건 건수'!$D$4:$E$20,2)),COUNTIFS(B$4:B261,B261))","v":{"$error":"#N/A"}}]
[{"$nulls":5},{"$f":"CONCATENATE((VLOOKUP(B262,'요건 건수'!$D$4:$E$20,2)),COUNTIFS(B$4:B262,B262))","v":{"$error":"#N/A"}}]
[{"$nulls":5},{"$f":"CONCATENATE((VLOOKUP(B263,'요건 건수'!$D$4:$E$20,2)),COUNTIFS(B$4:B263,B263))","v":{"$error":"#N/A"}}]
[{"$nulls":5},{"$f":"CONCATENATE((VLOOKUP(B264,'요건 건수'!$D$4:$E$20,2)),COUNTIFS(B$4:B264,B264))","v":{"$error":"#N/A"}}]
[{"$nulls":5},{"$f":"CONCATENATE((VLOOKUP(B265,'요건 건수'!$D$4:$E$20,2)),COUNTIFS(B$4:B265,B265))","v":{"$error":"#N/A"}}]
[{"$nulls":5},{"$f":"CONCATENATE((VLOOKUP(B266,'요건 건수'!$D$4:$E$20,2)),COUNTIFS(B$4:B266,B266))","v":{"$error":"#N/A"}}]
[{"$nulls":5},{"$f":"CONCATENATE((VLOOKUP(B267,'요건 건수'!$D$4:$E$20,2)),COUNTIFS(B$4:B267,B267))","v":{"$error":"#N/A"}}]
[{"$nulls":5},{"$f":"CONCATENATE((VLOOKUP(B268,'요건 건수'!$D$4:$E$20,2)),COUNTIFS(B$4:B268,B268))","v":{"$error":"#N/A"}}]
[{"$nulls":5},{"$f":"CONCATENATE((VLOOKUP(B269,'요건 건수'!$D$4:$E$20,2)),COUNTIFS(B$4:B269,B269))","v":{"$error":"#N/A"}}]
[{"$nulls":5},{"$f":"CONCATENATE((VLOOKUP(B270,'요건 건수'!$D$4:$E$20,2)),COUNTIFS(B$4:B270,B270))","v":{"$error":"#N/A"}}]
[{"$nulls":5},{"$f":"CONCATENATE((VLOOKUP(B271,'요건 건수'!$D$4:$E$20,2)),COUNTIFS(B$4:B271,B271))","v":{"$error":"#N/A"}}]
[{"$nulls":5},{"$f":"CONCATENATE((VLOOKUP(B272,'요건 건수'!$D$4:$E$20,2)),COUNTIFS(B$4:B272,B272))","v":{"$error":"#N/A"}}]
[{"$nulls":5},{"$f":"CONCATENATE((VLOOKUP(B273,'요건 건수'!$D$4:$E$20,2)),COUNTIFS(B$4:B273,B273))","v":{"$error":"#N/A"}}]
[{"$nulls":5},{"$f":"CONCATENATE((VLOOKUP(B274,'요건 건수'!$D$4:$E$20,2)),COUNTIFS(B$4:B274,B274))","v":{"$error":"#N/A"}}]
[{"$nulls":5},{"$f":"CONCATENATE((VLOOKUP(B275,'요건 건수'!$D$4:$E$20,2)),COUNTIFS(B$4:B275,B275))","v":{"$error":"#N/A"}}]
[{"$nulls":5},{"$f":"CONCATENATE((VLOOKUP(B276,'요건 건수'!$D$4:$E$20,2)),COUNTIFS(B$4:B276,B276))","v":{"$error":"#N/A"}}]
[{"$nulls":5},{"$f":"CONCATENATE((VLOOKUP(B277,'요건 건수'!$D$4:$E$20,2)),COUNTIFS(B$4:B277,B277))","v":{"$error":"#N/A"}}]
[{"$nulls":5},{"$f":"CONCATENATE((VLOOKUP(B278,'요건 건수'!$D$4:$E$20,2)),COUNTIFS(B$4:B278,B278))","v":{"$error":"#N/A"}}]
[{"$nulls":5},{"$f":"CONCATENATE((VLOOKUP(B279,'요건 건수'!$D$4:$E$20,2)),COUNTIFS(B$4:B279,B279))","v":{"$error":"#N/A"}}]
[{"$nulls":5},{"$f":"CONCATENATE((VLOOKUP(B280,'요건 건수'!$D$4:$E$20,2)),COUNTIFS(B$4:B280,B280))","v":{"$error":"#N/A"}}]
[{"$nulls":5},{"$f":"CONCATENATE((VLOOKUP(B281,'요건 건수'!$D$4:$E$20,2)),COUNTIFS(B$4:B281,B281))","v":{"$error":"#N/A"}}]
[{"$nulls":5},{"$f":"CONCATENATE((VLOOKUP(B282,'요건 건수'!$D$4:$E$20,2)),COUNTIFS(B$4:B282,B282))","v":{"$error":"#N/A"}}]
[{"$nulls":5},{"$f":"CONCATENATE((VLOOKUP(B283,'요건 건수'!$D$4:$E$20,2)),COUNTIFS(B$4:B283,B283))","v":{"$error":"#N/A"}}]
[{"$nulls":5},{"$f":"CONCATENATE((VLOOKUP(B284,'요건 건수'!$D$4:$E$20,2)),COUNTIFS(B$4:B284,B284))","v":{"$error":"#N/A"}}]
[{"$nulls":5},{"$f":"CONCATENATE((VLOOKUP(B285,'요건 건수'!$D$4:$E$20,2)),COUNTIFS(B$4:B285,B285))","v":{"$error":"#N/A"}}]
[{"$nulls":5},{"$f":"CONCATENATE((VLOOKUP(B286,'요건 건수'!$D$4:$E$20,2)),COUNTIFS(B$4:B286,B286))","v":{"$error":"#N/A"}}]
[{"$nulls":5},{"$f":"CONCATENATE((VLOOKUP(B287,'요건 건수'!$D$4:$E$20,2)),COUNTIFS(B$4:B287,B287))","v":{"$error":"#N/A"}}]
[{"$nulls":5},{"$f":"CONCATENATE((VLOOKUP(B288,'요건 건수'!$D$4:$E$20,2)),COUNTIFS(B$4:B288,B288))","v":{"$error":"#N/A"}}]
[{"$nulls":5},{"$f":"CONCATENATE((VLOOKUP(B289,'요건 건수'!$D$4:$E$20,2)),COUNTIFS(B$4:B289,B289))","v":{"$error":"#N/A"}}]
[{"$nulls":5},{"$f":"CONCATENATE((VLOOKUP(B290,'요건 건수'!$D$4:$E$20,2)),COUNTIFS(B$4:B290,B290))","v":{"$error":"#N/A"}}]
[{"$nulls":5},{"$f":"CONCATENATE((VLOOKUP(B291,'요건 건수'!$D$4:$E$20,2)),COUNTIFS(B$4:B291,B291))","v":{"$error":"#N/A"}}]
[{"$nulls":5},{"$f":"CONCATENATE((VLOOKUP(B292,'요건 건수'!$D$4:$E$20,2)),COUNTIFS(B$4:B292,B292))","v":{"$error":"#N/A"}}]
[{"$nulls":5},{"$f":"CONCATENATE((VLOOKUP(B293,'요건 건수'!$D$4:$E$20,2)),COUNTIFS(B$4:B293,B293))","v":{"$error":"#N/A"}}]
[{"$nulls":5},{"$f":"CONCATENATE((VLOOKUP(B294,'요건 건수'!$D$4:$E$20,2)),COUNTIFS(B$4:B294,B294))","v":{"$error":"#N/A"}}]
[{"$nulls":5},{"$f":"CONCATENATE((VLOOKUP(B295,'요건 건수'!$D$4:$E$20,2)),COUNTIFS(B$4:B295,B295))","v":{"$error":"#N/A"}}]
[{"$nulls":5},{"$f":"CONCATENATE((VLOOKUP(B296,'요건 건수'!$D$4:$E$20,2)),COUNTIFS(B$4:B296,B296))","v":{"$error":"#N/A"}}]
[{"$nulls":5},{"$f":"CONCATENATE((VLOOKUP(B297,'요건 건수'!$D$4:$E$20,2)),COUNTIFS(B$4:B297,B297))","v":{"$error":"#N/A"}}]
[{"$nulls":5},{"$f":"CONCATENATE((VLOOKUP(B298,'요건 건수'!$D$4:$E$20,2)),COUNTIFS(B$4:B298,B298))","v":{"$error":"#N/A"}}]
[{"$nulls":5},{"$f":"CONCATENATE((VLOOKUP(B299,'요건 건수'!$D$4:$E$20,2)),COUNTIFS(B$4:B299,B299))","v":{"$error":"#N/A"}}]
[{"$nulls":5},{"$f":"CONCATENATE((VLOOKUP(B300,'요건 건수'!$D$4:$E$20,2)),COUNTIFS(B$4:B300,B300))","v":{"$error":"#N/A"}}]
[{"$nulls":5},{"$f":"CONCATENATE((VLOOKUP(B301,'요건 건수'!$D$4:$E$20,2)),COUNTIFS(B$4:B301,B301))","v":{"$error":"#N/A"}}]
[{"$nulls":5},{"$f":"CONCATENATE((VLOOKUP(B302,'요건 건수'!$D$4:$E$20,2)),COUNTIFS(B$4:B302,B302))","v":{"$error":"#N/A"}}]
[{"$nulls":5},{"$f":"CONCATENATE((VLOOKUP(B303,'요건 건수'!$D$4:$E$20,2)),COUNTIFS(B$4:B303,B303))","v":{"$error":"#N/A"}}]
[{"$nulls":5},{"$f":"CONCATENATE((VLOOKUP(B304,'요건 건수'!$D$4:$E$20,2)),COUNTIFS(B$4:B304,B304))","v":{"$error":"#N/A"}}]
[{"$nulls":5},{"$f":"CONCATENATE((VLOOKUP(B305,'요건 건수'!$D$4:$E$20,2)),COUNTIFS(B$4:B305,B305))","v":{"$error":"#N/A"}}]
[{"$nulls":5},{"$f":"CONCATENATE((VLOOKUP(B306,'요건 건수'!$D$4:$E$20,2)),COUNTIFS(B$4:B306,B306))","v":{"$error":"#N/A"}}]
[{"$nulls":5},{"$f":"CONCATENATE((VLOOKUP(B307,'요건 건수'!$D$4:$E$20,2)),COUNTIFS(B$4:B307,B307))","v":{"$error":"#N/A"}}]
[{"$nulls":5},{"$f":"CONCATENATE((VLOOKUP(B308,'요건 건수'!$D$4:$E$20,2)),COUNTIFS(B$4:B308,B308))","v":{"$error":"#N/A"}}]
[{"$nulls":5},{"$f":"CONCATENATE((VLOOKUP(B309,'요건 건수'!$D$4:$E$20,2)),COUNTIFS(B$4:B309,B309))","v":{"$error":"#N/A"}}]
[{"$nulls":5},{"$f":"CONCATENATE((VLOOKUP(B310,'요건 건수'!$D$4:$E$20,2)),COUNTIFS(B$4:B310,B310))","v":{"$error":"#N/A"}}]
[{"$nulls":5},{"$f":"CONCATENATE((VLOOKUP(B311,'요건 건수'!$D$4:$E$20,2)),COUNTIFS(B$4:B311,B311))","v":{"$error":"#N/A"}}]
[{"$nulls":5},{"$f":"CONCATENATE((VLOOKUP(B312,'요건 건수'!$D$4:$E$20,2)),COUNTIFS(B$4:B312,B312))","v":{"$error":"#N/A"}}]
[{"$nulls":5},{"$f":"CONCATENATE((VLOOKUP(B313,'요건 건수'!$D$4:$E$20,2)),COUNTIFS(B$4:B313,B313))","v":{"$error":"#N/A"}}]
[{"$nulls":5},{"$f":"CONCATENATE((VLOOKUP(B314,'요건 건수'!$D$4:$E$20,2)),COUNTIFS(B$4:B314,B314))","v":{"$error":"#N/A"}}]
[{"$nulls":5},{"$f":"CONCATENATE((VLOOKUP(B315,'요건 건수'!$D$4:$E$20,2)),COUNTIFS(B$4:B315,B315))","v":{"$error":"#N/A"}}]
[{"$nulls":5},{"$f":"CONCATENATE((VLOOKUP(B316,'요건 건수'!$D$4:$E$20,2)),COUNTIFS(B$4:B316,B316))","v":{"$error":"#N/A"}}]
[{"$nulls":5},{"$f":"CONCATENATE((VLOOKUP(B317,'요건 건수'!$D$4:$E$20,2)),COUNTIFS(B$4:B317,B317))","v":{"$error":"#N/A"}}]
[{"$nulls":5},{"$f":"CONCATENATE((VLOOKUP(B318,'요건 건수'!$D$4:$E$20,2)),COUNTIFS(B$4:B318,B318))","v":{"$error":"#N/A"}}]
[{"$nulls":5},{"$f":"CONCATENATE((VLOOKUP(B319,'요건 건수'!$D$4:$E$20,2)),COUNTIFS(B$4:B319,B319))","v":{"$error":"#N/A"}}]
[{"$nulls":5},{"$f":"CONCATENATE((VLOOKUP(B320,'요건 건수'!$D$4:$E$20,2)),COUNTIFS(B$4:B320,B320))","v":{"$error":"#N/A"}}]
[{"$nulls":5},{"$f":"CONCATENATE((VLOOKUP(B321,'요건 건수'!$D$4:$E$20,2)),COUNTIFS(B$4:B321,B321))","v":{"$error":"#N/A"}}]
[{"$nulls":5},{"$f":"CONCATENATE((VLOOKUP(B322,'요건 건수'!$D$4:$E$20,2)),COUNTIFS(B$4:B322,B322))","v":{"$error":"#N/A"}}]
[{"$nulls":5},{"$f":"CONCATENATE((VLOOKUP(B323,'요건 건수'!$D$4:$E$20,2)),COUNTIFS(B$4:B323,B323))","v":{"$error":"#N/A"}}]
[{"$nulls":5},{"$f":"CONCATENATE((VLOOKUP(B324,'요건 건수'!$D$4:$E$20,2)),COUNTIFS(B$4:B324,B324))","v":{"$error":"#N/A"}}]
[{"$nulls":5},{"$f":"CONCATENATE((VLOOKUP(B325,'요건 건수'!$D$4:$E$20,2)),COUNTIFS(B$4:B325,B325))","v":{"$error":"#N/A"}}]
[{"$nulls":5},{"$f":"CONCATENATE((VLOOKUP(B326,'요건 건수'!$D$4:$E$20,2)),COUNTIFS(B$4:B326,B326))","v":{"$error":"#N/A"}}]
[{"$nulls":5},{"$f":"CONCATENATE((VLOOKUP(B327,'요건 건수'!$D$4:$E$20,2)),COUNTIFS(B$4:B327,B327))","v":{"$error":"#N/A"}}]
[{"$nulls":5},{"$f":"CONCATENATE((VLOOKUP(B328,'요건 건수'!$D$4:$E$20,2)),COUNTIFS(B$4:B328,B328))","v":{"$error":"#N/A"}}]
[{"$nulls":5},{"$f":"CONCATENATE((VLOOKUP(B329,'요건 건수'!$D$4:$E$20,2)),COUNTIFS(B$4:B329,B329))","v":{"$error":"#N/A"}}]
[{"$nulls":5},{"$f":"CONCATENATE((VLOOKUP(B330,'요건 건수'!$D$4:$E$20,2)),COUNTIFS(B$4:B330,B330))","v":{"$error":"#N/A"}}]
[{"$nulls":5},{"$f":"CONCATENATE((VLOOKUP(B331,'요건 건수'!$D$4:$E$20,2)),COUNTIFS(B$4:B331,B331))","v":{"$error":"#N/A"}}]
[{"$nulls":5},{"$f":"CONCATENATE((VLOOKUP(B332,'요건 건수'!$D$4:$E$20,2)),COUNTIFS(B$4:B332,B332))","v":{"$error":"#N/A"}}]
[{"$nulls":5},{"$f":"CONCATENATE((VLOOKUP(B333,'요건 건수'!$D$4:$E$20,2)),COUNTIFS(B$4:B333,B333))","v":{"$error":"#N/A"}}]
[{"$nulls":5},{"$f":"CONCATENATE((VLOOKUP(B334,'요건 건수'!$D$4:$E$20,2)),COUNTIFS(B$4:B334,B334))","v":{"$error":"#N/A"}}]
[{"$nulls":5},{"$f":"CONCATENATE((VLOOKUP(B335,'요건 건수'!$D$4:$E$20,2)),COUNTIFS(B$4:B335,B335))","v":{"$error":"#N/A"}}]
[{"$nulls":5},{"$f":"CONCATENATE((VLOOKUP(B336,'요건 건수'!$D$4:$E$20,2)),COUNTIFS(B$4:B336,B336))","v":{"$error":"#N/A"}}]
[{"$nulls":5},{"$f":"CONCATENATE((VLOOKUP(B337,'요건 건수'!$D$4:$E$20,2)),COUNTIFS(B$4:B337,B337))","v":{"$error":"#N/A"}}]

{"sheet":"TOBE BOS IA","index":9,"n_rows":314,"n_cols":9,"rows_kept":314,"cut":false,"hidden":true,"merged":[[0,2,0,8]]}
[null,null,"TO-BE BOS IA  현업 1차 가안"]
[]
[null,"No","1 Depth","2 Depth","3 Depth","4 Depth","5 Depth","Page Type"]
[null,1,null,"협력사 관리","목록"]
[null,2,null,null,"등록"]
[null,3,null,"공급처 관리","공급처 상세","공급처 정보",null,"TAB"]
[{"$nulls":5},"묶음배송컨텐츠 ",null,"TAB"]
[null,4,null,"브랜드 관리"]
[null,null,null,"채널 관리"]
{"$rows_empty":13}
[null,5,"상품 관리","상품 관리","상품등록","일반상품"]
[null,6,null,null,null,"세트상품"]
[null,7,null,null,null,"딜상품"]
[null,8,null,null,null,"상품 일괄 등록"]
[null,9,null,null,"상품 정보 조회"]
[null,10]
[null,11,null,null,"상품 일괄 수정"]
[null,12,null,null,"가격 예약"]
[null,13,null,"상품 승인 관리"]
[null,14,null,"품목 정보 관리","품목 정보 조회"]
[null,15,null,null,"품목 정보 일괄 등록"]
[null,16,null,null,"품목 정보 템플릿 관리"]
[null,17]
[null,18,"전시 관리"]
[null,19]
[null,20]
[null,21]
[null,22]
[null,23]
[null,24]
[null,25]
[null,26]
[null,27]
[null,28]
[null,29]
[null,30]
[null,31]
[null,32]
[null,33]
[null,34]
[null,35]
[null,36]
[null,37]
[null,38]
[null,39]
[null,40]
[null,41,"프로모션 관리","쿠폰 관리","목록"]
[null,42,null,null,"쿠폰 등록"]
[null,43,null,null,"상세","쿠폰 정보"]
[null,44,null,null,null,"쿠폰 발급내역"]
[null,45,null,null,null,"쿠폰 지급",null,null,"* 일괄지급 , 회원 조회"]
[null,46,null,"기획전 관리","목록"]
[null,47,null,null,"상세","기본정보"]
[null,48,null,null,null,"전시부가정보"]
[null,49,null,null,null,"구분자 정보"]
[null,50,{"$nulls":4},"구분자 등록"]
[null,51,null,null,null,"컨텐츠 정보"]
[null,52,null,"다다익선 관리","목록"]
[null,53,null,null,"등록"]
[null,54,null,null,"상세/수정","정보 조회"]
[null,55,null,null,null,"주문 이력"]
[null,56,null,"이벤트관리","목록"]
[null,57,null,null,"등록/수정","기본정보"]
[null,58,null,null,null,"추가정보"]
[null,59,null,null,null,"상품정보"]
[null,60,{"$nulls":4},"구분자 정보"]
[null,61]
[null,62,null,null,null,"응모이력"]
[null,63,null,null,null,"댓글이력"]
[null,64,null,null,null,"설문이력"]
[null,65,"주문관리","주문내역 조회","주문 목록"]
[null,66,null,null,"주문 상세"]
[null,67,null,"클레임 조회","클레임 목록"]
[null,68,null,null,"클레임 상세"]
[null,null,null,"배송지시서 조회"]
[null,null,null,"미출고 현황"]
{"$rows_empty":7}
[null,69,"회원 관리","회원 관리","회원 목록"]
[null,70,null,null,"회원 상세","회원 기본정보",null,"TAB"]
[null,71,null,null,null,"주문 내역",null,"TAB"]
[null,72,null,null,null,"쿠폰 현황",null,"TAB"]
[null,73,null,null,null,"상품권/포인트/머니","상품권 현황","TAB"]
[null,74,{"$nulls":4},"아이포인트 현황","TAB"]
[null,75,{"$nulls":4},"아이머니 현황","TAB"]
[null,76,null,null,null,"문의 이력","1:1문의","TAB"]
[null,77,{"$nulls":4},"상품 Q&A","TAB"]
[null,78,null,"블랙리스트 관리","목록"]
[null,79,null,null,"상세/수정"]
[null,80,null,"탈퇴회원 관리","목록"]
[null,81,null,"휴면회원 관리","목록"]
[null,82,null,"추천인 등록 현황"]
[null,83]
[null,84]
[null,85,"정산관리","매출 전표 관리"]
[null,86,null,"정산 관리"]
[null,87,null,"배송비 정산관리"]
[null,88]
[null,89,null,"아이포인트 관리","내역조회"]
[null,90,null,null,"아이포인트 변경",null,null,null,"* 지급/차감/사유별등록"]
[null,91,null,"아이머니 관리","내역조회"]
[null,92,null,null,"아이머니 변경",null,null,null,"* 지급/차감/사유별등록"]
[null,93,null,"상품권 관리","내역조회"]
[null,94,null,null,"상품권 변경"]
[null,95]
[null,96]
[null,97]
[null,98,"제휴관리","ep/비노출관리"]
[null,99,null,"최저가 조회"]
[null,100,null,"제휴 주문 일괄 등록"]
[null,101,"CS 관리","FAQ관리","목록"]
[null,102,null,null,"등록"]
[null,103,null,null,"조회/수정"]
[null,104,null,"공지사항관리","목록"]
[null,105,null,null,"등록"]
[null,106,null,null,"조회/수정"]
[null,107,null,"상품평 관리","목록"]
[null,108,null,null,"조회/수정"]
[null,109,null,"상품 문의 관리","목록"]
[null,110,null,null,"조회/수정(답변)"]
[null,111,null,"상담 처리 현황"]
[null,112,"시스템 관리","사용자 관리"]
[null,113]
[null,114,null,"그룹관리"]
[null,115]
[null,116,null,"코드 관리"]
[null,117,null,"배치관리"]
[null,118,null,"메뉴 관리"]
[null,119,null,"휴무일관리"]
[null,120]
[null,121,null,"메일템플릿 관리"]
[null,122]
[null,123,null,"개인정보변경"]
[null,124,null,null,"비밀번호 90일 초과"]
[null,125,"통계 관리","회원 통계"]
[null,126,null,"신규회원 통계"]
[null,127,null,"휴면/탈퇴회원통계"]
[null,128,null,"일별 주문 통계"]
[null,129,null,"구매자 통계"]
[null,130,null,"상품 별 주문통계",{"$nulls":4},"브랜드/공급처/채널/조건으로 부여\n상품번호 다수 개 입력 가능하도록 조건 \n(다중으로 처리)"]
[null,131,null,"카테고리별 주문통계",{"$nulls":4},"브랜드/공급처/채널/조건으로 부여\n(다중으로 처리)"]
[null,132,null,"채널별 주문 통계"]
[null,133,null,"결제수단 통계"]
[null,134,null,"쿠폰사용 통계"]
[null,135,null,"기획전 통계"]
[null,136,null,"프로모션 통계"]
[null,137,null,"데이터 추출"]
[null,138,null,"시간대별 주문통계"]
[null,139]
[null,140]
[null,141]
[null,142]
[null,143]
[null,144]
[null,145,"총알배송관리","총알배송 권역관리"]
[null,146,null,"총알배송 설정관리"]
[null,147,null,"총알배송 예외일정관리"]
[null,148]
[null,149]
[null,150]
[null,151]
[null,152]
[null,153]
[null,154]
[null,155]
[null,156]
[null,157]
[null,158]
[null,159]
[null,160]
[null,161]
[null,162]
[null,163]
[null,164]
[null,165]
[null,166]
[null,167]
[null,168]
[null,169]
[null,170]
[null,171]
[null,172]
[null,173]
[null,174]
[null,175]
[null,176]
[null,177]
[null,178]
[null,179]
[null,180]
[null,181]
[null,182]
[null,183]
[null,184]
[null,185]
[null,186]
[null,187]
[null,188]
[null,189]
[null,190]
[null,191]
[null,192]
[null,193]
[null,194]
[null,195]
[null,196]
[null,197]
[null,198]
[null,199]
[null,200]
[null,201]
[null,202]
[null,203]
[null,204]
[null,205]
[null,206]
[null,207]
[null,208]
[null,209]
[null,210]
[null,211]
[null,212]
[null,213]
[null,214]
[null,215]
[null,216]
[null,217]
[null,218]
[null,219]
[null,220]
[null,221]
[null,222]
[null,223]
[null,224]
[null,225]
[null,226]
[null,227]
[null,228]
[null,229]
[null,230]
[null,231]
[null,232]
[null,233]
[null,234]
[null,235]
[null,236]
[null,237]
[null,238]
[null,239]
[null,240]
[null,241]
[null,242]
[null,243]
[null,244]
[null,245]
[null,246]
[null,247]
[null,248]
[null,249]
[null,250]
[null,251]
[null,252]
[null,253]
[null,254]
[null,255]
[null,256]
[null,257]
[null,258]
[null,259]
[null,260]
[null,261]
[null,262]
[null,263]
[null,264]
[null,265]
[null,266]
[null,267]
[null,268]
[null,269]
[null,270]
[null,271]
[null,272]
[null,273]
[null,274]
[null,275]
[null,276]
[null,277]
[null,278]
[null,279]
[null,280]
[null,281]
[null,282]
[null,283]
[null,284]
[null,285]
[null,286]
[null,287]

{"sheet":"DATA COLUMN SHEET","index":10,"n_rows":124,"n_cols":18,"rows_kept":124,"cut":false,"hidden":true,"merged":[[0,1,0,12]]}
[null,"구현 요청 DATA SHEET"]
[null,"금액 1원단위, 반올림"]
[]
[null,"협력사 관리",{"$nulls":4},"기본상품",{"$nulls":4},"쿠폰"]
[null,"기본정보","협력사 번호",null,"vendorNo",null,"기본정보","상품번호",null,"ProductID - Unique ",null,"쿠폰기본정보","쿠폰번호",null,"CouponID - Unique ",null,"업체/위탁정산","주문번호"]
[null,null,"협력사 명",{"$nulls":4},"상품명",{"$nulls":4},"쿠폰 구분",null,"즉시할인쿠폰/주문상품쿠폰/장바구니쿠폰/배송비쿠폰",null,null,"매출일자"]
[null,null,"상태",null,"정상/대기/사용중지",null,null,"판촉태그",{"$nulls":4},"쿠폰명",null,"최대 30자",null,null,"매출상태"]
[null,null,"사업자등록번호","변경","사업자 등록번호 기준 사업자 확인 API로 체크\n사업자는 1개 만 등록 가능\n사업자 확인 api 기준으로 대표자명/주소/업태/종목 정보호출",null,null,"매출분류",{"$nulls":4},"쿠폰발급기간",null,"Start date : YYYY-MM-DD HH:MM:SS\nend date : YYYY-MM-DD HH:MM:SS",null,null,"정산상태"]
[null,null,"대표자명",{"$nulls":4},"상품상태",null,"WMS재고 : 입고완료/승인대기/승인보류/판매중/품절/판매중지/삭제\n입점 : 승인대기/승인보류/판매중/판매중지/품절/삭제",null,null,"쿠폰사용기간",null,"Start date : YYYY-MM-DD HH:MM:SS\nend date : YYYY-MM-DD HH:MM:SS",null,null,"상품코드"]
[null,null,"사업자구분",null,"개인/법인",null,null,"스타일No",{"$nulls":4},"쿠폰상태",null,"진행/대기/중지",null,null,"상품명"]
[null,null,"주소",null,"우편번호/도로명/지번(1차주소/2차주소)",null,null,"브랜드",null,null,null,"적용대상","대상브랜드",null,"다중 설정(OR 조건)",null,null,"스타일No"]
[null,null,"대표 전화번호",{"$nulls":4},"공급처",null,"providerNo",null,null,"대상공급처",null,"다중(OR 조건)",null,null,"공급처"]
[null,null,"대표 fax번호",{"$nulls":4},"물류정보",null,"deliveryUnitNo",null,null,"대상카테고리",null,"다중(OR 조건)",null,null,"유통구분"]
[null,null,"등록일자",null,"YYYY-MM-DD HH:MM:SS",null,null,"제조원",{"$nulls":4},"대상상품",null,"다중(OR 조건)",null,null,"브랜드"]
[null,"메모","메모 내용",null,"히스토리화 하여 누적저장",null,null,"원산지",null,"국가 목록 api 활용 하여 목록업데이트 국가 마이그레이션 진행\n- As-is 7개 국가만 있음",null,null,"예외상품",null,"대상에 들어가더라도, 예외에 포함될 경우 예외를 최우선으로 처리",null,null,"단품코드"]
[null,null,"메모입력일",null,"YYYY-MM-DD HH:MM:SS",null,null,"시즌",null,"봄/여름/가을/겨울/Free",null,"할인액","할인구분",null,"정액/정율",null,null,"실판매가격"]
[null,null,"메모등록자",null,"UserID(UserName)",null,null,"성별",null,"남/여/공용",null,null,"할인율/액",null,"(%/액) \n액 의경우 1원단위 가능,  율 의 경우 100% 까지 가능",null,null,"판매가격"]
[null,"공급처 1","공급처 ID",null,"providerNo",null,null,"유통구분",null,"위탁/사입/입점",null,null,"최소구매금액",null,"최대 999,999,999원, 소수점 입력불가/숫자만입력가능",null,null,"수량"]
[null,null,"공급처명",{"$nulls":4},"이월구분",null,"신상 \n이월 : 이월 일 때에 아울렛 노출",null,null,"최대할인금액",null,"최대 999,999,999원, 소수점 입력불가/숫자만입력가능",null,null,"상품총액"]
[null,null,"재고관리구분",null,"사입/위탁/입점/자사/제휴/구매대행",null,null,"과세여부",null,"과세/비과세/면세",null,null,"분담율",null,"100까지만 입력가능, 소수점 입력불가/숫자만입력가능",null,null,"판매총액"]
[null,null,"분류",null,"매출구분 카테고리",null,null,"반품가능여부",null,"반품가능/반품불가능",null,null,"쿠폰예산액",null,"미입력시 무제한 으로 처리\n예산액: 최대 999,999,999원 까지 가능\n예산액 소진되면 쿠폰 중지처리",null,null,"다다익선할인"]
[null,null,"유통구분",{"$nulls":4},"상품유형",null,"신상품/전시/리퍼/스크래치/중고",null,"매수제한","최대 발행매수",{"$nulls":4},"즉시할인쿠폰"]
[null,null,"제휴 CID",{"$nulls":4},"구매대행여부",null,"Y/N",null,null,"ID당 최대발행매수",null,"N 장",null,null,"쿠폰할인"]
[null,null,"정상마진",null,"정산에서 매기는 수수료 적용마진 확인 필요\n- 숫자, 최대 100, 소수점 불가",null,null,"병행수입여부",null,"Y/N",null,null,"매수기한조건",null,"일 / 기간내",null,null,"자사쿠폰분담액"]
[null,null,"세일마진",null,"정산에서 매기는 수수료 적용마진 확인 필요",null,null,"주문제작상품여부",null,"Y/N",null,"다운로드/사용제한","첫구매",null,"Start date : YYYY-MM-DD HH:MM:SS\nend date : YYYY-MM-DD HH:MM:SS",null,null,"협력사쿠폰분담액"]
[null,null,"영업담당자명",{"$nulls":4},"ID당 1일 구매 가능 수량","신규",null,null,null,"신규회원",null,"Start date : YYYY-MM-DD HH:MM:SS\nend date : YYYY-MM-DD HH:MM:SS",null,null,"수수료"]
[null,null,"영업담당자 연락처",{"$nulls":4},"30일 구매가능수량","신규",null,null,null,"등급",{"$nulls":4},"정산대상액"]
[null,null,"영업담당자 휴대폰",{"$nulls":4},"구매 가능 제한","신규","등급",null,null,"채널"]
[null,null,"영업담당자 이메일",{"$nulls":5},"신규","신규가입",null,null,"디바이스제한",null,"pc/모바일앱/모바일웹",null,"pg 정산"]
[null,null,"정산유형",null,"월말정산/15일정산\n* 15일 정산 사용여부 검토",null,null,null,"신규","첫구매 전용",null,null,"결제수단",null,"카드결제/네이버페이/페이코/카카오페이/계좌이체/휴대폰결제"]
[null,null,"계좌정보(은행명)",null,"은행리스트 호출 형태로 변경",null,null,null,"신규","채널",null,"시리얼 쿠폰여부","사용여부",null,"Y/N"]
[null,null,"계좌정보(계좌번호)",null,"계좌 유효성 체크 필요",null,null,"검색키워드",{"$nulls":4},"유형",null,"입력형 / 난수형\n- 입력형일 경우 Input 항목 노출 \n- Input 기준 : 숫자/문자(영문대소문자/한글)/특수문자(?!@#$% 외 불가) \n- 2~16자(최대 32byte)"]
[null,null,"반출주소",null,"우편번호/도로명/지번(1차주소/2차주소)",null,null,"속성",null,"Category 에서 속성 Table 매핑",null,"매수제한","선착순 여부",null,"Y/N"]
[null,null,"등록일자",null,"YYYY-MM-DD HH:MM:SS",null,"옵션","옵션코드",null,"SKUID",null,null,"선착순 실행 기준",null,"매일 / 요일지정(월/화/수/목/금/토/일 - 멀티)"]
[null,null,"등록자",null,"UserID(UserName)",null,null,"옵션명",{"$nulls":4},"선착순 1회당 매수",null,"횟수 입력 (합산 매수가 최대발행매수 초과불가)"]
[null,null,"전자계약서 발급여부",null,"기능 확인 필요",null,null,"색상",{"$nulls":4},"실행 횟수",null,"최소 1회 ~ 최대 6회 중 선택"]
[null,"공급처 2",null,null,"공급처 N개 확장 구조",null,null,"사이즈",{"$nulls":6},"횟수 별 시간 선택 MM:DD "]
[null,"공급처 3",null,null,"공급처 N개 확장 구조",null,null,"재고관리여부",null,"Y/N",null,"다운로드 현황","회원아이디",null,"UserID"]
[null,"물류정보 1","물류번호",null,"deliveryUnitNo",null,null,"자사현재고",{"$nulls":4},"회원명",null,"UserName"]
[null,null,"물류정보명",{"$nulls":4},"배분현재고","신규",null,null,null,"사용여부",null,"Y/N"]
[null,null,"물류구분",null,"WMS/SCM",null,"가격","공급가",{"$nulls":4},"발급일시",null,"YYYY-MM-DD HH:MM:SS"]
[null,null,"배송담당자명",{"$nulls":4},"정상가",{"$nulls":4},"사용일시",null,"YYYY-MM-DD HH:MM:SS"]
[null,null,"배송담당자연락처",{"$nulls":4},"판매가",{"$nulls":4},"사용주문번호",null,"Order No."]
[null,null,"배송담당자휴대폰",{"$nulls":4},"수수료율",null,null,null,"통계값","발급매수"]
[null,null,"배송담당자Email",{"$nulls":4},"포인트율",{"$nulls":4},"발행매수"]
[null,null,"출고지",null,"우편번호/도로명/지번(1차주소/2차주소)",null,null,"외부몰판매가","신규","외부몰 N 개로 관리되어야 할 수 있음",null,null,"사용매수"]
[null,null,"반품지","신규","우편번호/도로명/지번(1차주소/2차주소)",null,"프로모션","다다익선 적용정보","신규","프로모션 적용가",null,null,"쿠폰 매출액"]
[null,null,"택배사",{"$nulls":5},"신규","프로모션 번호"]
[null,null,"상태",null,"대기/정상/사용중지",null,null,null,"신규","프로모션 기간"]
[null,null,"기본배송비",null,"* 무료 일 시 disable",null,null,null,"신규","프로모션 조건 ",null,"다다익선 [신규]"]
[null,null,"무료배송주문금액",null,"* 유료 일 시 disable",null,null,"사은품 프로모션 정보","신규","사은품 프로모션 번호",null,"프로모션 기본정보","프로모션ID"]
[null,null,"배송비 유형","신규","무료/유료/조건부무료\n* mIg 시에는 전체 조건부무료로 mig",null,null,null,"신규","지급 사은품 ID",null,null,"프로모션 설명",null,"Front 노출용"]
[null,null,"반품배송비","신규",{"$nulls":4},"신규","지급 사은품 명",null,null,"관리프로모션명",null,"최대 30자"]
[null,null,"배송공지사항",{"$nulls":5},"신규","사은품 적용 기간",null,null,"프로모션 기간",null,"Start date : YYYY-MM-DD HH:MM:SS\nend date : YYYY-MM-DD HH:MM:SS"]
[null,null,"등록일자",null,"YYYY-MM-DD HH:MM:SS",null,null,null,"신규","사은품 적용 조건",null,"할인 기준",null,null,"수량 할인 / 금액 할인"]
[null,null,"등록자",null,"UserID(UserName)",null,null,"적용 쿠폰 정보","신규","쿠폰 적용가",null,null,"할인율"]
[null,null,"최종수정일자","신규","YYYY-MM-DD HH:MM:SS",null,null,null,"신규","쿠폰 번호",null,null,"할인액"]
[null,null,"최종수정자","신규","UserID(UserName)",null,null,null,"신규","쿠폰 유형",null,null,"기준금액"]
[{"$nulls":8},"신규","쿠폰 적용 기간",null,null,"기준수량"]
[null,"브랜드",{"$nulls":6},"신규","쿠폰할인율/액"]
[null,"브랜드ID",null,null,"brandNo",null,"상품기술서",null,null,"html/editing \n에디터 확인 필요\n기본 템플릿 제공 요망"]
[null,"분류",null,null,"매출 카테고리 대분류",null,"이미지","상품이미지",null,"최대 9개((Jpg/png/gif) / 용량 제한 IMG : 10M ",null,null,"구매 기준 상품",null,"다중"]
[null,"표시브랜드명",{"$nulls":5},"이미지순번",null,"노출 순번에 따라 대표 이미지 설정\n노출 순번이 동률일 시, 최근 순번을 우선으로 처리한다.",null,null,"할인대상",null,"공급처/상품"]
[null,"관리브랜드명",{"$nulls":5},"동영상","신규","Youtube URL / upload 두가지 처리\n영상 있을 시 영상 우선",null,null,"공급처",null,"providerNo 기준"]
[null,"영문브랜드명",{"$nulls":4},"품목정보","품목 구분",{"$nulls":4},"예외 상품",null,"대상 "]
[null,"한글브랜드명",{"$nulls":5},"품목구분별 항목",null,"품목 구분별 항목 규칙에 따름\n안전인증/전파인증은 Safety에서 제공 하는 API로 유효성 검증 요망",null,null,"할인 대상 상품"]
[null,"공급처",{"$nulls":4},"부가정보","스티커태그",null,"쿠폰/세일/무료배송/총알배송/단독특가/온라인단독/한정수량/사은품/신상"]
[null,"브랜드 상태",{"$nulls":5},"화보정보","신규","화보 Table의 정보를 기반으로 연결만 진행"]
[]
[null,"화보정보",{"$nulls":4},"세트 상품"]
[null,"화보목록","타이틀",null,null,null,"기본정보","상품번호",null,"ProductID - Unique "]
[null,null,"노출기간",null,"Start date : YYYY-MM-DD HH:MM:SS\nend date : YYYY-MM-DD HH:MM:SS",null,null,"상품명"]
[null,null,"노출여부",null,"노출/비노출",null,null,"판촉태그"]
[null,null,"브랜드",null,"Brand ID ",null,null,"매출분류"]
[null,null,"시즌",null,"YY-SS/FW",null,null,"상품상태",null,"WMS재고 : 입고완료/승인대기/승인보류/판매중/품절/판매중지/삭제\n입점 : 승인대기/승인보류/판매중/판매중지/품절/삭제"]
[null,null,"대표컷",null,"Image/movie(Jpg/png/gif/mpeg/avi/mov 기타), 용량 제한 IMG : 10M MOV : 500M",null,null,"브랜드"]
[null,null,"세부 정보 N개 확장",null,"Image/movie(Jpg/png/gif/mpeg/avi/mov 기타), 용량 제한 IMG : 10M MOV : 500M",null,null,"공급처",null,"providerNo"]
[{"$nulls":4},"설명문구",null,null,"물류정보",null,"deliveryUnitNo"]
[{"$nulls":4},"좌표 선택",null,null,"제조원"]
[{"$nulls":4},"상품 번호",null,null,"원산지",null,"국가 목록 api 활용 하여 목록업데이트 국가 마이그레이션 진행\n- As-is 7개 국가만 있음"]
[{"$nulls":7},"시즌",null,"봄/여름/가을/겨울/Free"]
[{"$nulls":7},"성별",null,"남/여/공용"]
[{"$nulls":7},"유통구분",null,"위탁/사입/입점"]
[{"$nulls":7},"이월구분",null,"신상 \n이월 : 이월 일 때에 아울렛 노출"]
[{"$nulls":7},"과세여부",null,"과세/비과세/면세"]
[{"$nulls":7},"반품가능여부",null,"반품가능/반품불가능"]
[{"$nulls":7},"상품유형",null,"신상품/전시/리퍼/스크래치/중고"]
[{"$nulls":7},"구매대행여부",null,"Y/N"]
[{"$nulls":7},"병행수입여부",null,"Y/N"]
[{"$nulls":7},"주문제작상품여부",null,"Y/N"]
[{"$nulls":7},"ID당 1일 구매 가능 수량","신규"]
[{"$nulls":7},"30일 구매가능수량","신규"]
[{"$nulls":7},"구매 가능 제한","신규","등급"]
[{"$nulls":8},"신규","신규가입"]
[{"$nulls":8},"신규","첫구매 전용"]
[{"$nulls":8},"신규","채널"]
[{"$nulls":7},"검색키워드"]
[{"$nulls":6},"조합상품","매핑 상품 ID",null,"ProductID"]
[{"$nulls":7},"상품 수량",null,"같이 내보낼 묶음 상품 수량"]
[{"$nulls":6},"가격","공급가",null,"상품가와 별개로 측정"]
[{"$nulls":7},"정상가"]
[{"$nulls":7},"판매가"]
[{"$nulls":7},"수수료율"]
[{"$nulls":7},"포인트율"]
[{"$nulls":7},"외부몰판매가","신규","외부몰 N 개로 관리되어야 할 수 있음"]
[{"$nulls":6},"상품기술서",null,null,"미입력 시, 조합 상품 정보의 기술서 호출"]
[{"$nulls":6},"이미지","상품이미지",null,"최대 9개((Jpg/png/gif) / 용량 제한 IMG : 10M "]
[{"$nulls":7},"이미지순번",null,"노출 순번에 따라 대표 이미지 설정\n노출 순번이 동률일 시, 최근 순번을 우선으로 처리한다."]
[{"$nulls":7},"동영상","신규","Youtube URL / upload 두가지 처리\n영상 있을 시 영상 우선"]
[{"$nulls":6},"부가정보","스티커태그",null,"쿠폰/세일/무료배송/총알배송/단독특가/온라인단독/한정수량/사은품/신상"]
[{"$nulls":7},"화보정보","신규","화보 Table의 정보를 기반으로 연결만 진행"]
[]
[{"$nulls":6},"딜 상품"]
[{"$nulls":6},"기본정보","상품번호",null,"ProductID - Unique "]
[{"$nulls":7},"상품명"]
[{"$nulls":7},"판촉태그"]
[{"$nulls":7},"상품상태",null,"WMS재고 : 입고완료/승인대기/승인보류/판매중/품절/판매중지/삭제\n입점 : 승인대기/승인보류/판매중/판매중지/품절/삭제"]
[{"$nulls":6},"조합상품","매핑 상품 ID",null,"ProductID\n- 가격 등의 정보는 관련 조합상품의 정보에 따름"]
[{"$nulls":6},"상품 노출 유형",null,null,"1개형/2개형"]
[{"$nulls":6},"이미지","상품이미지",null,"최대 9개((Jpg/png/gif) / 용량 제한 IMG : 10M "]
[{"$nulls":7},"이미지순번",null,"노출 순번에 따라 대표 이미지 설정\n노출 순번이 동률일 시, 최근 순번을 우선으로 처리한다."]
[{"$nulls":7},"동영상","신규","Youtube URL / upload 두가지 처리\n영상 있을 시 영상 우선"]
[{"$nulls":6},"부가정보","스티커태그",null,"쿠폰/세일/무료배송/총알배송/단독특가/온라인단독/한정수량/사은품/신상"]
[{"$nulls":7},"화보정보","신규","화보 Table의 정보를 기반으로 연결만 진행"]